Department Family,Entity,Date,Expense Type,Expense Area,Supplier,Transaction Number,Amount,VAT Registration Number
Department of Health,East Sussex Hospitals NHS Trust,05/10/2011,NHS SUPPLY CHAIN CREDITORS,Cross Site,NHS SUPPLY CHAIN,0000132044,169089.22,
Department of Health,East Sussex Hospitals NHS Trust,05/10/2011,SR NORTH WEST LONDON HOSPITALS,Integrated Care,NORTH WEST LONDON HOSPITALS NHS TRUST,0000132240,1870.50,
Department of Health,East Sussex Hospitals NHS Trust,05/10/2011,BLOOD PRODUCTS - NBS ST CONTRA,Integrated Care,NHS BLOOD AND TRANSPLANT (NHSBT),0000132247,2951.64,
Department of Health,East Sussex Hospitals NHS Trust,05/10/2011,AGENCY STAFF GRADE,Urgent Care,REED PERSONNEL SERVICES LTD,0000272174,1765.54,
Department of Health,East Sussex Hospitals NHS Trust,05/10/2011,AGENCY PHYSIOTHERAPY STAFF,Urgent Care,PIERS MEADOWS RECRUITMENT LIMITED,0000273209,1351.30,
Department of Health,East Sussex Hospitals NHS Trust,05/10/2011,AGENCY PHYSIOTHERAPY STAFF,Urgent Care,PIERS MEADOWS RECRUITMENT LIMITED,0000273226,1423.92,
Department of Health,East Sussex Hospitals NHS Trust,05/10/2011,AGENCY PHYSIOTHERAPY STAFF,Urgent Care,PIERS MEADOWS RECRUITMENT LIMITED,0000273434,1570.50,
Department of Health,East Sussex Hospitals NHS Trust,05/10/2011,AGENCY PHYSIOTHERAPY STAFF,Urgent Care,PIERS MEADOWS RECRUITMENT LIMITED,0000273706,1426.37,
Department of Health,East Sussex Hospitals NHS Trust,05/10/2011,AGENCY PHYSIOTHERAPY STAFF,Urgent Care,PIERS MEADOWS RECRUITMENT LIMITED,0000273708,1570.50,
Department of Health,East Sussex Hospitals NHS Trust,05/10/2011,PROVISIONS,Commercial,N H CASE LTD,0000273792,886.30,
Department of Health,East Sussex Hospitals NHS Trust,05/10/2011,AGENCY NURSE - QUALIFIED,Planned Care,MAYDAY HEALTHCARE PLC,0000273801,1165.29,
Department of Health,East Sussex Hospitals NHS Trust,05/10/2011,AGENCY NURSE - QUALIFIED,Urgent Care,MAYDAY HEALTHCARE PLC,0000273806,525.99,
Department of Health,East Sussex Hospitals NHS Trust,05/10/2011,AGENCY NURSE - QUALIFIED,Urgent Care,MAYDAY HEALTHCARE PLC,0000273807,579.71,
Department of Health,East Sussex Hospitals NHS Trust,05/10/2011,AGENCY NURSE - QUALIFIED,Urgent Care,MAYDAY HEALTHCARE PLC,0000273808,525.99,
Department of Health,East Sussex Hospitals NHS Trust,05/10/2011,AGENCY NURSE - QUALIFIED,Urgent Care,MAYDAY HEALTHCARE PLC,0000273819,511.70,
Department of Health,East Sussex Hospitals NHS Trust,05/10/2011,AGENCY NURSE - QUALIFIED,Planned Care,MAYDAY HEALTHCARE PLC,0000273820,538.50
Department of Health,East Sussex Hospitals NHS Trust,05/10/2011,AGENCY NURSE - QUALIFIED,Urgent Care,MAYDAY HEALTHCARE PLC,0000273821,517.80
Department of Health,East Sussex Hospitals NHS Trust,05/10/2011,AGENCY NURSE - QUALIFIED,Urgent Care,MAYDAY HEALTHCARE PLC,0000273833,505.29
Department of Health,East Sussex Hospitals NHS Trust,05/10/2011,PROVISIONS,Commercial,N H CASE LTD,0000273839,1037.40
Department of Health,East Sussex Hospitals NHS Trust,05/10/2011,PROVISIONS,Commercial,ANCHOR CATERING LTD,0000273856,820.12
Department of Health,East Sussex Hospitals NHS Trust,05/10/2011,PROVISIONS,Commercial,DAIRY CREST LTD,0000273863,1066.35
Department of Health,East Sussex Hospitals NHS Trust,05/10/2011,PROVISIONS,Commercial,DAIRY CREST LTD,0000273877,1109.76
Department of Health,East Sussex Hospitals NHS Trust,05/10/2011,FURNITURE & FITTINGS,Commercial,AUTOBAR UK LIMITED,0000273880,1146.50
Department of Health,East Sussex Hospitals NHS Trust,05/10/2011,CONTRACT HIRE-VENDING MACHINES,Commercial,FEAST POINT LTD,0000273888,3285.00
Department of Health,East Sussex Hospitals NHS Trust,05/10/2011,AGENCY NURSE - QUALIFIED,Urgent Care,MAYDAY HEALTHCARE PLC,0000273917,565.07
Department of Health,East Sussex Hospitals NHS Trust,05/10/2011,AGENCY NURSE - QUALIFIED,Urgent Care,MAYDAY HEALTHCARE PLC,0000273919,572.01
Department of Health,East Sussex Hospitals NHS Trust,05/10/2011,AGENCY NURSE - QUALIFIED,Urgent Care,MAYDAY HEALTHCARE PLC,0000273924,572.01
Department of Health,East Sussex Hospitals NHS Trust,05/10/2011,AGENCY NURSE - UNQUALIFIED,Urgent Care,MAYDAY HEALTHCARE PLC,0000273956,1528.87
Department of Health,East Sussex Hospitals NHS Trust,05/10/2011,AGENCY PHYSIOTHERAPY STAFF,Integrated Care,RANDSTAD CARE LTD,0000273998,1632.16
Department of Health,East Sussex Hospitals NHS Trust,05/10/2011,AGENCY PHYSIOTHERAPY STAFF,Integrated Care,PIERS MEADOWS RECRUITMENT LIMITED,0000274027,1032.24
Department of Health,East Sussex Hospitals NHS Trust,05/10/2011,AGENCY PHYSIOTHERAPY STAFF,Urgent Care,PIERS MEADOWS RECRUITMENT LIMITED,0000274029,1126.08
Department of Health,East Sussex Hospitals NHS Trust,05/10/2011,AGENCY CONSULTANT,Integrated Care,DOCTORS ON CALL,0000274035,5164.12
Department of Health,East Sussex Hospitals NHS Trust,05/10/2011,AGENCY OCC THERAPY STAFF,Integrated Care,MEDICONNECT RECRUITMENT,0000274041,1305.00
Department of Health,East Sussex Hospitals NHS Trust,05/10/2011,AGENCY SPECIALIST REG,Urgent Care,URBAN RECRUITMENT GROUP LTD,0000274050,5081.28
Department of Health,East Sussex Hospitals NHS Trust,05/10/2011,AGENCY SPECIALIST REG,Integrated Care,T.A.MEDICAL,0000274062,1120.74
Department of Health,East Sussex Hospitals NHS Trust,05/10/2011,AGENCY STAFF GRADE,Planned Care,PURE MEDICAL HEALTHCARE SOLUTIONS LTD,0000274079,2692.80
Department of Health,East Sussex Hospitals NHS Trust,05/10/2011,AGENCY PHYSIOTHERAPY STAFF,Integrated Care,PIERS MEADOWS RECRUITMENT LIMITED,0000274081,1051.01
Department of Health,East Sussex Hospitals NHS Trust,05/10/2011,AGENCY STAFF GRADE,Planned Care,PURE MEDICAL HEALTHCARE SOLUTIONS LTD,0000274096,2448.00
Department of Health,East Sussex Hospitals NHS Trust,05/10/2011,AGENCY OCC THERAPY STAFF,Integrated Care,MEDICONNECT RECRUITMENT,0000274099,991.80
Department of Health,East Sussex Hospitals NHS Trust,05/10/2011,AGENCY NURSE - QUALIFIED,Planned Care,MAYDAY HEALTHCARE PLC,0000274100,809.90
Department of Health,East Sussex Hospitals NHS Trust,05/10/2011,AGENCY NURSE - QUALIFIED,Urgent Care,MAYDAY HEALTHCARE PLC,0000274101,596.88
Department of Health,East Sussex Hospitals NHS Trust,05/10/2011,AGENCY SHO - LOCUM,Integrated Care,SERVING THE NATION LOCUMS LTD,0000274104,1335.60
Department of Health,East Sussex Hospitals NHS Trust,05/10/2011,AGENCY OCC THERAPY STAFF,Integrated Care,MEDICONNECT RECRUITMENT,0000274105,1305.00
Department of Health,East Sussex Hospitals NHS Trust,05/10/2011,AGENCY SPECIALIST REG,Urgent Care,CES LOCUMS,0000274106,3669.60
Department of Health,East Sussex Hospitals NHS Trust,05/10/2011,AGENCY SPECIALIST REG,Urgent Care,PROMEDICAL PERSONNEL LTD,0000274129,3902.40
Department of Health,East Sussex Hospitals NHS Trust,05/10/2011,AGENCY SPECIALIST REG,Urgent Care,PROMEDICAL PERSONNEL LTD,0000274130,648.90
Department of Health,East Sussex Hospitals NHS Trust,05/10/2011,AGENCY SPECIALIST REG,Urgent Care,PROMEDICAL PERSONNEL LTD,0000274131,2195.10
Department of Health,East Sussex Hospitals NHS Trust,05/10/2011,AGENCY SPECIALIST REG,Urgent Care,PROMEDICAL PERSONNEL LTD,0000274132,3556.87
Department of Health,East Sussex Hospitals NHS Trust,05/10/2011,AGENCY SPEECH THERAPIST,Integrated Care,REAL STAFFING LTD,0000274187,1507.50
Department of Health,East Sussex Hospitals NHS Trust,05/10/2011,AGENCY SPECIALIST REG,Urgent Care,TLC - THE LOCUM CONSULTANCY,0000274192,4998.00
Department of Health,East Sussex Hospitals NHS Trust,05/10/2011,AGENCY SPECIALIST REG,Integrated Care,MEDACS HEALTHCARE SERVICES LTD,0000274194,4045.06
Department of Health,East Sussex Hospitals NHS Trust,05/10/2011,AGENCY SPEECH THERAPIST,Integrated Care,REAL STAFFING LTD,0000274197,1012.50
Department of Health,East Sussex Hospitals NHS Trust,05/10/2011,AGENCY SPEECH THERAPIST,Integrated Care,REAL STAFFING LTD,0000274198,1687.50
Department of Health,East Sussex Hospitals NHS Trust,05/10/2011,AGENCY RADIOGRAPHY STAFF,Integrated Care,RIG MEDICAL RECRUIT LTD,0000274200,1025.11
Department of Health,East Sussex Hospitals NHS Trust,05/10/2011,AGENCY RADIOGRAPHY STAFF,Integrated Care,RIG MEDICAL RECRUIT LTD,0000274202,1178.94
Department of Health,East Sussex Hospitals NHS Trust,05/10/2011,AGENCY RADIOGRAPHY STAFF,Integrated Care,RIG MEDICAL RECRUIT LTD,0000274203,1178.94
Department of Health,East Sussex Hospitals NHS Trust,05/10/2011,AGENCY RADIOGRAPHY STAFF,Integrated Care,RIG MEDICAL RECRUIT LTD,0000274204,789.60
Department of Health,East Sussex Hospitals NHS Trust,05/10/2011,AGENCY RADIOGRAPHY STAFF,Integrated Care,RIG MEDICAL RECRUIT LTD,0000274205,826.90
Department of Health,East Sussex Hospitals NHS Trust,05/10/2011,AGENCY NURSE - QUALIFIED,Urgent Care,AMBITION,0000274218,1931.13
Department of Health,East Sussex Hospitals NHS Trust,05/10/2011,TRAVEL & SUBSISTENCE,Urgent Care,AMBITION,0000274218,35.10
Department of Health,East Sussex Hospitals NHS Trust,05/10/2011,AGENCY NURSE - QUALIFIED,Urgent Care,AMBITION,0000274305,1908.68
Department of Health,East Sussex Hospitals NHS Trust,05/10/2011,TRAVEL & SUBSISTENCE,Urgent Care,AMBITION,0000274305,33.75
Department of Health,East Sussex Hospitals NHS Trust,05/10/2011,AGENCY NURSE - QUALIFIED,Urgent Care,AMBITION,0000274306,983.16
Department of Health,East Sussex Hospitals NHS Trust,05/10/2011,TRAVEL & SUBSISTENCE,Urgent Care,AMBITION,0000274306,13.50
Department of Health,East Sussex Hospitals NHS Trust,05/10/2011,AGENCY NURSE - QUALIFIED,Urgent Care,AMBITION,0000274308,817.08
Department of Health,East Sussex Hospitals NHS Trust,05/10/2011,TRAVEL & SUBSISTENCE,Urgent Care,AMBITION,0000274308,13.50
Department of Health,East Sussex Hospitals NHS Trust,05/10/2011,AGENCY SPECIALIST REG,Urgent Care,MEDACS HEALTHCARE SERVICES LTD,0000274357,1732.79
Department of Health,East Sussex Hospitals NHS Trust,05/10/2011,AGENCY SPECIALIST REG,Urgent Care,MEDACS HEALTHCARE SERVICES LTD,0000274358,3784.24
Department of Health,East Sussex Hospitals NHS Trust,05/10/2011,AGENCY SPEECH THERAPIST,Integrated Care,REAL STAFFING LTD,0000274360,1507.50
Department of Health,East Sussex Hospitals NHS Trust,05/10/2011,AGENCY SHO - LOCUM,Urgent Care,MEDACS HEALTHCARE SERVICES LTD,0000274364,751.91
Department of Health,East Sussex Hospitals NHS Trust,05/10/2011,AGENCY SPECIALIST REG,Urgent Care,MEDACS HEALTHCARE SERVICES LTD,0000274365,5293.39
Department of Health,East Sussex Hospitals NHS Trust,05/10/2011,AGENCY SPECIALIST REG,Integrated Care,MEDACS HEALTHCARE SERVICES LTD,0000274366,3291.24
Department of Health,East Sussex Hospitals NHS Trust,05/10/2011,AGENCY PHYSIOTHERAPY STAFF,Integrated Care,PIERS MEADOWS RECRUITMENT LIMITED,0000274367,1032.24
Department of Health,East Sussex Hospitals NHS Trust,05/10/2011,AGENCY SPEECH THERAPIST,Integrated Care,REAL STAFFING LTD,0000274368,1350.00
Department of Health,East Sussex Hospitals NHS Trust,05/10/2011,PROVISIONS,Commercial,N H CASE LTD,0000274493,886.30
Department of Health,East Sussex Hospitals NHS Trust,05/10/2011,PROVISIONS,Commercial,N H CASE LTD,0000274496,616.91
Department of Health,East Sussex Hospitals NHS Trust,05/10/2011,AGENCY NURSE - QUALIFIED,Planned Care,ORION LOCUMS LTD,0000274509,1283.54
Department of Health,East Sussex Hospitals NHS Trust,05/10/2011,AGENCY STAFF GRADE,Urgent Care,CAPITAL CARE SERVICES (UK) LTD,0000274548,3354.00
Department of Health,East Sussex Hospitals NHS Trust,05/10/2011,PROVISIONS,Commercial,DAIRY CREST LTD,0000274597,1724.07
Department of Health,East Sussex Hospitals NHS Trust,05/10/2011,PROVISIONS,Commercial,N H CASE LTD,0000274618,1001.40
Department of Health,East Sussex Hospitals NHS Trust,05/10/2011,PROVISIONS,Commercial,DAIRY CREST LTD,0000274624,1144.82
Department of Health,East Sussex Hospitals NHS Trust,05/10/2011,PROVISIONS,Commercial,DAIRY CREST LTD,0000274627,1144.82
Department of Health,East Sussex Hospitals NHS Trust,05/10/2011,AGENCY ANCILLARY,Commercial,INTERWORK RECRUITMENT CONSULTANTS LTD,0000274856,520.23
Department of Health,East Sussex Hospitals NHS Trust,05/10/2011,AGENCY SPECIALIST REG,Urgent Care,CAPITAL CARE SERVICES (UK) LTD,0000274860,8619.00
Department of Health,East Sussex Hospitals NHS Trust,05/10/2011,CONTRACT ENGINEERING MAINT,Commercial,AXIS ELEVATORS LTD,0000356928,393.78
Department of Health,East Sussex Hospitals NHS Trust,05/10/2011,CONTRACT ENGINEERING MAINT,Commercial,AXIS ELEVATORS LTD,0000356928,14.51
Department of Health,East Sussex Hospitals NHS Trust,05/10/2011,CONTRACT ENGINEERING MAINT,Commercial,AXIS ELEVATORS LTD,0000356928,358.90
Department of Health,East Sussex Hospitals NHS Trust,05/10/2011,CONTRACT ENGINEERING MAINT,Commercial,AXIS ELEVATORS LTD,0000356928,35.00
Department of Health,East Sussex Hospitals NHS Trust,05/10/2011,ENGINEERING MATERIALS,Commercial,PTS PLUMBING TRADE SUPPLIES,0000357048,760.20
Department of Health,East Sussex Hospitals NHS Trust,05/10/2011,SUSPENSE(ACCRUALS NOT ACCRUED),Corporate Services,RICOH UK LTD,0000464756,671.85
Department of Health,East Sussex Hospitals NHS Trust,05/10/2011,ELECTRO MEDICAL EQUIPMENT,Planned Care,SMITHS MEDICAL INTERNATIONAL,0000486292,540.00
Department of Health,East Sussex Hospitals NHS Trust,05/10/2011,ELECTRO MEDICAL EQUIPMENT,Planned Care,SMITHS MEDICAL INTERNATIONAL,0000486340,600.00
Department of Health,East Sussex Hospitals NHS Trust,05/10/2011,VAC WOUND M&S SUPPLIES,Planned Care,KCI MEDICAL LTD,0000487688,873.60
Department of Health,East Sussex Hospitals NHS Trust,05/10/2011,LOANER KITS - HIRE CHARGE,Planned Care,SMITH & NEPHEW ORTHOPAEDICS LTD,0000487850,1092.00
Department of Health,East Sussex Hospitals NHS Trust,05/10/2011,PROSTHESES-OTHER,Planned Care,SMITH & NEPHEW ORTHOPAEDICS LTD,0000487850,669.41
Department of Health,East Sussex Hospitals NHS Trust,05/10/2011,LOANER KITS - HIRE CHARGE,Planned Care,SMITH & NEPHEW ORTHOPAEDICS LTD,0000489005,1470.00
Department of Health,East Sussex Hospitals NHS Trust,05/10/2011,PROSTHESES-OTHER,Planned Care,SMITH & NEPHEW ORTHOPAEDICS LTD,0000489005,7319.48
Department of Health,East Sussex Hospitals NHS Trust,05/10/2011,VAC WOUND M&S SUPPLIES,Urgent Care,KCI MEDICAL LTD,0000493062,982.80
Department of Health,East Sussex Hospitals NHS Trust,05/10/2011,RADIOISOTOPES,Integrated Care,COVIDIEN (UK) COMMERCIAL LTD,0000493063,808.80
Department of Health,East Sussex Hospitals NHS Trust,05/10/2011,M&S EQUIPMENT - OTHER,Planned Care,KCI MEDICAL LTD,0000493113,1170.00
Department of Health,East Sussex Hospitals NHS Trust,05/10/2011,GENERAL LAB. CONSUMABLES,Integrated Care,G & N LABORATORY LTD,0000493240,56.06
Department of Health,East Sussex Hospitals NHS Trust,05/10/2011,LAB-CONTAINERS/BOTTLES & CAPS,Integrated Care,G & N LABORATORY LTD,0000493240,191.81
Department of Health,East Sussex Hospitals NHS Trust,05/10/2011,GENERAL LAB. CONSUMABLES,Integrated Care,G & N LABORATORY LTD,0000493240,1586.01
Department of Health,East Sussex Hospitals NHS Trust,05/10/2011,PROSTHESES-HIP,Planned Care,LIMA ORTHOPAEDICS UK LIMITED,0000493258,2479.20
Department of Health,East Sussex Hospitals NHS Trust,05/10/2011,PROSTHESES-OTHER,Planned Care,LIMA ORTHOPAEDICS UK LIMITED,0000493258,331.20
Department of Health,East Sussex Hospitals NHS Trust,05/10/2011,NATIONAL JOINT REGISTRY LEVY,Planned Care,LIMA ORTHOPAEDICS UK LIMITED,0000493258,40.01
Department of Health,East Sussex Hospitals NHS Trust,05/10/2011,PROSTHESIS - SPINAL,Planned Care,ZIMMER LTD,0000493312,4190.40
Department of Health,East Sussex Hospitals NHS Trust,05/10/2011,X-RAY FILM,Integrated Care,AGFA HEALTHCARE UK LTD,0000493313,2696.64
Department of Health,East Sussex Hospitals NHS Trust,05/10/2011,FURNITURE & FITTINGS,Planned Care,BEAVER HEALTHCARE EQUIPMENT,0000493326,755.88
Department of Health,East Sussex Hospitals NHS Trust,05/10/2011,INTERVENTIONAL DISPOSABLES,Urgent Care,BRACCO UK LTD,0000493334,516.00
Department of Health,East Sussex Hospitals NHS Trust,05/10/2011,LAB MATS - SYSMEX HAEM CONS,Integrated Care,SYSMEX UK LTD,0000493341,892.57
Department of Health,East Sussex Hospitals NHS Trust,05/10/2011,CATARACT CONSUMABLES,Planned Care,ALCON LABORATORIES (UK) LTD,0000493343,3774.96
Department of Health,East Sussex Hospitals NHS Trust,05/10/2011,PROSTHESIS - LENS,Planned Care,ALCON LABORATORIES (UK) LTD,0000493344,992.40
Department of Health,East Sussex Hospitals NHS Trust,05/10/2011,GENERAL LAB. CONSUMABLES,Integrated Care,OXOID LIMITED,0000493358,451.82
Department of Health,East Sussex Hospitals NHS Trust,05/10/2011,OTHER MEDIA,Integrated Care,OXOID LIMITED,0000493358,722.74
Department of Health,East Sussex Hospitals NHS Trust,05/10/2011,GENERAL LAB. CONSUMABLES,Integrated Care,OXOID LIMITED,0000493359,510.87
Department of Health,East Sussex Hospitals NHS Trust,05/10/2011,OTHER MEDIA,Integrated Care,OXOID LIMITED,0000493359,1033.97
Department of Health,East Sussex Hospitals NHS Trust,05/10/2011,LASER/LAPARASCOPIC EQUIPMENT,Planned Care,ASPEN MEDICAL EUROPE LTD,0000493363,557.02
Department of Health,East Sussex Hospitals NHS Trust,05/10/2011,M&S GENERAL SUPPLIES-OTHER,Integrated Care,UK MEDICAL LTD,0000493382,1283.76
Department of Health,East Sussex Hospitals NHS Trust,05/10/2011,PATS APPL - FOOTWARE,Planned Care,TALAR-MADE LTD,0000493383,529.75
Department of Health,East Sussex Hospitals NHS Trust,05/10/2011,PROSTHESIS - LENS,Planned Care,ALCON LABORATORIES (UK) LTD,0000493394,1041.60
Department of Health,East Sussex Hospitals NHS Trust,05/10/2011,PROSTHESIS - LENS,Planned Care,ALCON LABORATORIES (UK) LTD,0000493405,967.20
Department of Health,East Sussex Hospitals NHS Trust,05/10/2011,PACEMAKERS,Urgent Care,MEDTRONIC LTD,0000493407,10080.00
Department of Health,East Sussex Hospitals NHS Trust,05/10/2011,M&S GENERAL SUPPLIES-OTHER,Planned Care,CAPITAL DENTAL EQUIPMENT,0000493414,508.75
Department of Health,East Sussex Hospitals NHS Trust,05/10/2011,DIAMED CONSUMABLES,Integrated Care,DIAMED-GB LTD,0000493432,7286.46
Department of Health,East Sussex Hospitals NHS Trust,05/10/2011,GENERAL CHEMICALS,Integrated Care,DIAMED-GB LTD,0000493432,62.22
Department of Health,East Sussex Hospitals NHS Trust,05/10/2011,M&S GENERAL SUPPLIES-OTHER,Planned Care,REPTON MEDICAL LTD (RMSP),0000493437,540.00
Department of Health,East Sussex Hospitals NHS Trust,05/10/2011,CLEANING MATERIALS,Integrated Care,CHEMSOL LIMITED,0000493441,516.48
Department of Health,East Sussex Hospitals NHS Trust,05/10/2011,CARDIOLOGY STENTS,Urgent Care,MEDTRONIC LTD,0000493443,540.00
Department of Health,East Sussex Hospitals NHS Trust,05/10/2011,M&S GENERAL SUPPLIES-OTHER,Urgent Care,ST JUDE MEDICAL UK LIMITED,0000493451,999.36
Department of Health,East Sussex Hospitals NHS Trust,05/10/2011,LAB MATERIALS - NEQAS,Integrated Care,UK NEQAS UK ICC & ISH,0000493470,1500.00
Department of Health,East Sussex Hospitals NHS Trust,05/10/2011,M&S GENERAL SUPPLIES-OTHER,Planned Care,STRYKER UK,0000493478,196.02
Department of Health,East Sussex Hospitals NHS Trust,05/10/2011,SURGICAL INSTRUMENTS,Planned Care,STRYKER UK,0000493478,130.68
Department of Health,East Sussex Hospitals NHS Trust,05/10/2011,PROSTHESES-OTHER,Planned Care,STRYKER UK,0000493478,861.96
Department of Health,East Sussex Hospitals NHS Trust,05/10/2011,PROSTHESES-OTHER,Integrated Care,FORTH MEDICAL,0000493484,807.60
Department of Health,East Sussex Hospitals NHS Trust,05/10/2011,MONOVETTE CONSUMABLES,Integrated Care,GREINER BIO-ONE LTD,0000493489,1492.43
Department of Health,East Sussex Hospitals NHS Trust,05/10/2011,M&S EQUIPMENT - OTHER,Planned Care,FEMCARE-NIKOMED LIMITED,0000493497,822.00
Department of Health,East Sussex Hospitals NHS Trust,05/10/2011,M&S GENERAL SUPPLIES-OTHER,Planned Care,STRYKER UK,0000493533,194.70
Department of Health,East Sussex Hospitals NHS Trust,05/10/2011,SURGICAL INSTRUMENTS,Planned Care,STRYKER UK,0000493533,65.34
Department of Health,East Sussex Hospitals NHS Trust,05/10/2011,PROSTHESES-OTHER,Planned Care,STRYKER UK,0000493533,1326.60
Department of Health,East Sussex Hospitals NHS Trust,05/10/2011,CARDIOLOGY STENTS,Urgent Care,HEXACATH LTD,0000493537,556.80
Department of Health,East Sussex Hospitals NHS Trust,05/10/2011,CPAP VENTILATOR,Planned Care,RESMED (UK) LTD,0000493543,2016.00
Department of Health,East Sussex Hospitals NHS Trust,05/10/2011,M&S GENERAL SUPPLIES-OTHER,Planned Care,RESMED (UK) LTD,0000493543,462.00
Department of Health,East Sussex Hospitals NHS Trust,05/10/2011,M&S GENERAL SUPPLIES-OTHER,Planned Care,RESMED (UK) LTD,0000493544,540.00
Department of Health,East Sussex Hospitals NHS Trust,05/10/2011,CARDIOLOGY STENTS,Urgent Care,ABBOTT VASCULAR,0000493549,924.00
Department of Health,East Sussex Hospitals NHS Trust,05/10/2011,LAB MATS - SYSMEX HAEM CONS,Integrated Care,SYSMEX UK LTD,0000493550,1196.75
Department of Health,East Sussex Hospitals NHS Trust,05/10/2011,M&S GENERAL SUPPLIES-OTHER,Planned Care,STRYKER UK,0000493555,777.60
Department of Health,East Sussex Hospitals NHS Trust,05/10/2011,PROSTHESIS - SPINAL,Planned Care,ZIMMER LTD,0000493559,3008.40
Department of Health,East Sussex Hospitals NHS Trust,05/10/2011,GENERAL LAB. CONSUMABLES,Integrated Care,SYSMEX UK LTD,0000493569,38.05
Department of Health,East Sussex Hospitals NHS Trust,05/10/2011,LAB MATS - SYSMEX HAEM CONS,Integrated Care,SYSMEX UK LTD,0000493569,854.52
Department of Health,East Sussex Hospitals NHS Trust,05/10/2011,INTERVENTIONAL DISPOSABLES,Urgent Care,UK MEDICAL LTD,0000493571,810.00
Department of Health,East Sussex Hospitals NHS Trust,05/10/2011,INTERVENTIONAL DISPOSABLES,Urgent Care,KIMAL PLC (FOR ORDERS),0000493574,560.52
Department of Health,East Sussex Hospitals NHS Trust,05/10/2011,PROSTHESES-OTHER,Planned Care,SURGI C LTD,0000493575,1420.80
Department of Health,East Sussex Hospitals NHS Trust,05/10/2011,M&S GENERAL SUPPLIES-OTHER,Urgent Care,DRAEGER MEDICAL UK LTD,0000493579,1200.00
Department of Health,East Sussex Hospitals NHS Trust,05/10/2011,CARDIOLOGY STENTS,Urgent Care,BOSTON SCIENTIFIC LTD,0000493583,840.00
Department of Health,East Sussex Hospitals NHS Trust,05/10/2011,M&S GENERAL SUPPLIES-OTHER,Planned Care,STRYKER UK,0000493596,52.80
Department of Health,East Sussex Hospitals NHS Trust,05/10/2011,SURGICAL INSTRUMENTS,Planned Care,STRYKER UK,0000493596,576.00
Department of Health,East Sussex Hospitals NHS Trust,05/10/2011,PROSTHESES-OTHER,Planned Care,STRYKER UK,0000493596,149.16
Department of Health,East Sussex Hospitals NHS Trust,05/10/2011,PROSTHESES-OTHER,Planned Care,STRYKER UK,0000493597,1074.12
Department of Health,East Sussex Hospitals NHS Trust,05/10/2011,GENERAL LAB. CONSUMABLES,Integrated Care,BIOMERIEUX UK LTD,0000493603,1066.90
Department of Health,East Sussex Hospitals NHS Trust,05/10/2011,M&S GENERAL SUPPLIES-OTHER,Planned Care,JOHNSON & JOHNSON MEDICAL LTD,0000493629,2195.74
Department of Health,East Sussex Hospitals NHS Trust,05/10/2011,STAPLING DEVICES,Planned Care,JOHNSON & JOHNSON MEDICAL LTD,0000493631,1185.58
Department of Health,East Sussex Hospitals NHS Trust,05/10/2011,M&S EQUIPMENT - OTHER,Planned Care,JOHNSON & JOHNSON MEDICAL LTD,0000493674,729.24
Department of Health,East Sussex Hospitals NHS Trust,05/10/2011,M&S GENERAL SUPPLIES-OTHER,Planned Care,JOHNSON & JOHNSON MEDICAL LTD,0000493674,1061.35
Department of Health,East Sussex Hospitals NHS Trust,05/10/2011,M&S GENERAL SUPPLIES-OTHER,Planned Care,JOHNSON & JOHNSON MEDICAL LTD,0000493680,1964.28
Department of Health,East Sussex Hospitals NHS Trust,05/10/2011,PROSTHESES-HIP,Planned Care,LIMA ORTHOPAEDICS UK LIMITED,0000493687,814.80
Department of Health,East Sussex Hospitals NHS Trust,05/10/2011,PROSTHESES-OTHER,Planned Care,LIMA ORTHOPAEDICS UK LIMITED,0000493687,248.40
Department of Health,East Sussex Hospitals NHS Trust,05/10/2011,NATIONAL JOINT REGISTRY LEVY,Planned Care,LIMA ORTHOPAEDICS UK LIMITED,0000493687,20.00
Department of Health,East Sussex Hospitals NHS Trust,05/10/2011,HARDWARE & CROCKERY,Commercial,CASH CONTROL MACHINES (PRICEMARKING) LTD,0000493784,874.46
Department of Health,East Sussex Hospitals NHS Trust,05/10/2011,M&S GENERAL SUPPLIES-OTHER,Urgent Care,BOSTON SCIENTIFIC LTD,0000493785,120.00
Department of Health,East Sussex Hospitals NHS Trust,05/10/2011,INTERVENTIONAL DISPOSABLES,Urgent Care,BOSTON SCIENTIFIC LTD,0000493785,1080.00
Department of Health,East Sussex Hospitals NHS Trust,05/10/2011,CARDIOLOGY CATHETERS,Urgent Care,BOSTON SCIENTIFIC LTD,0000493785,393.60
Department of Health,East Sussex Hospitals NHS Trust,05/10/2011,MEDICAL GASES,Integrated Care,BOC (MANCHESTER)LTD,0000493790,17.94
Department of Health,East Sussex Hospitals NHS Trust,05/10/2011,M&S GENERAL SUPPLIES-OTHER,Integrated Care,BOC (MANCHESTER)LTD,0000493790,680.40
Department of Health,East Sussex Hospitals NHS Trust,05/10/2011,LOANER KITS - HIRE CHARGE,Planned Care,NORTHSTAR ORTHOPAEDICS LIMITED,0000493799,480.00
Department of Health,East Sussex Hospitals NHS Trust,05/10/2011,PROSTHESES-OTHER,Planned Care,NORTHSTAR ORTHOPAEDICS LIMITED,0000493799,2059.20
Department of Health,East Sussex Hospitals NHS Trust,05/10/2011,VAC WOUND M&S SUPPLIES,Urgent Care,KCI MEDICAL LTD,0000493802,1450.80
Department of Health,East Sussex Hospitals NHS Trust,05/10/2011,M&S EQUIPMENT - OTHER,Planned Care,KCI MEDICAL LTD,0000493806,1450.80
Department of Health,East Sussex Hospitals NHS Trust,05/10/2011,GENERAL LAB. CONSUMABLES,Integrated Care,OXOID LIMITED,0000493835,328.58
Department of Health,East Sussex Hospitals NHS Trust,05/10/2011,OTHER MEDIA,Integrated Care,OXOID LIMITED,0000493835,567.17
Department of Health,East Sussex Hospitals NHS Trust,05/10/2011,GENERAL LAB. CONSUMABLES,Integrated Care,OXOID LIMITED,0000493836,605.89
Department of Health,East Sussex Hospitals NHS Trust,05/10/2011,OTHER MEDIA,Integrated Care,OXOID LIMITED,0000493836,421.37
Department of Health,East Sussex Hospitals NHS Trust,05/10/2011,PROSTHESIS - SPINAL,Planned Care,ZIMMER LTD,0000493841,3008.40
Department of Health,East Sussex Hospitals NHS Trust,05/10/2011,GENERAL LAB. CONSUMABLES,Integrated Care,BIOMERIEUX UK LTD,0000493849,437.09
Department of Health,East Sussex Hospitals NHS Trust,05/10/2011,GENERAL CHEMICALS,Integrated Care,BIOMERIEUX UK LTD,0000493849,363.39
Department of Health,East Sussex Hospitals NHS Trust,05/10/2011,SURGICAL INSTRUMENTS,Planned Care,BOSTON SCIENTIFIC LTD,0000493867,3000.00
Department of Health,East Sussex Hospitals NHS Trust,05/10/2011,PROSTHESES-HIP,Planned Care,STRYKER UK,0000493884,6075.40
Department of Health,East Sussex Hospitals NHS Trust,05/10/2011,PROSTHESES-OTHER,Planned Care,STRYKER UK,0000493884,-171.16
Department of Health,East Sussex Hospitals NHS Trust,05/10/2011,NATIONAL JOINT REGISTRY LEVY,Planned Care,STRYKER UK,0000493884,60.01
Department of Health,East Sussex Hospitals NHS Trust,05/10/2011,M&S GENERAL SUPPLIES-OTHER,Planned Care,STRYKER UK,0000493885,68.04
Department of Health,East Sussex Hospitals NHS Trust,05/10/2011,SURGICAL INSTRUMENTS,Planned Care,STRYKER UK,0000493885,65.34
Department of Health,East Sussex Hospitals NHS Trust,05/10/2011,PROSTHESES-OTHER,Planned Care,STRYKER UK,0000493885,716.88
Department of Health,East Sussex Hospitals NHS Trust,05/10/2011,M&S GENERAL SUPPLIES-OTHER,Planned Care,STRYKER UK,0000493886,1555.20
Department of Health,East Sussex Hospitals NHS Trust,05/10/2011,SURGICAL INSTRUMENTS,Planned Care,STRYKER UK,0000493920,384.00
Department of Health,East Sussex Hospitals NHS Trust,05/10/2011,PROSTHESES-HIP,Planned Care,STRYKER UK,0000493920,256.80
Department of Health,East Sussex Hospitals NHS Trust,05/10/2011,PROSTHESES-OTHER,Planned Care,STRYKER UK,0000493920,588.00
Department of Health,East Sussex Hospitals NHS Trust,05/10/2011,GENERAL LAB. CONSUMABLES,Integrated Care,OXOID LIMITED,0000493949,474.30
Department of Health,East Sussex Hospitals NHS Trust,05/10/2011,OTHER MEDIA,Integrated Care,OXOID LIMITED,0000493949,434.70
Department of Health,East Sussex Hospitals NHS Trust,05/10/2011,M&S GENERAL SUPPLIES-OTHER,Planned Care,MOLNLYCKE HEALTHCARE,0000493967,33.29
Department of Health,East Sussex Hospitals NHS Trust,05/10/2011,PRE-STERILE COMMERCIAL PACKS,Planned Care,MOLNLYCKE HEALTHCARE,0000493967,410.40
Department of Health,East Sussex Hospitals NHS Trust,05/10/2011,DISPOSABLE DRAPES,Planned Care,MOLNLYCKE HEALTHCARE,0000493967,2746.80
Department of Health,East Sussex Hospitals NHS Trust,05/10/2011,DISPOSABLE DRAPES,Planned Care,MOLNLYCKE HEALTHCARE,0000493976,898.44
Department of Health,East Sussex Hospitals NHS Trust,05/10/2011,SURGICAL INSTRUMENTS,Planned Care,STRYKER UK,0000493978,16.20
Department of Health,East Sussex Hospitals NHS Trust,05/10/2011,PROSTHESES-HIP,Planned Care,STRYKER UK,0000493978,514.68
Department of Health,East Sussex Hospitals NHS Trust,05/10/2011,M&S GENERAL SUPPLIES-OTHER,Planned Care,STRYKER UK,0000493979,85.62
Department of Health,East Sussex Hospitals NHS Trust,05/10/2011,PROSTHESES-OTHER,Planned Care,STRYKER UK,0000493979,720.36
Department of Health,East Sussex Hospitals NHS Trust,05/10/2011,M&S GENERAL SUPPLIES-OTHER,Integrated Care,PHILIPS MEDICAL SYSTEMS UK LTD,0000493982,16385.20
Department of Health,East Sussex Hospitals NHS Trust,05/10/2011,PROSTHESES-HIP,Planned Care,LIMA ORTHOPAEDICS UK LIMITED,0000493983,2168.40
Department of Health,East Sussex Hospitals NHS Trust,05/10/2011,PROSTHESES-OTHER,Planned Care,LIMA ORTHOPAEDICS UK LIMITED,0000493983,248.40
Department of Health,East Sussex Hospitals NHS Trust,05/10/2011,NATIONAL JOINT REGISTRY LEVY,Planned Care,LIMA ORTHOPAEDICS UK LIMITED,0000493983,40.01
Department of Health,East Sussex Hospitals NHS Trust,05/10/2011,FURNITURE & FITTINGS,Integrated Care,H C  SLINGSBY PLC,0000493986,3714.00
Department of Health,East Sussex Hospitals NHS Trust,05/10/2011,M&S GENERAL SUPPLIES-OTHER,Planned Care,STRYKER UK,0000494083,31.68
Department of Health,East Sussex Hospitals NHS Trust,05/10/2011,SURGICAL INSTRUMENTS,Planned Care,STRYKER UK,0000494083,130.68
Department of Health,East Sussex Hospitals NHS Trust,05/10/2011,PROSTHESES-OTHER,Planned Care,STRYKER UK,0000494083,3123.78
Department of Health,East Sussex Hospitals NHS Trust,05/10/2011,PROSTHESES-OTHER,Planned Care,SMITH & NEPHEW ORTHOPAEDICS LTD,0000494084,1189.48
Department of Health,East Sussex Hospitals NHS Trust,05/10/2011,M&S GENERAL SUPPLIES-OTHER,Planned Care,FISHER & PAYKEL HEALTHCARE LTD,0000494087,564.00
Department of Health,East Sussex Hospitals NHS Trust,05/10/2011,M&S GENERAL SUPPLIES-OTHER,Integrated Care,KIMAL PLC (FOR ORDERS),0000494098,846.72
Department of Health,East Sussex Hospitals NHS Trust,05/10/2011,PATS APPL - FOOTWARE,Urgent Care,V-M MARKETING ORTHOTICS INTERNATIONAL,0000494103,750.00
Department of Health,East Sussex Hospitals NHS Trust,05/10/2011,CARDIOLOGY STENTS,Urgent Care,MEDTRONIC LTD,0000494105,1080.00
Department of Health,East Sussex Hospitals NHS Trust,05/10/2011,PRE-STERILE COMMERCIAL PACKS,Planned Care,MOLNLYCKE HEALTHCARE,0000494109,410.40
Department of Health,East Sussex Hospitals NHS Trust,05/10/2011,DISPOSABLE DRAPES,Planned Care,MOLNLYCKE HEALTHCARE,0000494109,2684.52
Department of Health,East Sussex Hospitals NHS Trust,05/10/2011,M&S GENERAL SUPPLIES-OTHER,Planned Care,STRYKER UK,0000494111,163.68
Department of Health,East Sussex Hospitals NHS Trust,05/10/2011,PROSTHESES-OTHER,Planned Care,STRYKER UK,0000494111,988.02
Department of Health,East Sussex Hospitals NHS Trust,05/10/2011,SURGICAL INSTRUMENTS,Planned Care,JUDD MEDICAL,0000494137,576.00
Department of Health,East Sussex Hospitals NHS Trust,05/10/2011,PROSTHESES-HIP,Planned Care,STRYKER UK,0000494150,762.00
Department of Health,East Sussex Hospitals NHS Trust,05/10/2011,M&S GENERAL SUPPLIES-OTHER,Planned Care,STRYKER UK,0000494151,1555.20
Department of Health,East Sussex Hospitals NHS Trust,05/10/2011,PROSTHESES-HIP,Planned Care,STRYKER UK,0000494154,959.40
Department of Health,East Sussex Hospitals NHS Trust,05/10/2011,GENERAL LAB. CONSUMABLES,Integrated Care,INSTRUMENTATION LABORATORIES UK LTD,0000494184,-611.04
Department of Health,East Sussex Hospitals NHS Trust,05/10/2011,PROSTHESES-OTHER,Planned Care,STRYKER UK,0000494198,-861.48
Department of Health,East Sussex Hospitals NHS Trust,05/10/2011,M&S GENERAL SUPPLIES-OTHER,Urgent Care,PULMOLINK,0000494273,594.00
Department of Health,East Sussex Hospitals NHS Trust,05/10/2011,ENGINEERING MATERIALS,Commercial,KENT BEARINGS (HASTINGS),0000494446,526.48
Department of Health,East Sussex Hospitals NHS Trust,05/10/2011,WHEELCHAIR,Integrated Care,SOUTHERN MOBILITY CENTRE,0000494463,3175.20
Department of Health,East Sussex Hospitals NHS Trust,05/10/2011,LAUNDRY EQUIPMENT (PACKING),Commercial,FIELDSKILL CONQUEST LTD,0000494523,532.08
Department of Health,East Sussex Hospitals NHS Trust,05/10/2011,SENSITIVITY DISKS,Integrated Care,OXOID LIMITED,0000494525,406.02
Department of Health,East Sussex Hospitals NHS Trust,05/10/2011,GENERAL LAB. CONSUMABLES,Integrated Care,OXOID LIMITED,0000494525,53.24
Department of Health,East Sussex Hospitals NHS Trust,05/10/2011,GENERAL CHEMICALS,Integrated Care,OXOID LIMITED,0000494525,84.84
Department of Health,East Sussex Hospitals NHS Trust,05/10/2011,OTHER MEDIA,Integrated Care,OXOID LIMITED,0000494525,12.12
Department of Health,East Sussex Hospitals NHS Trust,05/10/2011,M&S GENERAL SUPPLIES-OTHER,Commercial,MOLNLYCKE HEALTHCARE,0000494605,1426.35
Department of Health,East Sussex Hospitals NHS Trust,05/10/2011,SURGICAL INSTRUMENTS,Planned Care,ORTHO SOLUTIONS LTD,0000494617,641.40
Department of Health,East Sussex Hospitals NHS Trust,05/10/2011,DISPOSABLE DRAPES,Planned Care,MOLNLYCKE HEALTHCARE,0000494626,1872.48
Department of Health,East Sussex Hospitals NHS Trust,05/10/2011,CONTRACT ENGINEERING MAINT,Commercial,INDUSTRIAL ELECTRICAL CONTRACTORS,0000494672,557.40
Department of Health,East Sussex Hospitals NHS Trust,05/10/2011,"BOOKS, JOURNALS & SUBCRIPTIONS",Corporate Services,WEALDEN ADVERTISER LTD,0000494700,2985.00
Department of Health,East Sussex Hospitals NHS Trust,05/10/2011,VAC WOUND M&S SUPPLIES,Planned Care,KCI MEDICAL LTD,0000494769,-1357.20
Department of Health,East Sussex Hospitals NHS Trust,05/10/2011,LOANER KITS - HIRE CHARGE,Planned Care,SMITH & NEPHEW ORTHOPAEDICS LTD,0000494841,672.00
Department of Health,East Sussex Hospitals NHS Trust,05/10/2011,PROSTHESES-OTHER,Planned Care,SMITH & NEPHEW ORTHOPAEDICS LTD,0000494841,2198.04
Department of Health,East Sussex Hospitals NHS Trust,05/10/2011,M&S EQUIPMENT - OTHER,Integrated Care,PATTERSON MEDICAL LTD,0000495250,661.20
Department of Health,East Sussex Hospitals NHS Trust,05/10/2011,FURNITURE & FITTINGS,Integrated Care,PATTERSON MEDICAL LTD,0000495250,394.34
Department of Health,East Sussex Hospitals NHS Trust,05/10/2011,IMMUNONOLOGY REAGENTS,Integrated Care,INSTRUMENTATION LABORATORIES UK LTD,0000590644,938.40
Department of Health,East Sussex Hospitals NHS Trust,05/10/2011,IMMUNONOLOGY REAGENTS,Integrated Care,PHADIA LTD,0000593558,917.10
Department of Health,East Sussex Hospitals NHS Trust,05/10/2011,CARDIOLOGY CATHETERS,Urgent Care,PYRAMED LIMITED,0000593583,684.00
Department of Health,East Sussex Hospitals NHS Trust,05/10/2011,INTERVENTIONAL DISPOSABLES,Urgent Care,ST JUDE MEDICAL UK LIMITED,0000593610,1104.00
Department of Health,East Sussex Hospitals NHS Trust,05/10/2011,HIRE OF SPECIAL BEDS,Urgent Care,KCI MEDICAL LTD,0000593613,556.80
Department of Health,East Sussex Hospitals NHS Trust,05/10/2011,HIRE OF SPECIAL BEDS,Urgent Care,KCI MEDICAL LTD,0000593613,38.40
Department of Health,East Sussex Hospitals NHS Trust,05/10/2011,HIRE OF SPECIAL BEDS,Planned Care,KCI MEDICAL LTD,0000593614,595.20
Department of Health,East Sussex Hospitals NHS Trust,05/10/2011,M&S EQUIPMENT - OTHER,Planned Care,WASSENBURG MEDICAL DEVICES,0000593618,496.81
Department of Health,East Sussex Hospitals NHS Trust,05/10/2011,M&S GENERAL SUPPLIES-OTHER,Planned Care,WASSENBURG MEDICAL DEVICES,0000593618,18.00
Department of Health,East Sussex Hospitals NHS Trust,05/10/2011,SEROLOGY REAGENTS,Integrated Care,ALERE LTD,0000593628,2133.64
Department of Health,East Sussex Hospitals NHS Trust,05/10/2011,M&S GENERAL SUPPLIES-OTHER,Planned Care,PURICORE INTERNATIONAL LTD,0000593634,743.18
Department of Health,East Sussex Hospitals NHS Trust,05/10/2011,WHEELCHAIR,Integrated Care,GERALD SIMONDS HEALTHCARE LTD,0000593635,901.20
Department of Health,East Sussex Hospitals NHS Trust,05/10/2011,VIDAS REAGENTS,Integrated Care,ABBOTT LABORATORIES LTD,0000593638,4744.43
Department of Health,East Sussex Hospitals NHS Trust,05/10/2011,M&S GENERAL SUPPLIES-OTHER,Planned Care,PURICORE INTERNATIONAL LTD,0000593640,588.29
Department of Health,East Sussex Hospitals NHS Trust,05/10/2011,MINOR EQUIPMENT PURCHASE,Integrated Care,ABBOTT LABORATORIES LTD,0000593645,131.89
Department of Health,East Sussex Hospitals NHS Trust,05/10/2011,VIDAS REAGENTS,Integrated Care,ABBOTT LABORATORIES LTD,0000593645,666.12
Department of Health,East Sussex Hospitals NHS Trust,05/10/2011,M&S EQUIPMENT - OTHER,Planned Care,ARJO HUNTLEIGH,0000593651,702.00
Department of Health,East Sussex Hospitals NHS Trust,05/10/2011,M&S GENERAL SUPPLIES-OTHER,Commercial,SYNERGY HEALTH,0000593652,278.37
Department of Health,East Sussex Hospitals NHS Trust,05/10/2011,PRE-STERILE COMMERCIAL PACKS,Commercial,SYNERGY HEALTH,0000593652,807.84
Department of Health,East Sussex Hospitals NHS Trust,05/10/2011,M&S GENERAL SUPPLIES-OTHER,Integrated Care,UK MEDICAL LTD,0000593696,543.00
Department of Health,East Sussex Hospitals NHS Trust,05/10/2011,M&S GENERAL SUPPLIES-OTHER,Planned Care,LANCER UK LTD,0000593698,689.85
Department of Health,East Sussex Hospitals NHS Trust,05/10/2011,ENDOSCOPY CONSUMABLES,Planned Care,BOSTON SCIENTIFIC LTD,0000593700,504.00
Department of Health,East Sussex Hospitals NHS Trust,05/10/2011,COMPUTER CONSUMABLES,Commercial,IDENTIFICATION SYSTEMS,0000593739,270.00
Department of Health,East Sussex Hospitals NHS Trust,05/10/2011,OTHER STATIONERY,Commercial,IDENTIFICATION SYSTEMS,0000593739,301.20
Department of Health,East Sussex Hospitals NHS Trust,05/10/2011,GENERAL LAB. CONSUMABLES,Integrated Care,G & N LABORATORY LTD,0000593740,264.00
Department of Health,East Sussex Hospitals NHS Trust,05/10/2011,LAB-CONTAINERS/BOTTLES & CAPS,Integrated Care,G & N LABORATORY LTD,0000593740,2452.20
Department of Health,East Sussex Hospitals NHS Trust,05/10/2011,INTERVASCULAR STENTS,Integrated Care,COOK (UK) LTD,0000593747,720.00
Department of Health,East Sussex Hospitals NHS Trust,05/10/2011,LAPARASCOPIC EQUIP-UROLOGICAL,Planned Care,CORY BROS,0000593748,3648.00
Department of Health,East Sussex Hospitals NHS Trust,05/10/2011,INTERVENTIONAL DISPOSABLES,Urgent Care,MEDTRONIC LTD,0000593752,672.00
Department of Health,East Sussex Hospitals NHS Trust,05/10/2011,IMPLANTABLE DEFIBRILLATOR,Urgent Care,MEDTRONIC LTD,0000593753,19800.00
Department of Health,East Sussex Hospitals NHS Trust,05/10/2011,PRE-STERILE COMMERCIAL PACKS,Commercial,UNIFIED MEDICAL PRODUCTS,0000593764,897.48
Department of Health,East Sussex Hospitals NHS Trust,05/10/2011,DRESSINGS-OTHER,Commercial,INVACARE UK LTD,0000593765,1005.84
Department of Health,East Sussex Hospitals NHS Trust,05/10/2011,CARDIOLOGY CATHETERS,Urgent Care,MEDTRONIC LTD,0000593769,14400.00
Department of Health,East Sussex Hospitals NHS Trust,05/10/2011,IMPLANTABLE DEFIBRILLATOR,Urgent Care,MEDTRONIC LTD,0000593770,20400.00
Department of Health,East Sussex Hospitals NHS Trust,05/10/2011,PACEMAKERS,Urgent Care,MEDTRONIC LTD,0000593771,11880.00
Department of Health,East Sussex Hospitals NHS Trust,05/10/2011,SURGICAL INSTRUMENTS,Planned Care,MEDTRONIC LTD,0000593791,541.20
Department of Health,East Sussex Hospitals NHS Trust,05/10/2011,LAPARASCOPIC EQUIP-UROLOGICAL,Planned Care,CORY BROS,0000593798,3648.00
Department of Health,East Sussex Hospitals NHS Trust,05/10/2011,CARDIOLOGY STENTS,Urgent Care,ABBOTT VASCULAR,0000593805,1540.00
Department of Health,East Sussex Hospitals NHS Trust,05/10/2011,IMPLANTABLE DEFIBRILLATOR,Urgent Care,MEDTRONIC LTD,0000593807,18300.00
Department of Health,East Sussex Hospitals NHS Trust,05/10/2011,IMPLANTABLE DEFIBRILLATOR,Urgent Care,MEDTRONIC LTD,0000593808,20400.00
Department of Health,East Sussex Hospitals NHS Trust,05/10/2011,IMPLANTABLE DEFIBRILLATOR,Urgent Care,MEDTRONIC LTD,0000593809,18300.00
Department of Health,East Sussex Hospitals NHS Trust,05/10/2011,PACEMAKERS,Urgent Care,MEDTRONIC LTD,0000593812,49890.00
Department of Health,East Sussex Hospitals NHS Trust,05/10/2011,RENAL STENTS,Planned Care,PORGES,0000593821,4725.00
Department of Health,East Sussex Hospitals NHS Trust,05/10/2011,PRE-STERILE COMMERCIAL PACKS,Commercial,PELICAN HEALTHCARE LTD,0000593828,2691.58
Department of Health,East Sussex Hospitals NHS Trust,05/10/2011,DRESSINGS-OTHER,Commercial,BARD LTD,0000593829,1168.80
Department of Health,East Sussex Hospitals NHS Trust,05/10/2011,TSSU INSTRUMENTATION,Commercial,CATERHAM SURGICAL SUPPLIES LTD,0000593830,717.77
Department of Health,East Sussex Hospitals NHS Trust,05/10/2011,M&S GENERAL SUPPLIES-OTHER,Integrated Care,COOK (UK) LTD,0000593852,630.00
Department of Health,East Sussex Hospitals NHS Trust,05/10/2011,SURGICAL INSTRUMENTS,Planned Care,MDM MEDICAL LTD,0000593854,1204.80
Department of Health,East Sussex Hospitals NHS Trust,05/10/2011,M&S GENERAL SUPPLIES-OTHER,Planned Care,BOSTON SCIENTIFIC LTD,0000593858,583.20
Department of Health,East Sussex Hospitals NHS Trust,05/10/2011,INTERVENTIONAL DISPOSABLES,Integrated Care,KIMAL PLC (FOR ORDERS),0000593861,1597.20
Department of Health,East Sussex Hospitals NHS Trust,05/10/2011,X-RAY - EQUIPMENT & MATERIALS,Urgent Care,BRACCO UK LTD,0000593867,3096.00
Department of Health,East Sussex Hospitals NHS Trust,05/10/2011,M&S GENERAL SUPPLIES-OTHER,Urgent Care,BRACCO UK LTD,0000593868,960.00
Department of Health,East Sussex Hospitals NHS Trust,05/10/2011,LOANER KITS - HIRE CHARGE,Planned Care,STRYKER UK,0000593869,324.00
Department of Health,East Sussex Hospitals NHS Trust,05/10/2011,PROSTHESES-OTHER,Planned Care,STRYKER UK,0000593869,5100.00
Department of Health,East Sussex Hospitals NHS Trust,05/10/2011,PROSTHESIS - GRAFTS,Planned Care,BARD LTD,0000593871,1501.90
Department of Health,East Sussex Hospitals NHS Trust,05/10/2011,DRUGS-HAEMAPHILIA PRODUCTS,Integrated Care,CSL BEHRING,0000593885,1600.00
Department of Health,East Sussex Hospitals NHS Trust,05/10/2011,LAUNDRY EQUIPMENT (PACKING),Commercial,STEVENAGE PACKAGING LTD,0000593891,5192.02
Department of Health,East Sussex Hospitals NHS Trust,05/10/2011,MED EQUIPMENT LEASES,Integrated Care,GE CAPITAL EQUIPMENT FINANCE LTD,0000593898,47418.01
Department of Health,East Sussex Hospitals NHS Trust,05/10/2011,TSSU INSTRUMENTATION,Commercial,B BRAUN MEDICAL LTD,0000593899,4619.22
Department of Health,East Sussex Hospitals NHS Trust,05/10/2011,CONT.MAIN-MED & SURG EQUIP,Commercial,JOHN WEISS & SONS LTD,0000593926,439.69
Department of Health,East Sussex Hospitals NHS Trust,05/10/2011,CONT.MAIN-MED & SURG EQUIP,Commercial,JOHN WEISS & SONS LTD,0000593927,1758.93
Department of Health,East Sussex Hospitals NHS Trust,05/10/2011,CAPITAL EXPENDITURE,Other Central,CAPITA IB SOLUTIONS (UK)LTD,0000593964,1000.00
Department of Health,East Sussex Hospitals NHS Trust,05/10/2011,LASER/LAPARASCOPIC EQUIPMENT,Planned Care,JOHNSON & JOHNSON MEDICAL LTD,0000594012,2925.25
Department of Health,East Sussex Hospitals NHS Trust,05/10/2011,ENDOSCOPIC INSTRUMENTS,Planned Care,JOHNSON & JOHNSON MEDICAL LTD,0000594013,5133.60
Department of Health,East Sussex Hospitals NHS Trust,05/10/2011,PRE-STERILE COMMERCIAL PACKS,Commercial,ROCIALLE INHEALTH,0000594021,1039.84
Department of Health,East Sussex Hospitals NHS Trust,05/10/2011,CARDIOLOGY STENTS,Urgent Care,MEDTRONIC LTD,0000594030,504.00
Department of Health,East Sussex Hospitals NHS Trust,05/10/2011,IMPLANTABLE DEFIBRILLATOR,Urgent Care,ST JUDE MEDICAL UK LIMITED,0000594031,20280.00
Department of Health,East Sussex Hospitals NHS Trust,05/10/2011,CARDIOLOGY CATHETERS,Urgent Care,BOSTON SCIENTIFIC LTD,0000594036,66.00
Department of Health,East Sussex Hospitals NHS Trust,05/10/2011,CARDIOLOGY STENTS,Urgent Care,BOSTON SCIENTIFIC LTD,0000594036,474.00
Department of Health,East Sussex Hospitals NHS Trust,05/10/2011,CARDIOLOGY CATHETERS,Urgent Care,JOHNSON & JOHNSON MEDICAL LTD,0000594056,3222.00
Department of Health,East Sussex Hospitals NHS Trust,05/10/2011,CARDIOLOGY CATHETERS,Urgent Care,JOHNSON & JOHNSON MEDICAL LTD,0000594057,3582.00
Department of Health,East Sussex Hospitals NHS Trust,05/10/2011,CONT.MAIN-MED & SURG EQUIP,Commercial,KARL STORZ  ENDOSCOPY (UK) LTD,0000594121,1182.00
Department of Health,East Sussex Hospitals NHS Trust,05/10/2011,M&S EQUIPMENT - OTHER,Planned Care,FOCUS MEDICAL SERVICES LTD,0000594162,1330.00
Department of Health,East Sussex Hospitals NHS Trust,05/10/2011,LAUNDRY-DETERGENTS,Commercial,CHRISTEYNS UK LTD,0000594173,7792.32
Department of Health,East Sussex Hospitals NHS Trust,05/10/2011,CONT.MAIN-MED & SURG EQUIP,Commercial,STRYKER UK,0000594239,525.00
Department of Health,East Sussex Hospitals NHS Trust,05/10/2011,M&S EQUIPMENT - OTHER,Planned Care,DRAEGER MEDICAL UK LTD,0000594275,966.00
Department of Health,East Sussex Hospitals NHS Trust,05/10/2011,COMPUTER HARDWARE,Urgent Care,KELWAY (UK) LTD,0000594341,475.20
Department of Health,East Sussex Hospitals NHS Trust,05/10/2011,COMPUTER MAINTENANCE-HARDWARE,Urgent Care,KELWAY (UK) LTD,0000594341,72.00
Department of Health,East Sussex Hospitals NHS Trust,05/10/2011,M&S EQUIPMENT - OTHER,Planned Care,STRYKER UK,0000594377,609.84
Department of Health,East Sussex Hospitals NHS Trust,05/10/2011,LOANER KITS - HIRE CHARGE,Planned Care,HOSPITAL INNOVATIONS LTD,0000594401,1963.20
Department of Health,East Sussex Hospitals NHS Trust,05/10/2011,PRE-STERILE COMMERCIAL PACKS,Commercial,ROCIALLE INHEALTH,0000594493,634.40
Department of Health,East Sussex Hospitals NHS Trust,05/10/2011,VIDAS REAGENTS,Integrated Care,BIOMERIEUX UK LTD,0000594631,1652.45
Department of Health,East Sussex Hospitals NHS Trust,05/10/2011,CONT.MAIN-MED & SURG EQUIP,Commercial,STRYKER UK,0000594661,2336.04
Department of Health,East Sussex Hospitals NHS Trust,05/10/2011,CONT.MAIN-MED & SURG EQUIP,Commercial,STRYKER UK,0000594662,5251.68
Department of Health,East Sussex Hospitals NHS Trust,05/10/2011,LOANER KITS - HIRE CHARGE,Planned Care,STRYKER UK,0000594686,324.00
Department of Health,East Sussex Hospitals NHS Trust,05/10/2011,PROSTHESES-OTHER,Planned Care,STRYKER UK,0000594686,2094.00
Department of Health,East Sussex Hospitals NHS Trust,05/10/2011,PROSTHESES-OTHER,Planned Care,LAVENDER MEDICAL,0000594854,2616.00
Department of Health,East Sussex Hospitals NHS Trust,05/10/2011,CONSULTANCY FEES,Corporate Services,FINNAMORE LTD,0000595052,750.00
Department of Health,East Sussex Hospitals NHS Trust,05/10/2011,ELECTRO MEDICAL EQUIPMENT,Planned Care,LANCER UK LTD,0000595069,7620.00
Department of Health,East Sussex Hospitals NHS Trust,05/10/2011,M&S GENERAL SUPPLIES-OTHER,Commercial,FIELDSKILL CONQUEST LTD,0000595098,542.06
Department of Health,East Sussex Hospitals NHS Trust,05/10/2011,OTHER STATIONERY,Commercial,FIELDSKILL CONQUEST LTD,0000595098,27.29
Department of Health,East Sussex Hospitals NHS Trust,05/10/2011,M&S GENERAL SUPPLIES-OTHER,Commercial,STERIPHARM UK LTD,0000595134,1503.59
Department of Health,East Sussex Hospitals NHS Trust,05/10/2011,PRE-STERILE COMMERCIAL PACKS,Commercial,STERIPHARM UK LTD,0000595134,817.34
Department of Health,East Sussex Hospitals NHS Trust,05/10/2011,DISPOSABLE DRAPES,Commercial,STERIPHARM UK LTD,0000595134,285.58
Department of Health,East Sussex Hospitals NHS Trust,05/10/2011,M&S GENERAL SUPPLIES-OTHER,Commercial,STERIPHARM UK LTD,0000595135,1633.53
Department of Health,East Sussex Hospitals NHS Trust,05/10/2011,PRE-STERILE COMMERCIAL PACKS,Commercial,STERIPHARM UK LTD,0000595135,395.14
Department of Health,East Sussex Hospitals NHS Trust,05/10/2011,DISPOSABLE DRAPES,Commercial,STERIPHARM UK LTD,0000595135,1709.42
Department of Health,East Sussex Hospitals NHS Trust,05/10/2011,M&S GENERAL SUPPLIES-OTHER,Commercial,STERIPHARM UK LTD,0000595136,2131.74
Department of Health,East Sussex Hospitals NHS Trust,05/10/2011,PRE-STERILE COMMERCIAL PACKS,Commercial,STERIPHARM UK LTD,0000595136,980.64
Department of Health,East Sussex Hospitals NHS Trust,05/10/2011,PRE-STERILE COMMERCIAL PACKS,Commercial,STERIPHARM UK LTD,0000595137,352.80
Department of Health,East Sussex Hospitals NHS Trust,05/10/2011,DISPOSABLE DRAPES,Commercial,STERIPHARM UK LTD,0000595137,769.56
Department of Health,East Sussex Hospitals NHS Trust,05/10/2011,CONTRACT ENGINEERING MAINT,Commercial,HOBART UK,0000617921,2954.04
Department of Health,East Sussex Hospitals NHS Trust,05/10/2011,ENGINEERING MATERIALS,Commercial,ALSFORD TIMBER TRADERS LTD,0000617922,71.14
Department of Health,East Sussex Hospitals NHS Trust,05/10/2011,BUILDING MATERIALS,Commercial,ALSFORD TIMBER TRADERS LTD,0000617922,660.20
Department of Health,East Sussex Hospitals NHS Trust,05/10/2011,CAPITAL EXPENDITURE,Other Central,HAWKER SIDDELEY SWITCHGEAR LTD,0000617940,650.00
Department of Health,East Sussex Hospitals NHS Trust,05/10/2011,ENGINEERING MATERIALS,Commercial,"SUSSEX TUBES, FITTING & VALVES",0000617996,627.48
Department of Health,East Sussex Hospitals NHS Trust,05/10/2011,EDGH BLDING & ENGINEERING MATS,Commercial,"SUSSEX TUBES, FITTING & VALVES",0000617996,35.40
Department of Health,East Sussex Hospitals NHS Trust,05/10/2011,M&S GENERAL SUPPLIES-OTHER,Planned Care,STRYKER UK,0000883447,777.60
Department of Health,East Sussex Hospitals NHS Trust,05/10/2011,SURGICAL INSTRUMENTS,Planned Care,STRYKER UK,0000883447,606.48
Department of Health,East Sussex Hospitals NHS Trust,05/10/2011,PROSTHESES-OTHER,Planned Care,STRYKER UK,0000883448,1692.24
Department of Health,East Sussex Hospitals NHS Trust,05/10/2011,PROSTHESES-HIP,Planned Care,STRYKER UK,0000883449,720.00
Department of Health,East Sussex Hospitals NHS Trust,05/10/2011,PROSTHESES-OTHER,Planned Care,STRYKER UK,0000883449,120.96
Department of Health,East Sussex Hospitals NHS Trust,05/10/2011,M&S GENERAL SUPPLIES-OTHER,Planned Care,STRYKER UK,0000883450,3064.38
Department of Health,East Sussex Hospitals NHS Trust,05/10/2011,PROSTHESIS - LENS,Planned Care,ALCON LABORATORIES (UK) LTD,0000883455,595.20
Department of Health,East Sussex Hospitals NHS Trust,05/10/2011,CATARACT CONSUMABLES,Planned Care,ALTOMED LTD,0000883467,641.40
Department of Health,East Sussex Hospitals NHS Trust,05/10/2011,PROSTHESES-HIP,Planned Care,STRYKER UK,0000883481,1953.36
Department of Health,East Sussex Hospitals NHS Trust,05/10/2011,NATIONAL JOINT REGISTRY LEVY,Planned Care,STRYKER UK,0000883481,20.00
Department of Health,East Sussex Hospitals NHS Trust,05/10/2011,M&S GENERAL SUPPLIES-OTHER,Planned Care,STRYKER UK,0000883484,3575.22
Department of Health,East Sussex Hospitals NHS Trust,05/10/2011,PROSTHESES-OTHER,Planned Care,SYNTHES LTD,0000883499,1045.44
Department of Health,East Sussex Hospitals NHS Trust,05/10/2011,PROSTHESES-OTHER,Planned Care,SYNTHES LTD,0000883500,580.80
Department of Health,East Sussex Hospitals NHS Trust,05/10/2011,M&S GENERAL SUPPLIES-OTHER,Planned Care,TELEFLEX MEDICAL,0000883503,1710.00
Department of Health,East Sussex Hospitals NHS Trust,05/10/2011,M&S GENERAL SUPPLIES-OTHER,Planned Care,ALTOMED LTD,0000883504,83.28
Department of Health,East Sussex Hospitals NHS Trust,05/10/2011,SURGICAL INSTRUMENTS,Planned Care,ALTOMED LTD,0000883504,540.00
Department of Health,East Sussex Hospitals NHS Trust,05/10/2011,PROSTHESES-HIP,Planned Care,STRYKER UK,0000883511,1169.99
Department of Health,East Sussex Hospitals NHS Trust,05/10/2011,NATIONAL JOINT REGISTRY LEVY,Planned Care,STRYKER UK,0000883511,40.01
Department of Health,East Sussex Hospitals NHS Trust,05/10/2011,M&S GENERAL SUPPLIES-OTHER,Planned Care,STRYKER UK,0000883512,777.60
Department of Health,East Sussex Hospitals NHS Trust,05/10/2011,SURGICAL INSTRUMENTS,Planned Care,STRYKER UK,0000883512,606.48
Department of Health,East Sussex Hospitals NHS Trust,05/10/2011,PROSTHESIS - LENS,Planned Care,ALCON LABORATORIES (UK) LTD,0000883523,1041.60
Department of Health,East Sussex Hospitals NHS Trust,05/10/2011,SURGICAL INSTRUMENTS,Planned Care,MEDTRONIC LTD,0000883533,2228.40
Department of Health,East Sussex Hospitals NHS Trust,05/10/2011,M&S GENERAL SUPPLIES-OTHER,Planned Care,KIMBERLEY-CLARK EUROPEAN SERVS LIMITED,0000883539,824.84
Department of Health,East Sussex Hospitals NHS Trust,05/10/2011,M&S GENERAL SUPPLIES-OTHER,Integrated Care,BRACCO UK LTD,0000883543,624.00
Department of Health,East Sussex Hospitals NHS Trust,05/10/2011,DRESSINGS-OTHER,Planned Care,ANETIC AID LTD,0000883546,620.10
Department of Health,East Sussex Hospitals NHS Trust,05/10/2011,M&S GENERAL SUPPLIES-OTHER,Urgent Care,ARCROYAL LTD,0000883551,1454.40
Department of Health,East Sussex Hospitals NHS Trust,05/10/2011,"PATS APPL - NECK, ARM, HAND",Planned Care,DACEY LIMITED (ORTHOTIX),0000883560,26.88
Department of Health,East Sussex Hospitals NHS Trust,05/10/2011,PATS APPL - LEG SUPPORTS,Planned Care,DACEY LIMITED (ORTHOTIX),0000883560,531.42
Department of Health,East Sussex Hospitals NHS Trust,05/10/2011,PATS APPL - FOOTWARE,Planned Care,DACEY LIMITED (ORTHOTIX),0000883560,124.80
Department of Health,East Sussex Hospitals NHS Trust,05/10/2011,PATS APPL - LEG SUPPORTS,Planned Care,DACEY LIMITED (ORTHOTIX),0000883561,772.80
Department of Health,East Sussex Hospitals NHS Trust,05/10/2011,PATS APPL - FOOTWARE,Planned Care,DACEY LIMITED (ORTHOTIX),0000883561,173.04
Department of Health,East Sussex Hospitals NHS Trust,05/10/2011,M&S EQUIPMENT - OTHER,Planned Care,ARTHROCARE UK LIMITED,0000883564,843.00
Department of Health,East Sussex Hospitals NHS Trust,05/10/2011,M&S GENERAL SUPPLIES-OTHER,Planned Care,MOLNLYCKE HEALTHCARE,0000883604,125.64
Department of Health,East Sussex Hospitals NHS Trust,05/10/2011,PRE-STERILE COMMERCIAL PACKS,Planned Care,MOLNLYCKE HEALTHCARE,0000883604,92.77
Department of Health,East Sussex Hospitals NHS Trust,05/10/2011,DISPOSABLE DRAPES,Planned Care,MOLNLYCKE HEALTHCARE,0000883604,632.17
Department of Health,East Sussex Hospitals NHS Trust,05/10/2011,M&S GENERAL SUPPLIES-OTHER,Planned Care,BARD LTD,0000883624,592.27
Department of Health,East Sussex Hospitals NHS Trust,05/10/2011,PROSTHESES-OTHER,Planned Care,STRYKER UK,0000883625,899.58
Department of Health,East Sussex Hospitals NHS Trust,05/10/2011,PROSTHESES-OTHER,Planned Care,STRYKER UK,0000883627,6035.04
Department of Health,East Sussex Hospitals NHS Trust,05/10/2011,M&S GENERAL SUPPLIES-OTHER,Planned Care,LINA MEDICAL UK LTD,0000883637,1560.00
Department of Health,East Sussex Hospitals NHS Trust,05/10/2011,STAPLING DEVICES,Planned Care,JOHNSON & JOHNSON MEDICAL LTD,0000883639,1284.83
Department of Health,East Sussex Hospitals NHS Trust,05/10/2011,CARDIOLOGY CATHETERS,Urgent Care,JOHNSON & JOHNSON MEDICAL LTD,0000883640,2160.00
Department of Health,East Sussex Hospitals NHS Trust,05/10/2011,M&S GENERAL SUPPLIES-OTHER,Planned Care,JOHNSON & JOHNSON MEDICAL LTD,0000883641,621.71
Department of Health,East Sussex Hospitals NHS Trust,05/10/2011,ELECTRO CONSUMABLES,Planned Care,JOHNSON & JOHNSON MEDICAL LTD,0000883641,405.00
Department of Health,East Sussex Hospitals NHS Trust,05/10/2011,M&S GENERAL SUPPLIES-OTHER,Integrated Care,CME MEDICAL UK LIMITED,0000883654,827.94
Department of Health,East Sussex Hospitals NHS Trust,05/10/2011,SURGICAL INSTRUMENTS,Planned Care,MDM MEDICAL LTD,0000883661,622.80
Department of Health,East Sussex Hospitals NHS Trust,05/10/2011,M&S GENERAL SUPPLIES-OTHER,Planned Care,GAMBRO LUNDIA AB,0000883668,578.40
Department of Health,East Sussex Hospitals NHS Trust,05/10/2011,M&S GENERAL SUPPLIES-OTHER,Planned Care,STRYKER UK,0000883670,99.00
Department of Health,East Sussex Hospitals NHS Trust,05/10/2011,SURGICAL INSTRUMENTS,Planned Care,STRYKER UK,0000883670,135.96
Department of Health,East Sussex Hospitals NHS Trust,05/10/2011,PROSTHESES-OTHER,Planned Care,STRYKER UK,0000883670,843.48
Department of Health,East Sussex Hospitals NHS Trust,05/10/2011,PROSTHESES-OTHER,Planned Care,ACUMED LTD,0000883673,588.00
Department of Health,East Sussex Hospitals NHS Trust,05/10/2011,M&S GENERAL SUPPLIES-OTHER,Integrated Care,BRACCO UK LTD,0000883680,1248.00
Department of Health,East Sussex Hospitals NHS Trust,05/10/2011,PROSTHESIS - LENS,Planned Care,ALCON LABORATORIES (UK) LTD,0000883684,595.20
Department of Health,East Sussex Hospitals NHS Trust,05/10/2011,M&S GENERAL SUPPLIES-OTHER,Planned Care,TELEFLEX MEDICAL,0000883716,642.60
Department of Health,East Sussex Hospitals NHS Trust,05/10/2011,PROSTHESES-HIP,Planned Care,JOINT REPLACEMENT INSTRUMENTATION  LTD,0000883718,526.80
Department of Health,East Sussex Hospitals NHS Trust,05/10/2011,M&S GENERAL SUPPLIES-OTHER,Planned Care,TELEFLEX MEDICAL,0000883719,642.60
Department of Health,East Sussex Hospitals NHS Trust,05/10/2011,PROSTHESES-HIP,Planned Care,STRYKER UK,0000883727,-532.20
Department of Health,East Sussex Hospitals NHS Trust,05/10/2011,PROSTHESES-HIP,Planned Care,STRYKER UK,0000883728,-1510.51
Department of Health,East Sussex Hospitals NHS Trust,05/10/2011,STAPLING DEVICES,Planned Care,JOHNSON & JOHNSON MEDICAL LTD,0000883758,1601.62
Department of Health,East Sussex Hospitals NHS Trust,05/10/2011,M&S GENERAL SUPPLIES-OTHER,Integrated Care,JOHNSON & JOHNSON MEDICAL LTD,0000883759,1320.00
Department of Health,East Sussex Hospitals NHS Trust,05/10/2011,M&S GENERAL SUPPLIES-OTHER,Planned Care,STRYKER UK,0000883775,642.60
Department of Health,East Sussex Hospitals NHS Trust,05/10/2011,SURGICAL INSTRUMENTS,Planned Care,STRYKER UK,0000883775,558.36
Department of Health,East Sussex Hospitals NHS Trust,05/10/2011,PROSTHESES-KNEES,Planned Care,STRYKER UK,0000883777,203.04
Department of Health,East Sussex Hospitals NHS Trust,05/10/2011,PROSTHESES-OTHER,Planned Care,STRYKER UK,0000883777,346.32
Department of Health,East Sussex Hospitals NHS Trust,05/10/2011,PROSTHESES-HIP,Planned Care,STRYKER UK,0000883811,2621.31
Department of Health,East Sussex Hospitals NHS Trust,05/10/2011,M&S GENERAL SUPPLIES-OTHER,Planned Care,STRYKER UK,0000883825,1132.68
Department of Health,East Sussex Hospitals NHS Trust,05/10/2011,SURGICAL INSTRUMENTS,Planned Care,STRYKER UK,0000883825,606.48
Department of Health,East Sussex Hospitals NHS Trust,05/10/2011,PROSTHESES-OTHER,Planned Care,STRYKER UK,0000883826,611.82
Department of Health,East Sussex Hospitals NHS Trust,05/10/2011,PROSTHESES-HIP,Planned Care,STRYKER UK,0000883827,6034.69
Department of Health,East Sussex Hospitals NHS Trust,05/10/2011,PROSTHESES-OTHER,Planned Care,STRYKER UK,0000883827,483.84
Department of Health,East Sussex Hospitals NHS Trust,05/10/2011,NATIONAL JOINT REGISTRY LEVY,Planned Care,STRYKER UK,0000883827,80.00
Department of Health,East Sussex Hospitals NHS Trust,05/10/2011,STAPLING DEVICES,Planned Care,JOHNSON & JOHNSON MEDICAL LTD,0000883833,1080.00
Department of Health,East Sussex Hospitals NHS Trust,05/10/2011,LASER/LAPARASCOPIC EQUIPMENT,Planned Care,JOHNSON & JOHNSON MEDICAL LTD,0000883842,6451.28
Department of Health,East Sussex Hospitals NHS Trust,05/10/2011,M&S GENERAL SUPPLIES-OTHER,Planned Care,JOHNSON & JOHNSON MEDICAL LTD,0000883842,3928.94
Department of Health,East Sussex Hospitals NHS Trust,05/10/2011,ELECTRO CONSUMABLES,Planned Care,JOHNSON & JOHNSON MEDICAL LTD,0000883842,1614.55
Department of Health,East Sussex Hospitals NHS Trust,05/10/2011,SURGICAL INSTRUMENTS,Planned Care,STRYKER UK,0000883860,95.52
Department of Health,East Sussex Hospitals NHS Trust,05/10/2011,SURGICAL INSTRUMENTS,Planned Care,STRYKER UK,0000883860,371.10
Department of Health,East Sussex Hospitals NHS Trust,05/10/2011,PROSTHESES-OTHER,Planned Care,STRYKER UK,0000883860,1222.98
Department of Health,East Sussex Hospitals NHS Trust,05/10/2011,SURGICAL INSTRUMENTS,Planned Care,STRYKER UK,0000883861,96.00
Department of Health,East Sussex Hospitals NHS Trust,05/10/2011,PROSTHESES-HIP,Planned Care,STRYKER UK,0000883861,558.00
Department of Health,East Sussex Hospitals NHS Trust,05/10/2011,M&S GENERAL SUPPLIES-OTHER,Planned Care,STRYKER UK,0000883862,976.68
Department of Health,East Sussex Hospitals NHS Trust,05/10/2011,SURGICAL INSTRUMENTS,Planned Care,STRYKER UK,0000883862,606.48
Department of Health,East Sussex Hospitals NHS Trust,05/10/2011,PROSTHESES-OTHER,Planned Care,STRYKER UK,0000883915,873.84
Department of Health,East Sussex Hospitals NHS Trust,05/10/2011,PROSTHESES-HIP,Planned Care,JOINT REPLACEMENT INSTRUMENTATION  LTD,0000883956,576.00
Department of Health,East Sussex Hospitals NHS Trust,05/10/2011,PROSTHESES-HIP,Planned Care,JOINT REPLACEMENT INSTRUMENTATION  LTD,0000883961,526.80
Department of Health,East Sussex Hospitals NHS Trust,05/10/2011,PROSTHESES-HIP,Planned Care,JOINT REPLACEMENT INSTRUMENTATION  LTD,0000883967,526.80
Department of Health,East Sussex Hospitals NHS Trust,05/10/2011,PROSTHESES-HIP,Planned Care,JOINT REPLACEMENT INSTRUMENTATION  LTD,0000884210,814.80
Department of Health,East Sussex Hospitals NHS Trust,05/10/2011,PROCEDURE PACKS,Planned Care,MOLNLYCKE HEALTHCARE,0000884224,251.28
Department of Health,East Sussex Hospitals NHS Trust,05/10/2011,PRE-STERILE COMMERCIAL PACKS,Planned Care,MOLNLYCKE HEALTHCARE,0000884224,195.38
Department of Health,East Sussex Hospitals NHS Trust,05/10/2011,STAFF UNIFORMS,Planned Care,MOLNLYCKE HEALTHCARE,0000884224,454.08
Department of Health,East Sussex Hospitals NHS Trust,05/10/2011,DISPOSABLE DRAPES,Planned Care,MOLNLYCKE HEALTHCARE,0000884224,698.97
Department of Health,East Sussex Hospitals NHS Trust,05/10/2011,PRE-STERILE COMMERCIAL PACKS,Planned Care,MOLNLYCKE HEALTHCARE,0000884303,458.98
Department of Health,East Sussex Hospitals NHS Trust,05/10/2011,STAFF UNIFORMS,Planned Care,MOLNLYCKE HEALTHCARE,0000884303,520.11
Department of Health,East Sussex Hospitals NHS Trust,05/10/2011,DISPOSABLE DRAPES,Planned Care,MOLNLYCKE HEALTHCARE,0000884303,632.17
Department of Health,East Sussex Hospitals NHS Trust,05/10/2011,PROCEDURE PACKS,Planned Care,MOLNLYCKE HEALTHCARE,0000884356,125.64
Department of Health,East Sussex Hospitals NHS Trust,05/10/2011,PRE-STERILE COMMERCIAL PACKS,Planned Care,MOLNLYCKE HEALTHCARE,0000884356,370.93
Department of Health,East Sussex Hospitals NHS Trust,05/10/2011,DISPOSABLE DRAPES,Planned Care,MOLNLYCKE HEALTHCARE,0000884356,387.89
Department of Health,East Sussex Hospitals NHS Trust,05/10/2011,PROVISIONS,Commercial,BRAKE BROS (FROZEN FOODS) LTD,0000913411,580.22
Department of Health,East Sussex Hospitals NHS Trust,05/10/2011,PROVISIONS,Commercial,BRAKE BROS (FROZEN FOODS) LTD,0000913456,1041.09
Department of Health,East Sussex Hospitals NHS Trust,05/10/2011,PROVISIONS,Commercial,BRAKE BROS (FROZEN FOODS) LTD,0000913459,1194.53
Department of Health,East Sussex Hospitals NHS Trust,05/10/2011,PROVISIONS,Commercial,BRAKE BROS (FROZEN FOODS) LTD,0000913463,837.40
Department of Health,East Sussex Hospitals NHS Trust,05/10/2011,PROVISIONS,Commercial,BRAKE BROS (FROZEN FOODS) LTD,0000913465,1102.03
Department of Health,East Sussex Hospitals NHS Trust,05/10/2011,PROVISIONS,Commercial,BRAKE BROS (FROZEN FOODS) LTD,0000913466,545.88
Department of Health,East Sussex Hospitals NHS Trust,05/10/2011,PROVISIONS,Commercial,BRAKE BROS (FROZEN FOODS) LTD,0000913474,741.67
Department of Health,East Sussex Hospitals NHS Trust,05/10/2011,PROVISIONS,Commercial,BRAKE BROS (FROZEN FOODS) LTD,0000913480,782.44
Department of Health,East Sussex Hospitals NHS Trust,05/10/2011,PROVISIONS,Commercial,BRAKE BROS (FROZEN FOODS) LTD,0000913481,736.87
Department of Health,East Sussex Hospitals NHS Trust,05/10/2011,PROVISIONS,Commercial,BRAKE BROS (FROZEN FOODS) LTD,0000913491,628.35
Department of Health,East Sussex Hospitals NHS Trust,05/10/2011,PROVISIONS,Commercial,BRAKE BROS (FROZEN FOODS) LTD,0000913492,664.56
Department of Health,East Sussex Hospitals NHS Trust,05/10/2011,PROVISIONS,Commercial,BRAKE BROS (FROZEN FOODS) LTD,0000913493,581.23
Department of Health,East Sussex Hospitals NHS Trust,05/10/2011,PROVISIONS,Commercial,BRAKE BROS (FROZEN FOODS) LTD,0000913494,612.80
Department of Health,East Sussex Hospitals NHS Trust,05/10/2011,PROVISIONS,Commercial,BRAKE BROS (FROZEN FOODS) LTD,0000913496,709.57
Department of Health,East Sussex Hospitals NHS Trust,05/10/2011,PROVISIONS,Commercial,BRAKE BROS (FROZEN FOODS) LTD,0000913497,738.81
Department of Health,East Sussex Hospitals NHS Trust,05/10/2011,PROVISIONS,Commercial,BRAKE BROS (FROZEN FOODS) LTD,0000913527,648.39
Department of Health,East Sussex Hospitals NHS Trust,05/10/2011,TRAINING - MPET,Corporate Services,SENSORY INTEGRATION & ATTACHMENT CONS.,0000913545,4954.15
Department of Health,East Sussex Hospitals NHS Trust,05/10/2011,STOCK-ASCRIBE CONQUEST,Pharmacy Stock,ROCHE PRODUCTS LTD,0001181313,1400.76
Department of Health,East Sussex Hospitals NHS Trust,05/10/2011,STOCK-ASCRIBE CONQUEST,Pharmacy Stock,CSL BEHRING,0001181644,3040.00
Department of Health,East Sussex Hospitals NHS Trust,05/10/2011,STOCK-ASCRIBE CONQUEST,Pharmacy Stock,CENTRAL HOMECARE LTD,0001181658,704.28
Department of Health,East Sussex Hospitals NHS Trust,05/10/2011,STOCK-ASCRIBE CONQUEST,Pharmacy Stock,CENTRAL HOMECARE LTD,0001181659,715.00
Department of Health,East Sussex Hospitals NHS Trust,05/10/2011,STOCK-ASCRIBE CONQUEST,Pharmacy Stock,CENTRAL HOMECARE LTD,0001181660,715.00
Department of Health,East Sussex Hospitals NHS Trust,05/10/2011,STOCK-ASCRIBE CONQUEST,Pharmacy Stock,CENTRAL HOMECARE LTD,0001181661,715.00
Department of Health,East Sussex Hospitals NHS Trust,05/10/2011,STOCK-ASCRIBE CONQUEST,Pharmacy Stock,CENTRAL HOMECARE LTD,0001181662,704.28
Department of Health,East Sussex Hospitals NHS Trust,05/10/2011,STOCK-ASCRIBE CONQUEST,Pharmacy Stock,CHIESI  LTD,0001181670,1200.00
Department of Health,East Sussex Hospitals NHS Trust,05/10/2011,STOCK-ASCRIBE CONQUEST,Pharmacy Stock,HOSPIRA UK LIMITED,0001181686,4248.00
Department of Health,East Sussex Hospitals NHS Trust,05/10/2011,STOCK-ASCRIBE CONQUEST,Pharmacy Stock,AMGEN LTD,0001181697,1301.40
Department of Health,East Sussex Hospitals NHS Trust,05/10/2011,STOCK-ASCRIBE CONQUEST,Pharmacy Stock,BRISTOL-MYERS SQUIBB PHARMACEUTICAL,0001181702,2906.05
Department of Health,East Sussex Hospitals NHS Trust,05/10/2011,STOCK-ASCRIBE CONQUEST,Pharmacy Stock,BAXTER HEALTHCARE (BERKSHIRE)LTD,0001181758,13972.61
Department of Health,East Sussex Hospitals NHS Trust,05/10/2011,STOCK-ASCRIBE CONQUEST,Pharmacy Stock,BAXTER HEALTHCARE (BERKSHIRE)LTD,0001181759,2082.52
Department of Health,East Sussex Hospitals NHS Trust,05/10/2011,STOCK-ASCRIBE CONQUEST,Pharmacy Stock,ALLIANCE HEALTHCARE (DISTRIBUTION) LTD,0001181785,1187.75
Department of Health,East Sussex Hospitals NHS Trust,05/10/2011,STOCK-ASCRIBE CONQUEST,Pharmacy Stock,ALLIANCE HEALTHCARE (DISTRIBUTION) LTD,0001181787,1255.72
Department of Health,East Sussex Hospitals NHS Trust,05/10/2011,STOCK-ASCRIBE CONQUEST,Pharmacy Stock,ALLIANCE HEALTHCARE (DISTRIBUTION) LTD,0001181790,558.01
Department of Health,East Sussex Hospitals NHS Trust,05/10/2011,STOCK-ASCRIBE CONQUEST,Pharmacy Stock,ALLIANCE HEALTHCARE (DISTRIBUTION) LTD,0001181792,4736.03
Department of Health,East Sussex Hospitals NHS Trust,05/10/2011,STOCK-ASCRIBE CONQUEST,Pharmacy Stock,FRESENIUS KABI ONCOLOGY PLC,0001181800,519.12
Department of Health,East Sussex Hospitals NHS Trust,05/10/2011,STOCK-ASCRIBE CONQUEST,Pharmacy Stock,CENTRAL HOMECARE LTD,0001181801,704.28
Department of Health,East Sussex Hospitals NHS Trust,05/10/2011,STOCK-ASCRIBE CONQUEST,Pharmacy Stock,GAMBRO LUNDIA AB,0001181810,2280.00
Department of Health,East Sussex Hospitals NHS Trust,05/10/2011,STOCK-ASCRIBE CONQUEST,Pharmacy Stock,ROCHE PRODUCTS LTD,0001181842,2509.75
Department of Health,East Sussex Hospitals NHS Trust,05/10/2011,STOCK-ASCRIBE CONQUEST,Pharmacy Stock,ROCHE PRODUCTS LTD,0001181850,20255.40
Department of Health,East Sussex Hospitals NHS Trust,05/10/2011,STOCK-ASCRIBE CONQUEST,Pharmacy Stock,WAYMADE HEALTHCARE PLC,0001181865,520.20
Department of Health,East Sussex Hospitals NHS Trust,05/10/2011,STOCK-ASCRIBE CONQUEST,Pharmacy Stock,WAYMADE HEALTHCARE PLC,0001181867,645.24
Department of Health,East Sussex Hospitals NHS Trust,05/10/2011,STOCK-ASCRIBE CONQUEST,Pharmacy Stock,AMGEN LTD,0001181915,823.66
Department of Health,East Sussex Hospitals NHS Trust,05/10/2011,STOCK-ASCRIBE CONQUEST,Pharmacy Stock,HOSPIRA UK LIMITED,0001181916,2737.20
Department of Health,East Sussex Hospitals NHS Trust,05/10/2011,STOCK-ASCRIBE CONQUEST,Pharmacy Stock,CENTRAL HOMECARE LTD,0001182007,715.00
Department of Health,East Sussex Hospitals NHS Trust,05/10/2011,STOCK-ASCRIBE CONQUEST,Pharmacy Stock,CENTRAL HOMECARE LTD,0001182009,704.28
Department of Health,East Sussex Hospitals NHS Trust,05/10/2011,STOCK-ASCRIBE CONQUEST,Pharmacy Stock,CENTRAL HOMECARE LTD,0001182010,704.28
Department of Health,East Sussex Hospitals NHS Trust,05/10/2011,STOCK-ASCRIBE CONQUEST,Pharmacy Stock,CENTRAL HOMECARE LTD,0001182011,715.00
Department of Health,East Sussex Hospitals NHS Trust,05/10/2011,STOCK-ASCRIBE CONQUEST,Pharmacy Stock,CENTRAL HOMECARE LTD,0001182012,715.00
Department of Health,East Sussex Hospitals NHS Trust,05/10/2011,STOCK-ASCRIBE CONQUEST,Pharmacy Stock,CENTRAL HOMECARE LTD,0001182018,704.28
Department of Health,East Sussex Hospitals NHS Trust,05/10/2011,STOCK-ASCRIBE CONQUEST,Pharmacy Stock,CENTRAL HOMECARE LTD,0001182019,704.28
Department of Health,East Sussex Hospitals NHS Trust,05/10/2011,STOCK-ASCRIBE CONQUEST,Pharmacy Stock,CENTRAL HOMECARE LTD,0001182020,704.28
Department of Health,East Sussex Hospitals NHS Trust,05/10/2011,STOCK-ASCRIBE CONQUEST,Pharmacy Stock,CENTRAL HOMECARE LTD,0001182024,704.28
Department of Health,East Sussex Hospitals NHS Trust,05/10/2011,STOCK-ASCRIBE CONQUEST,Pharmacy Stock,CENTRAL HOMECARE LTD,0001182025,715.00
Department of Health,East Sussex Hospitals NHS Trust,05/10/2011,STOCK-ASCRIBE CONQUEST,Pharmacy Stock,CENTRAL HOMECARE LTD,0001182026,704.28
Department of Health,East Sussex Hospitals NHS Trust,05/10/2011,STOCK-ASCRIBE CONQUEST,Pharmacy Stock,WAYMADE HEALTHCARE PLC,0001182031,741.80
Department of Health,East Sussex Hospitals NHS Trust,05/10/2011,STOCK-ASCRIBE CONQUEST,Pharmacy Stock,WAYMADE HEALTHCARE PLC,0001182032,1658.16
Department of Health,East Sussex Hospitals NHS Trust,05/10/2011,STOCK-ASCRIBE CONQUEST,Pharmacy Stock,ROCHE PRODUCTS LTD,0001182076,20255.40
Department of Health,East Sussex Hospitals NHS Trust,05/10/2011,STOCK-ASCRIBE CONQUEST,Pharmacy Stock,HEALTHCARE PRODUCT SERVICES LIMITED,0001182136,9525.60
Department of Health,East Sussex Hospitals NHS Trust,05/10/2011,STOCK-ASCRIBE CONQUEST,Pharmacy Stock,NOVARTIS PHARMACEUTICALS UK LTD,0001182168,44530.20
Department of Health,East Sussex Hospitals NHS Trust,05/10/2011,STOCK-ASCRIBE CONQUEST,Pharmacy Stock,PENN PHARMACEUTICAL SERVICES LTD,0001182172,1214.40
Department of Health,East Sussex Hospitals NHS Trust,05/10/2011,STOCK-ASCRIBE CONQUEST,Pharmacy Stock,HOSPIRA ASEPTIC SERVICES LIMITED,0001182176,678.24
Department of Health,East Sussex Hospitals NHS Trust,05/10/2011,STOCK-ASCRIBE CONQUEST,Pharmacy Stock,ABBOTT LABORATORIES LTD,0001182216,1668.60
Department of Health,East Sussex Hospitals NHS Trust,05/10/2011,STOCK-ASCRIBE CONQUEST,Pharmacy Stock,NUTRICIA CLINICAL CARE,0001182219,2070.00
Department of Health,East Sussex Hospitals NHS Trust,05/10/2011,STOCK-ASCRIBE CONQUEST,Pharmacy Stock,BRISTOL-MYERS SQUIBB PHARMACEUTICAL,0001182223,1453.02
Department of Health,East Sussex Hospitals NHS Trust,05/10/2011,STOCK-ASCRIBE CONQUEST,Pharmacy Stock,ALLIANCE HEALTHCARE (DISTRIBUTION) LTD,0001182240,767.34
Department of Health,East Sussex Hospitals NHS Trust,05/10/2011,STOCK-ASCRIBE CONQUEST,Pharmacy Stock,ALLIANCE HEALTHCARE (DISTRIBUTION) LTD,0001182243,703.25
Department of Health,East Sussex Hospitals NHS Trust,05/10/2011,STOCK-ASCRIBE CONQUEST,Pharmacy Stock,ALLIANCE HEALTHCARE (DISTRIBUTION) LTD,0001182245,630.31
Department of Health,East Sussex Hospitals NHS Trust,05/10/2011,STOCK-ASCRIBE CONQUEST,Pharmacy Stock,ALLIANCE HEALTHCARE (DISTRIBUTION) LTD,0001182253,810.87
Department of Health,East Sussex Hospitals NHS Trust,05/10/2011,STOCK-ASCRIBE CONQUEST,Pharmacy Stock,BAXTER HEALTHCARE (BERKSHIRE)LTD,0001182265,891.00
Department of Health,East Sussex Hospitals NHS Trust,05/10/2011,STOCK-ASCRIBE CONQUEST,Pharmacy Stock,HEALTHCARE PRODUCT SERVICES LIMITED,0001182333,15724.80
Department of Health,East Sussex Hospitals NHS Trust,05/10/2011,STOCK-ASCRIBE CONQUEST,Pharmacy Stock,HEALTHCARE PRODUCT SERVICES LIMITED,0001182435,13608.00
Department of Health,East Sussex Hospitals NHS Trust,05/10/2011,STOCK-ASCRIBE CONQUEST,Pharmacy Stock,HEALTHCARE PRODUCT SERVICES LIMITED,0001182445,1790.88
Department of Health,East Sussex Hospitals NHS Trust,05/10/2011,STOCK-ASCRIBE CONQUEST,Pharmacy Stock,NOVARTIS PHARMACEUTICALS UK LTD,0001182479,1715.22
Department of Health,East Sussex Hospitals NHS Trust,05/10/2011,STOCK-ASCRIBE CONQUEST,Pharmacy Stock,NOVARTIS PHARMACEUTICALS UK LTD,0001182480,1623.00
Department of Health,East Sussex Hospitals NHS Trust,05/10/2011,STOCK-ASCRIBE CONQUEST,Pharmacy Stock,HEALTHCARE PRODUCT SERVICES LIMITED,0001182491,5778.00
Department of Health,East Sussex Hospitals NHS Trust,05/10/2011,STOCK-ASCRIBE CONQUEST,Pharmacy Stock,MOVIANTO UK LIMITED,0001182492,513.88
Department of Health,East Sussex Hospitals NHS Trust,05/10/2011,STOCK-ASCRIBE CONQUEST,Pharmacy Stock,HEALTHCARE PRODUCT SERVICES LIMITED,0001182495,10483.20
Department of Health,East Sussex Hospitals NHS Trust,05/10/2011,STOCK-ASCRIBE CONQUEST,Pharmacy Stock,ALLIANCE HEALTHCARE (DISTRIBUTION) LTD,0001182503,2824.92
Department of Health,East Sussex Hospitals NHS Trust,05/10/2011,STOCK-ASCRIBE CONQUEST,Pharmacy Stock,ALLIANCE HEALTHCARE (DISTRIBUTION) LTD,0001182507,769.99
Department of Health,East Sussex Hospitals NHS Trust,05/10/2011,STOCK-ASCRIBE CONQUEST,Pharmacy Stock,ALLIANCE HEALTHCARE (DISTRIBUTION) LTD,0001182510,672.59
Department of Health,East Sussex Hospitals NHS Trust,05/10/2011,STOCK-ASCRIBE CONQUEST,Pharmacy Stock,ALLIANCE HEALTHCARE (DISTRIBUTION) LTD,0001182514,841.20
Department of Health,East Sussex Hospitals NHS Trust,05/10/2011,STOCK-ASCRIBE CONQUEST,Pharmacy Stock,ALLIANCE HEALTHCARE (DISTRIBUTION) LTD,0001182520,1068.44
Department of Health,East Sussex Hospitals NHS Trust,05/10/2011,STOCK-ASCRIBE CONQUEST,Pharmacy Stock,ALLIANCE HEALTHCARE (DISTRIBUTION) LTD,0001182526,1036.07
Department of Health,East Sussex Hospitals NHS Trust,05/10/2011,STOCK-ASCRIBE CONQUEST,Pharmacy Stock,ALLIANCE HEALTHCARE (DISTRIBUTION) LTD,0001182528,5948.82
Department of Health,East Sussex Hospitals NHS Trust,05/10/2011,STOCK-ASCRIBE CONQUEST,Pharmacy Stock,ALLIANCE HEALTHCARE (DISTRIBUTION) LTD,0001182533,737.94
Department of Health,East Sussex Hospitals NHS Trust,05/10/2011,STOCK-ASCRIBE CONQUEST,Pharmacy Stock,ALLIANCE HEALTHCARE (DISTRIBUTION) LTD,0001182535,1285.43
Department of Health,East Sussex Hospitals NHS Trust,05/10/2011,STOCK-ASCRIBE CONQUEST,Pharmacy Stock,ALLIANCE HEALTHCARE (DISTRIBUTION) LTD,0001182536,839.79
Department of Health,East Sussex Hospitals NHS Trust,05/10/2011,STOCK-ASCRIBE CONQUEST,Pharmacy Stock,ALLIANCE HEALTHCARE (DISTRIBUTION) LTD,0001182541,3686.19
Department of Health,East Sussex Hospitals NHS Trust,05/10/2011,STOCK-ASCRIBE CONQUEST,Pharmacy Stock,ALLIANCE HEALTHCARE (DISTRIBUTION) LTD,0001182548,1343.99
Department of Health,East Sussex Hospitals NHS Trust,05/10/2011,STOCK-ASCRIBE CONQUEST,Pharmacy Stock,HEALTHCARE PRODUCT SERVICES LIMITED,0001182613,3581.76
Department of Health,East Sussex Hospitals NHS Trust,05/10/2011,STOCK-ASCRIBE CONQUEST,Pharmacy Stock,HEALTHCARE PRODUCT SERVICES LIMITED,0001182617,15724.80
Department of Health,East Sussex Hospitals NHS Trust,05/10/2011,STOCK-ASCRIBE CONQUEST,Pharmacy Stock,NOVARTIS PHARMACEUTICALS UK LTD,0001182631,1395.36
Department of Health,East Sussex Hospitals NHS Trust,05/10/2011,STOCK-ASCRIBE CONQUEST,Pharmacy Stock,NOVARTIS PHARMACEUTICALS UK LTD,0001182646,4272.96
Department of Health,East Sussex Hospitals NHS Trust,05/10/2011,STOCK-ASCRIBE CONQUEST,Pharmacy Stock,MOVIANTO UK LIMITED,0001182653,886.56
Department of Health,East Sussex Hospitals NHS Trust,05/10/2011,STOCK-ASCRIBE CONQUEST,Pharmacy Stock,NUTRICIA CLINICAL CARE,0001182659,2070.00
Department of Health,East Sussex Hospitals NHS Trust,05/10/2011,STOCK-ASCRIBE CONQUEST,Pharmacy Stock,BAXTER HEALTHCARE (BERKSHIRE)LTD,0001182662,-11643.84
Department of Health,East Sussex Hospitals NHS Trust,05/10/2011,STOCK-ASCRIBE CONQUEST,Pharmacy Stock,NUTRICIA CLINICAL CARE,0001182669,-2001.00
Department of Health,East Sussex Hospitals NHS Trust,05/10/2011,STOCK-ASCRIBE CONQUEST,Pharmacy Stock,NOVARTIS PHARMACEUTICALS UK LTD,0001182693,1546.20
Department of Health,East Sussex Hospitals NHS Trust,05/10/2011,STOCK-ASCRIBE EDGH,Pharmacy Stock,CENTRAL HOMECARE LTD,0001385947,704.28
Department of Health,East Sussex Hospitals NHS Trust,05/10/2011,STOCK-ASCRIBE EDGH,Pharmacy Stock,CENTRAL HOMECARE LTD,0001385948,715.00
Department of Health,East Sussex Hospitals NHS Trust,05/10/2011,STOCK-ASCRIBE EDGH,Pharmacy Stock,CENTRAL HOMECARE LTD,0001385949,778.28
Department of Health,East Sussex Hospitals NHS Trust,05/10/2011,STOCK-ASCRIBE EDGH,Pharmacy Stock,CENTRAL HOMECARE LTD,0001385951,1430.00
Department of Health,East Sussex Hospitals NHS Trust,05/10/2011,STOCK-ASCRIBE EDGH,Pharmacy Stock,HEALTHCARE PRODUCT SERVICES,0001385963,1124.40
Department of Health,East Sussex Hospitals NHS Trust,05/10/2011,STOCK-ASCRIBE EDGH,Pharmacy Stock,AMGEN LTD,0001385967,867.60
Department of Health,East Sussex Hospitals NHS Trust,05/10/2011,STOCK-ASCRIBE EDGH,Pharmacy Stock,NOVARTIS PHARMACEUTICALS UK LTD,0001386001,44530.20
Department of Health,East Sussex Hospitals NHS Trust,05/10/2011,STOCK-ASCRIBE EDGH,Pharmacy Stock,ROCHE PRODUCTS LTD,0001386112,7002.36
Department of Health,East Sussex Hospitals NHS Trust,05/10/2011,STOCK-ASCRIBE EDGH,Pharmacy Stock,HOSPIRA UK LIMITED,0001386137,1455.60
Department of Health,East Sussex Hospitals NHS Trust,05/10/2011,STOCK-ASCRIBE EDGH,Pharmacy Stock,GE HEALTHCARE LTD,0001386143,1489.37
Department of Health,East Sussex Hospitals NHS Trust,05/10/2011,STOCK-ASCRIBE EDGH,Pharmacy Stock,TRISTEL SOLUTIONS LTD,0001386263,2028.04
Department of Health,East Sussex Hospitals NHS Trust,05/10/2011,STOCK-ASCRIBE EDGH,Pharmacy Stock,GE HEALTHCARE LTD,0001386447,632.45
Department of Health,East Sussex Hospitals NHS Trust,05/10/2011,STOCK-ASCRIBE EDGH,Pharmacy Stock,NOVARTIS PHARMACEUTICALS UK LTD,0001386453,44530.20
Department of Health,East Sussex Hospitals NHS Trust,05/10/2011,STOCK-ASCRIBE EDGH,Pharmacy Stock,AMGEN LTD,0001386485,867.60
Department of Health,East Sussex Hospitals NHS Trust,05/10/2011,STOCK-ASCRIBE EDGH,Pharmacy Stock,ZOOBIOTIC LTD T/A BIOMONDE,0001386487,610.08
Department of Health,East Sussex Hospitals NHS Trust,05/10/2011,STOCK-ASCRIBE EDGH,Pharmacy Stock,BAXTER HEALTHCARE (BERKSHIRE)LTD,0001386490,532.56
Department of Health,East Sussex Hospitals NHS Trust,05/10/2011,STOCK-ASCRIBE EDGH,Pharmacy Stock,ALLIANCE HEALTHCARE (DISTRIBUTION) LTD,0001386508,955.87
Department of Health,East Sussex Hospitals NHS Trust,05/10/2011,STOCK-ASCRIBE EDGH,Pharmacy Stock,HEALTHCARE PRODUCT SERVICES LIMITED,0001386526,5225.76
Department of Health,East Sussex Hospitals NHS Trust,05/10/2011,STOCK-ASCRIBE EDGH,Pharmacy Stock,ALLIANCE HEALTHCARE (DISTRIBUTION) LTD,0001386552,4243.24
Department of Health,East Sussex Hospitals NHS Trust,05/10/2011,STOCK-ASCRIBE EDGH,Pharmacy Stock,ALLIANCE HEALTHCARE (DISTRIBUTION) LTD,0001386559,3133.37
Department of Health,East Sussex Hospitals NHS Trust,05/10/2011,STOCK-ASCRIBE EDGH,Pharmacy Stock,ALLIANCE HEALTHCARE (DISTRIBUTION) LTD,0001386561,3766.56
Department of Health,East Sussex Hospitals NHS Trust,05/10/2011,STOCK-ASCRIBE EDGH,Pharmacy Stock,HEALTHCARE PRODUCT SERVICES LIMITED,0001386663,1306.44
Department of Health,East Sussex Hospitals NHS Trust,05/10/2011,STOCK-ASCRIBE EDGH,Pharmacy Stock,NOVARTIS PHARMACEUTICALS UK LTD,0001386758,53436.24
Department of Health,East Sussex Hospitals NHS Trust,05/10/2011,STOCK-ASCRIBE EDGH,Pharmacy Stock,HEALTHCARE AT HOME LTD,0001386825,1408.56
Department of Health,East Sussex Hospitals NHS Trust,05/10/2011,STOCK-ASCRIBE EDGH,Pharmacy Stock,HEALTHCARE AT HOME LTD,0001386826,1430.00
Department of Health,East Sussex Hospitals NHS Trust,05/10/2011,STOCK-ASCRIBE EDGH,Pharmacy Stock,HEALTHCARE AT HOME LTD,0001386827,704.28
Department of Health,East Sussex Hospitals NHS Trust,05/10/2011,STOCK-ASCRIBE EDGH,Pharmacy Stock,HEALTHCARE AT HOME LTD,0001386828,704.28
Department of Health,East Sussex Hospitals NHS Trust,05/10/2011,STOCK-ASCRIBE EDGH,Pharmacy Stock,HEALTHCARE AT HOME LTD,0001386829,715.00
Department of Health,East Sussex Hospitals NHS Trust,05/10/2011,STOCK-ASCRIBE EDGH,Pharmacy Stock,HEALTHCARE AT HOME LTD,0001386830,715.00
Department of Health,East Sussex Hospitals NHS Trust,05/10/2011,STOCK-ASCRIBE EDGH,Pharmacy Stock,HEALTHCARE AT HOME LTD,0001386831,715.00
Department of Health,East Sussex Hospitals NHS Trust,05/10/2011,STOCK-ASCRIBE EDGH,Pharmacy Stock,HEALTHCARE AT HOME LTD,0001386832,704.28
Department of Health,East Sussex Hospitals NHS Trust,05/10/2011,STOCK-ASCRIBE EDGH,Pharmacy Stock,HEALTHCARE AT HOME LTD,0001386844,567.35
Department of Health,East Sussex Hospitals NHS Trust,05/10/2011,STOCK-ASCRIBE EDGH,Pharmacy Stock,HEALTHCARE AT HOME LTD,0001386845,588.32
Department of Health,East Sussex Hospitals NHS Trust,05/10/2011,STOCK-ASCRIBE EDGH,Pharmacy Stock,AAH PHARMACEUTICALS LTD,0001386849,538.56
Department of Health,East Sussex Hospitals NHS Trust,05/10/2011,STOCK-ASCRIBE EDGH,Pharmacy Stock,AAH PHARMACEUTICALS LTD,0001386856,656.35
Department of Health,East Sussex Hospitals NHS Trust,05/10/2011,STOCK-ASCRIBE EDGH,Pharmacy Stock,AAH PHARMACEUTICALS LTD,0001386861,538.56
Department of Health,East Sussex Hospitals NHS Trust,05/10/2011,STOCK-ASCRIBE EDGH,Pharmacy Stock,AAH PHARMACEUTICALS LTD,0001386862,656.35
Department of Health,East Sussex Hospitals NHS Trust,05/10/2011,STOCK-ASCRIBE EDGH,Pharmacy Stock,AAH PHARMACEUTICALS LTD,0001386864,538.56
Department of Health,East Sussex Hospitals NHS Trust,05/10/2011,STOCK-ASCRIBE EDGH,Pharmacy Stock,HEALTHCARE AT HOME LTD,0001386876,567.35
Department of Health,East Sussex Hospitals NHS Trust,05/10/2011,STOCK-ASCRIBE EDGH,Pharmacy Stock,ZOOBIOTIC LTD T/A BIOMONDE,0001386881,610.07
Department of Health,East Sussex Hospitals NHS Trust,05/10/2011,STOCK-ASCRIBE EDGH,Pharmacy Stock,AAH PHARMACEUTICALS LTD,0001386912,538.56
Department of Health,East Sussex Hospitals NHS Trust,05/10/2011,STOCK-ASCRIBE EDGH,Pharmacy Stock,AAH PHARMACEUTICALS LTD,0001386919,580.10
Department of Health,East Sussex Hospitals NHS Trust,05/10/2011,STOCK-ASCRIBE CONQUEST,Pharmacy Stock,HEALTHCARE AT HOME LTD,0001386926,588.32
Department of Health,East Sussex Hospitals NHS Trust,05/10/2011,STOCK-ASCRIBE CONQUEST,Pharmacy Stock,HEALTHCARE AT HOME LTD,0001386928,577.84
Department of Health,East Sussex Hospitals NHS Trust,05/10/2011,STOCK-ASCRIBE CONQUEST,Pharmacy Stock,AAH PHARMACEUTICALS LTD,0001386950,1028.25
Department of Health,East Sussex Hospitals NHS Trust,05/10/2011,STOCK-ASCRIBE CONQUEST,Pharmacy Stock,AAH PHARMACEUTICALS LTD,0001386951,1135.68
Department of Health,East Sussex Hospitals NHS Trust,05/10/2011,STOCK-ASCRIBE CONQUEST,Pharmacy Stock,AAH PHARMACEUTICALS LTD,0001386952,1255.90
Department of Health,East Sussex Hospitals NHS Trust,05/10/2011,STOCK-ASCRIBE CONQUEST,Pharmacy Stock,AAH PHARMACEUTICALS LTD,0001386955,1345.64
Department of Health,East Sussex Hospitals NHS Trust,05/10/2011,STOCK-ASCRIBE CONQUEST,Pharmacy Stock,HEALTHCARE AT HOME LTD,0001386958,648.74
Department of Health,East Sussex Hospitals NHS Trust,05/10/2011,STOCK-ASCRIBE CONQUEST,Pharmacy Stock,HEALTHCARE AT HOME LTD,0001386959,679.57
Department of Health,East Sussex Hospitals NHS Trust,05/10/2011,STOCK-ASCRIBE CONQUEST,Pharmacy Stock,HEALTHCARE AT HOME LTD,0001386960,648.74
Department of Health,East Sussex Hospitals NHS Trust,05/10/2011,STOCK-ASCRIBE CONQUEST,Pharmacy Stock,HEALTHCARE AT HOME LTD,0001386961,679.57
Department of Health,East Sussex Hospitals NHS Trust,05/10/2011,STOCK-ASCRIBE CONQUEST,Pharmacy Stock,HEALTHCARE AT HOME LTD,0001386962,710.40
Department of Health,East Sussex Hospitals NHS Trust,05/10/2011,STOCK-ASCRIBE EDGH,Pharmacy Stock,AAH PHARMACEUTICALS LTD,0001386976,528.55
Department of Health,East Sussex Hospitals NHS Trust,05/10/2011,STOCK-ASCRIBE EDGH,Pharmacy Stock,AAH PHARMACEUTICALS LTD,0001386982,3069.12
Department of Health,East Sussex Hospitals NHS Trust,05/10/2011,STOCK-ASCRIBE EDGH,Pharmacy Stock,AAH PHARMACEUTICALS LTD,0001386985,594.56
Department of Health,East Sussex Hospitals NHS Trust,05/10/2011,STOCK-ASCRIBE EDGH,Pharmacy Stock,HEALTHCARE AT HOME LTD,0001387002,525.42
Department of Health,East Sussex Hospitals NHS Trust,05/10/2011,STOCK-ASCRIBE EDGH,Pharmacy Stock,HEALTHCARE AT HOME LTD,0001387003,648.74
Department of Health,East Sussex Hospitals NHS Trust,05/10/2011,STOCK-ASCRIBE EDGH,Pharmacy Stock,HEALTHCARE AT HOME LTD,0001387004,710.40
Department of Health,East Sussex Hospitals NHS Trust,05/10/2011,STOCK-ASCRIBE EDGH,Pharmacy Stock,HEALTHCARE AT HOME LTD,0001387005,679.57
Department of Health,East Sussex Hospitals NHS Trust,05/10/2011,STOCK-ASCRIBE EDGH,Pharmacy Stock,HEALTHCARE AT HOME LTD,0001387006,648.74
Department of Health,East Sussex Hospitals NHS Trust,05/10/2011,STOCK-ASCRIBE EDGH,Pharmacy Stock,HEALTHCARE AT HOME LTD,0001387007,710.40
Department of Health,East Sussex Hospitals NHS Trust,05/10/2011,STOCK-ASCRIBE EDGH,Pharmacy Stock,HEALTHCARE AT HOME LTD,0001387008,1741.25
Department of Health,East Sussex Hospitals NHS Trust,05/10/2011,STOCK-ASCRIBE EDGH,Pharmacy Stock,HEALTHCARE AT HOME LTD,0001387009,715.00
Department of Health,East Sussex Hospitals NHS Trust,05/10/2011,STOCK-ASCRIBE EDGH,Pharmacy Stock,HEALTHCARE AT HOME LTD,0001387010,715.00
Department of Health,East Sussex Hospitals NHS Trust,05/10/2011,ENG MAT`S -CATERING EQUIPMENT,Commercial,HOBART UK,0001412438,1200.00
Department of Health,East Sussex Hospitals NHS Trust,05/10/2011,L/VEHICLE ,Cross Site,ARNOLD CLARK FINANCE LTD,0001412469,444.11
Department of Health,East Sussex Hospitals NHS Trust,05/10/2011,DRAEGER MEDICAL (SURGERY),Planned Care,DRAEGER MEDICAL UK LTD,0001412896,-1453.80
Department of Health,East Sussex Hospitals NHS Trust,05/10/2011,STOCK-ASCRIBE EDGH,Pharmacy Stock,ALLIANCE HEALTHCARE (DISTRIBUTION) LTD,0001413029,-2880.63
Department of Health,East Sussex Hospitals NHS Trust,05/10/2011,TELEPHONES-RENTAL&CALLS,Urgent Care,ACTIMAX NETWORK SERVICES LTD,0001413053,1261.80
Department of Health,East Sussex Hospitals NHS Trust,05/10/2011,VAC WOUND M&S SUPPLIES,Planned Care,KCI MEDICAL LTD,0001413129,-561.60
Department of Health,East Sussex Hospitals NHS Trust,05/10/2011,M&S EQUIPMENT - OTHER,Planned Care,KCI MEDICAL LTD,0001413130,-1170.00
Department of Health,East Sussex Hospitals NHS Trust,05/10/2011,VAC WOUND M&S SUPPLIES,Urgent Care,KCI MEDICAL LTD,0001413131,-982.80
Department of Health,East Sussex Hospitals NHS Trust,05/10/2011,STOCK-ASCRIBE EDGH,Pharmacy Stock,PHARMA NORD (UK) LTD,0001413189,562.98
Department of Health,East Sussex Hospitals NHS Trust,05/10/2011,CAPITAL EXPENDITURE,Other Central,HAWKER SIDDELEY SWITCHGEAR LTD,0001413195,17036.00
Department of Health,East Sussex Hospitals NHS Trust,05/10/2011,PROFESSIONAL FEES,Corporate Services,EPS RESEARCH LIMITED,0001413201,5000.00
Department of Health,East Sussex Hospitals NHS Trust,05/10/2011,TRAINING COURSE FEES-OTHER,Integrated Care,BRITISH ASSOCIATION FOR SEX HEALTH & HIV,0001413203,1930.00
Department of Health,East Sussex Hospitals NHS Trust,05/10/2011,M&S GENERAL SUPPLIES-OTHER,Commercial,IPS CONVERTERS LTD,0001413205,1757.41
Department of Health,East Sussex Hospitals NHS Trust,05/10/2011,PROFESSIONAL FEES,Commercial,MARK HEMSLEY,0001413208,2450.00
Department of Health,East Sussex Hospitals NHS Trust,05/10/2011,PROFESSIONAL FEES,Commercial,MARK HEMSLEY,0001413209,2775.00
Department of Health,East Sussex Hospitals NHS Trust,05/10/2011,SEWERAGE - RATES & METERED,Commercial,SOUTHERN WATER SERVICES LTD,0001413218,12480.08
Department of Health,East Sussex Hospitals NHS Trust,05/10/2011,TRADE EFFLUENT,Commercial,SOUTHERN WATER SERVICES LTD,0001413219,4505.32
Department of Health,East Sussex Hospitals NHS Trust,05/10/2011,AGENCY TECHNICIAN,Urgent Care,VELLA COLLECTIVE LTD,0001413221,1200.00
Department of Health,East Sussex Hospitals NHS Trust,05/10/2011,COUNCIL TAX PAYMENTS,Commercial,EASTBOURNE BOROUGH COUNCIL,0001413227,11071.85
Department of Health,East Sussex Hospitals NHS Trust,05/10/2011,COUNCIL TAX PAYMENTS,Commercial,HASTINGS BOROUGH COUNCIL,0001413228,3411.58
Department of Health,East Sussex Hospitals NHS Trust,05/10/2011,"BOOKS, JOURNALS & SUBCRIPTIONS",Integrated Care,THOMSON REUTERS (HEALTHCARE) INC,0001413244,4556.64
Department of Health,East Sussex Hospitals NHS Trust,05/10/2011,CONTRACTED-OUT H.CARE SERVICES,Integrated Care,ALLIANCE MEDICAL LTD,0001517384,2760.00
Department of Health,East Sussex Hospitals NHS Trust,05/10/2011,ESPERANCE - SERVICES RECEIVED,Planned Care,BMI HEALTHCARE SHIRLEY OAKS,0001517438,6779.75
Department of Health,East Sussex Hospitals NHS Trust,05/10/2011,PATS APPL.-OPTICAL,Planned Care,THOMAS H COLLISON LTD,0001517457,2238.40
Department of Health,East Sussex Hospitals NHS Trust,05/10/2011,PRIVATE AMBULANCE TRANSPORT,Commercial,M&L AMBULANCE SERVICE,0001517485,1520.00
Department of Health,East Sussex Hospitals NHS Trust,05/10/2011,AUDIT COUNTER FRAUD,Corporate Services,DELOITTE & TOUCHE PUB SEC INT AUDIT LTD,0001517488,11571.49
Department of Health,East Sussex Hospitals NHS Trust,05/10/2011,DRUGS-HAEMAPHILIA PRODUCTS,Integrated Care,BUPA HOME HEALTHCARE,0001517564,5317.38
Department of Health,East Sussex Hospitals NHS Trust,05/10/2011,ELECTRICITY,Commercial,IMSERV EUROPE LTD,0001517582,976.77
Department of Health,East Sussex Hospitals NHS Trust,05/10/2011,COURIER SERVICES,Commercial,INTERLINK EXPRESS PARCELS LIMITED,0001517691,794.89
Department of Health,East Sussex Hospitals NHS Trust,05/10/2011,AGENCY CONSULTANT,Corporate Services,HEALTH MANAGEMENT LTD,0001517732,831.00
Department of Health,East Sussex Hospitals NHS Trust,05/10/2011,AGENCY CONSULTANT,Corporate Services,HEALTH MANAGEMENT LTD,0001517733,2724.00
Department of Health,East Sussex Hospitals NHS Trust,05/10/2011,AGENCY CONSULTANT,Corporate Services,HEALTH MANAGEMENT LTD,0001517734,454.00
Department of Health,East Sussex Hospitals NHS Trust,05/10/2011,AGENCY CONSULTANT,Corporate Services,HEALTH MANAGEMENT LTD,0001517735,1739.00
Department of Health,East Sussex Hospitals NHS Trust,05/10/2011,AGENCY CONSULTANT,Integrated Care,UNIVERSITY OF SUSSEX,0001517751,2059.00
Department of Health,East Sussex Hospitals NHS Trust,05/10/2011,COURIER SERVICES,Commercial,INTERLINK EXPRESS PARCELS LIMITED,0001517772,769.09
Department of Health,East Sussex Hospitals NHS Trust,05/10/2011,TRAINING FEES - NURSE CONT ED,Corporate Services,LANCER UK LTD,0001517778,849.00
Department of Health,East Sussex Hospitals NHS Trust,05/10/2011,CONSULTANCY FEES,Corporate Services,MJ GRANT,0001517821,12996.00
Department of Health,East Sussex Hospitals NHS Trust,05/10/2011,AGENCY DRIVERS,Commercial,PAPERWORK COURIERS LTD,0001517842,580.37
Department of Health,East Sussex Hospitals NHS Trust,05/10/2011,AGENCY DRIVERS,Commercial,PAPERWORK COURIERS LTD,0001517847,550.54
Department of Health,East Sussex Hospitals NHS Trust,05/10/2011,COURIER SERVICES,Commercial,INTERLINK EXPRESS PARCELS LIMITED,0001517851,715.23
Department of Health,East Sussex Hospitals NHS Trust,05/10/2011,COURIER SERVICES,Commercial,INTERLINK EXPRESS PARCELS LIMITED,0001517852,549.80
Department of Health,East Sussex Hospitals NHS Trust,05/10/2011,DRUGS-OTHER,Commercial,BATH ASU,0001609984,976.80
Department of Health,East Sussex Hospitals NHS Trust,05/10/2011,DRUGS-OTHER,Commercial,HEALTHCARE PRODUCT SERVICES,0001609993,1680.00
Department of Health,East Sussex Hospitals NHS Trust,05/10/2011,LAB-CONTAINERS/BOTTLES & CAPS,Commercial,TRANSPACK LTD,0001610004,660.00
Department of Health,East Sussex Hospitals NHS Trust,05/10/2011,LAB-CONTAINERS/BOTTLES & CAPS,Commercial,REMPLOY LTD (FINANCE),0001610007,1395.00
Department of Health,East Sussex Hospitals NHS Trust,05/10/2011,DRUGS-OTHER,Commercial,MOVIANTO UK LIMITED,0001610011,2803.68
Department of Health,East Sussex Hospitals NHS Trust,05/10/2011,DRUGS-OTHER,Commercial,HOSPIRA UK LIMITED,0001610041,638.40
Department of Health,East Sussex Hospitals NHS Trust,05/10/2011,DRUGS-OTHER,Commercial,ALLIANCE HEALTHCARE (DISTRIBUTION) LTD,0001610098,1718.44
Department of Health,East Sussex Hospitals NHS Trust,05/10/2011,DRUGS-OTHER,Commercial,ALLIANCE HEALTHCARE (DISTRIBUTION) LTD,0001610099,1402.44
Department of Health,East Sussex Hospitals NHS Trust,05/10/2011,DRUGS-OTHER,Commercial,ALLIANCE HEALTHCARE (DISTRIBUTION) LTD,0001610122,3426.01
Department of Health,East Sussex Hospitals NHS Trust,05/10/2011,DRUGS-OTHER,Commercial,HEALTHCARE PRODUCT SERVICES LIMITED,0001610124,7798.68
Department of Health,East Sussex Hospitals NHS Trust,05/10/2011,DRUGS-OTHER,Commercial,AAH PHARMACEUTICALS LTD,0001610190,2142.26
Department of Health,East Sussex Hospitals NHS Trust,05/10/2011,DRUGS-OTHER,Commercial,AAH PHARMACEUTICALS LTD,0001610196,1320.00
Department of Health,East Sussex Hospitals NHS Trust,05/10/2011,DRESSINGS-OTHER,Urgent Care,SMITH & NEPHEW HEALTHCARE LTD,0001801735,577.20
Department of Health,East Sussex Hospitals NHS Trust,05/10/2011,OTHER STATIONERY,Integrated Care,ICOM,0001801867,1551.00
Department of Health,East Sussex Hospitals NHS Trust,05/10/2011,CONTRACT-SECURITY,Commercial,ADT FIRE & SECURITY,0001801940,443.39
Department of Health,East Sussex Hospitals NHS Trust,05/10/2011,HIRE OF SPECIAL BEDS,Urgent Care,PARK HOUSE HEALTHCARE LTD,0001801949,1944.00
Department of Health,East Sussex Hospitals NHS Trust,05/10/2011,CONTINENCE PRODUCTS,Urgent Care,PAUL HARTMANN LTD,0001802708,-611.38
Department of Health,East Sussex Hospitals NHS Trust,05/10/2011,CONTINENCE PRODUCTS,Urgent Care,PAUL HARTMANN LTD,0001802709,-7430.30
Department of Health,East Sussex Hospitals NHS Trust,05/10/2011,CONTINENCE PRODUCTS,Urgent Care,PAUL HARTMANN LTD,0001802715,-1134.22
Department of Health,East Sussex Hospitals NHS Trust,05/10/2011,CONTINENCE PRODUCTS,Urgent Care,PAUL HARTMANN LTD,0001802717,-810.80
Department of Health,East Sussex Hospitals NHS Trust,05/10/2011,CONTINENCE PRODUCTS,Urgent Care,PAUL HARTMANN LTD,0001802718,-790.63
Department of Health,East Sussex Hospitals NHS Trust,05/10/2011,CONTINENCE PRODUCTS,Urgent Care,PAUL HARTMANN LTD,0001802719,-15924.52
Department of Health,East Sussex Hospitals NHS Trust,05/10/2011,SPECIAL SEATING,Integrated Care,REHABILITATION MANUFACTURING SRVS. LTD,0001802946,1322.81
Department of Health,East Sussex Hospitals NHS Trust,05/10/2011,SPECIAL SEATING,Integrated Care,CONSOLOR  LTD,0001802958,2605.61
Department of Health,East Sussex Hospitals NHS Trust,05/10/2011,M&S EQUIPMENT - OTHER,Planned Care,CORY BROS,0001802970,686.11
Department of Health,East Sussex Hospitals NHS Trust,05/10/2011,WHEELCHAIR,Integrated Care,SOUTHERN MOBILITY CENTRE,0001802997,541.20
Department of Health,East Sussex Hospitals NHS Trust,05/10/2011,WHEELCHAIR,Integrated Care,SOUTHERN MOBILITY CENTRE,0001803000,1383.60
Department of Health,East Sussex Hospitals NHS Trust,05/10/2011,HIRE OF SPECIAL BEDS,Urgent Care,PARK HOUSE HEALTHCARE LTD,0001803017,2025.00
Department of Health,East Sussex Hospitals NHS Trust,05/10/2011,HIRE OF SPECIAL BEDS,Urgent Care,PARK HOUSE HEALTHCARE LTD,0001803018,518.40
Department of Health,East Sussex Hospitals NHS Trust,05/10/2011,PRINTING/PRINTED MATERIALS,Integrated Care,GRANADA LEARNING LTD,0001803209,1088.50
Department of Health,East Sussex Hospitals NHS Trust,05/10/2011,WASTE DISPOSAL SERVICES,Commercial,SRCL LTD,0001803275,1137.71
Department of Health,East Sussex Hospitals NHS Trust,05/10/2011,WASTE DISPOSAL SERVICES,Commercial,SRCL LTD,0001803276,5318.43
Department of Health,East Sussex Hospitals NHS Trust,05/10/2011,WASTE DISPOSAL SERVICES,Commercial,SRCL LTD,0001803278,4231.08
Department of Health,East Sussex Hospitals NHS Trust,05/10/2011,LEASE RENT,Commercial,ASTERISK LIMITED,0001803494,15480.00
Department of Health,East Sussex Hospitals NHS Trust,05/10/2011,CONTRACTED-OUT H.CARE SERVICES,Integrated Care,LINDA MURRAY,0001803570,1800.00
Department of Health,East Sussex Hospitals NHS Trust,05/10/2011,CONTINENCE PRODUCTS,Urgent Care,PAUL HARTMANN LTD,0001803611,35952.34
Department of Health,East Sussex Hospitals NHS Trust,05/10/2011,CONTINENCE PRODUCTS,Urgent Care,PAUL HARTMANN LTD,0001803613,78819.98
Department of Health,East Sussex Hospitals NHS Trust,05/10/2011,CONTINENCE PRODUCTS,Urgent Care,PAUL HARTMANN LTD,0001803614,3326.60
Department of Health,East Sussex Hospitals NHS Trust,05/10/2011,WHEELCHAIR,Integrated Care,SOUTHERN MOBILITY CENTRE,0001803667,3006.00
Department of Health,East Sussex Hospitals NHS Trust,05/10/2011,ENTERAL FEEDING,Integrated Care,NUTRICIA CLINICAL CARE,0001803681,6107.61
Department of Health,East Sussex Hospitals NHS Trust,05/10/2011,ENTERAL FEEDING,Integrated Care,NUTRICIA CLINICAL CARE,0001803682,8817.77
Department of Health,East Sussex Hospitals NHS Trust,05/10/2011,GENERAL PRACTITIONERS,Integrated Care,DR K RADIA & DR J MORRELL,0001803732,835.89
Department of Health,East Sussex Hospitals NHS Trust,05/10/2011,GENERAL PRACTITIONERS,Integrated Care,DR K RADIA & DR J MORRELL,0001803733,1327.13
Department of Health,East Sussex Hospitals NHS Trust,05/10/2011,GENERAL PRACTITIONERS,Integrated Care,DR K RADIA & DR J MORRELL,0001803735,509.35
Department of Health,East Sussex Hospitals NHS Trust,05/10/2011,WHEELCHAIR,Integrated Care,SOUTHERN MOBILITY CENTRE,0001803822,2370.00
Department of Health,East Sussex Hospitals NHS Trust,05/10/2011,WHEELCHAIR,Integrated Care,SOUTHERN MOBILITY CENTRE,0001803901,1368.00
Department of Health,East Sussex Hospitals NHS Trust,05/10/2011,WHEELCHAIR,Integrated Care,SOUTHERN MOBILITY CENTRE,0001803902,710.40
Department of Health,East Sussex Hospitals NHS Trust,05/10/2011,LEASE VEHICLE,Cross Site,ING CAR LEASE UK LTD,0001803943,2847.00
Department of Health,East Sussex Hospitals NHS Trust,05/10/2011,LEASE VEHICLE,Cross Site,ING CAR LEASE UK LTD,0001803944,2027.00
Department of Health,East Sussex Hospitals NHS Trust,05/10/2011,LEASE VEHICLE,Cross Site,ING CAR LEASE UK LTD,0001803945,2066.00
Department of Health,East Sussex Hospitals NHS Trust,05/10/2011,LEASE VEHICLE,Cross Site,ING CAR LEASE UK LTD,0001803946,1989.00
Department of Health,East Sussex Hospitals NHS Trust,05/10/2011,WHEELCHAIR,Integrated Care,SOUTHERN MOBILITY CENTRE,0001803991,511.20
Department of Health,East Sussex Hospitals NHS Trust,05/10/2011,WHEELCHAIR,Integrated Care,SOUTHERN MOBILITY CENTRE,0001803992,3477.60
Department of Health,East Sussex Hospitals NHS Trust,05/10/2011,WHEELCHAIR,Integrated Care,SOUTHERN MOBILITY CENTRE,0001803995,4573.20
Department of Health,East Sussex Hospitals NHS Trust,05/10/2011,PATS APPL - LEG SUPPORTS,Integrated Care,FLORENCE J,0001804050,552.02
Department of Health,East Sussex Hospitals NHS Trust,12/10/2011,YEAR END NRVS JV GENERAL CRS,NHS Creditors,HEALTH PROTECTION AGENCY,0000130320,631.85
Department of Health,East Sussex Hospitals NHS Trust,12/10/2011,NHS SUPPLY CHAIN CREDITORS,Cross Site,NHS SUPPLY CHAIN,0000132122,165262.41
Department of Health,East Sussex Hospitals NHS Trust,12/10/2011,SA-FPC REF FP10S,Cross Site,NHS BUSINESS SERVICES AUTHORITY,0000132132,209330.38
Department of Health,East Sussex Hospitals NHS Trust,12/10/2011,HARDWARE & CROCKERY,Commercial,BUNZL CATERING SUPPLIES,0000273311,450.24
Department of Health,East Sussex Hospitals NHS Trust,12/10/2011,ADVERT-NURSING,Corporate Services,KATE COWHIG INTERNATIONAL,0000273941,2600.00
Department of Health,East Sussex Hospitals NHS Trust,12/10/2011,AGENCY MLSO,Integrated Care,LABMED,0000274002,1347.76
Department of Health,East Sussex Hospitals NHS Trust,12/10/2011,AGENCY MLSO,Integrated Care,LABMED,0000274003,932.04
Department of Health,East Sussex Hospitals NHS Trust,12/10/2011,AGENCY PHYSIOTHERAPY STAFF,Integrated Care,ORCHARD MEDICAL RECRUITMENT,0000274023,1248.61
Department of Health,East Sussex Hospitals NHS Trust,12/10/2011,AGENCY MLSO,Integrated Care,LABMED,0000274025,1305.00
Department of Health,East Sussex Hospitals NHS Trust,12/10/2011,AGENCY SPECIALIST REG,Urgent Care,PROMEDICAL PERSONNEL LTD,0000274026,7012.13
Department of Health,East Sussex Hospitals NHS Trust,12/10/2011,AGENCY SPECIALIST REG,Integrated Care,T.A.MEDICAL,0000274069,2999.41
Department of Health,East Sussex Hospitals NHS Trust,12/10/2011,AGENCY DIETICIAN,Urgent Care,THE PLACEMENT GROUP,0000274089,510.30
Department of Health,East Sussex Hospitals NHS Trust,12/10/2011,AGENCY DIETICIAN,Urgent Care,THE PLACEMENT GROUP,0000274090,527.40
Department of Health,East Sussex Hospitals NHS Trust,12/10/2011,AGENCY DIETICIAN,Urgent Care,THE PLACEMENT GROUP,0000274091,765.46
Department of Health,East Sussex Hospitals NHS Trust,12/10/2011,AGENCY TECHNICIAN,Planned Care,THE PLACEMENT GROUP,0000274093,1465.20
Department of Health,East Sussex Hospitals NHS Trust,12/10/2011,AGENCY OCC THERAPY STAFF,Integrated Care,THE PLACEMENT GROUP,0000274094,829.98
Department of Health,East Sussex Hospitals NHS Trust,12/10/2011,AGENCY SPECIALIST REG,Urgent Care,CES LOCUMS,0000274140,5796.30
Department of Health,East Sussex Hospitals NHS Trust,12/10/2011,AGENCY NURSE - QUALIFIED,Planned Care,MAYDAY HEALTHCARE PLC,0000274151,753.36
Department of Health,East Sussex Hospitals NHS Trust,12/10/2011,AGENCY OCC THERAPY STAFF,Integrated Care,MEDICONNECT RECRUITMENT,0000274157,1305.00
Department of Health,East Sussex Hospitals NHS Trust,12/10/2011,AGENCY NURSE - QUALIFIED,Urgent Care,PREMIERCARE NETWORK LTD,0000274207,1076.98
Department of Health,East Sussex Hospitals NHS Trust,12/10/2011,AGENCY NURSE - QUALIFIED,Urgent Care,PREMIERCARE NETWORK LTD,0000274208,1210.39
Department of Health,East Sussex Hospitals NHS Trust,12/10/2011,AGENCY NURSE - QUALIFIED,Urgent Care,MAYDAY HEALTHCARE PLC,0000274225,596.88
Department of Health,East Sussex Hospitals NHS Trust,12/10/2011,AGENCY NURSE - QUALIFIED,Urgent Care,MAYDAY HEALTHCARE PLC,0000274228,574.78
Department of Health,East Sussex Hospitals NHS Trust,12/10/2011,AGENCY NURSE - QUALIFIED,Urgent Care,MAYDAY HEALTHCARE PLC,0000274229,579.71
Department of Health,East Sussex Hospitals NHS Trust,12/10/2011,AGENCY NURSE - QUALIFIED,Urgent Care,MAYDAY HEALTHCARE PLC,0000274231,653.66
Department of Health,East Sussex Hospitals NHS Trust,12/10/2011,AGENCY NURSE - QUALIFIED,Urgent Care,MAYDAY HEALTHCARE PLC,0000274232,574.78
Department of Health,East Sussex Hospitals NHS Trust,12/10/2011,AGENCY NURSE - QUALIFIED,Urgent Care,MAYDAY HEALTHCARE PLC,0000274233,574.78
Department of Health,East Sussex Hospitals NHS Trust,12/10/2011,AGENCY NURSE - QUALIFIED,Urgent Care,MAYDAY HEALTHCARE PLC,0000274234,574.78
Department of Health,East Sussex Hospitals NHS Trust,12/10/2011,AGENCY NURSE - QUALIFIED,Urgent Care,MAYDAY HEALTHCARE PLC,0000274236,530.99
Department of Health,East Sussex Hospitals NHS Trust,12/10/2011,AGENCY NURSE - QUALIFIED,Urgent Care,MAYDAY HEALTHCARE PLC,0000274237,609.58
Department of Health,East Sussex Hospitals NHS Trust,12/10/2011,AGENCY NURSE - QUALIFIED,Urgent Care,MAYDAY HEALTHCARE PLC,0000274240,1438.40
Department of Health,East Sussex Hospitals NHS Trust,12/10/2011,AGENCY NURSE - QUALIFIED,Urgent Care,MAYDAY HEALTHCARE PLC,0000274242,572.01
Department of Health,East Sussex Hospitals NHS Trust,12/10/2011,AGENCY NURSE - QUALIFIED,Urgent Care,MAYDAY HEALTHCARE PLC,0000274243,1152.75
Department of Health,East Sussex Hospitals NHS Trust,12/10/2011,AGENCY NURSE - QUALIFIED,Urgent Care,MAYDAY HEALTHCARE PLC,0000274244,2170.94
Department of Health,East Sussex Hospitals NHS Trust,12/10/2011,AGENCY NURSE - QUALIFIED,Urgent Care,MAYDAY HEALTHCARE PLC,0000274246,1149.56
Department of Health,East Sussex Hospitals NHS Trust,12/10/2011,AGENCY NURSE - QUALIFIED,Urgent Care,MAYDAY HEALTHCARE PLC,0000274247,574.78
Department of Health,East Sussex Hospitals NHS Trust,12/10/2011,AGENCY NURSE - QUALIFIED,Urgent Care,MAYDAY HEALTHCARE PLC,0000274249,1370.25
Department of Health,East Sussex Hospitals NHS Trust,12/10/2011,AGENCY NURSE - QUALIFIED,Urgent Care,MAYDAY HEALTHCARE PLC,0000274251,550.42
Department of Health,East Sussex Hospitals NHS Trust,12/10/2011,AGENCY NURSE - QUALIFIED,Urgent Care,MAYDAY HEALTHCARE PLC,0000274256,572.01
Department of Health,East Sussex Hospitals NHS Trust,12/10/2011,AGENCY NURSE - QUALIFIED,Urgent Care,MAYDAY HEALTHCARE PLC,0000274259,505.29
Department of Health,East Sussex Hospitals NHS Trust,12/10/2011,AGENCY NURSE - QUALIFIED,Urgent Care,MAYDAY HEALTHCARE PLC,0000274260,538.65
Department of Health,East Sussex Hospitals NHS Trust,12/10/2011,AGENCY SHO - LOCUM,Planned Care,SERVING THE NATION LOCUMS LTD,0000274267,1793.72
Department of Health,East Sussex Hospitals NHS Trust,12/10/2011,AGENCY SPECIALIST REG,Urgent Care,PROMEDICAL PERSONNEL LTD,0000274280,2845.50
Department of Health,East Sussex Hospitals NHS Trust,12/10/2011,AGENCY SPECIALIST REG,Urgent Care,HAYS,0000274281,1304.64
Department of Health,East Sussex Hospitals NHS Trust,12/10/2011,AGENCY STAFF GRADE,Urgent Care,RESUSCITATE MEDICAL SERVICES LTD,0000274286,677.68
Department of Health,East Sussex Hospitals NHS Trust,12/10/2011,AGENCY SPECIALIST REG,Urgent Care,PROMEDICAL PERSONNEL LTD,0000274289,3048.76
Department of Health,East Sussex Hospitals NHS Trust,12/10/2011,AGENCY DIETICIAN,Urgent Care,THE PLACEMENT GROUP,0000274294,1318.50
Department of Health,East Sussex Hospitals NHS Trust,12/10/2011,AGENCY DIETICIAN,Urgent Care,THE PLACEMENT GROUP,0000274295,1275.76
Department of Health,East Sussex Hospitals NHS Trust,12/10/2011,AGENCY OCC THERAPY STAFF,Integrated Care,THE PLACEMENT GROUP,0000274296,1383.30
Department of Health,East Sussex Hospitals NHS Trust,12/10/2011,AGENCY PHYSIOTHERAPY STAFF,Integrated Care,ORCHARD MEDICAL RECRUITMENT,0000274302,1137.48
Department of Health,East Sussex Hospitals NHS Trust,12/10/2011,AGENCY NURSE - UNQUALIFIED,Urgent Care,MAYFAIR,0000274314,874.64
Department of Health,East Sussex Hospitals NHS Trust,12/10/2011,AGENCY NURSE - QUALIFIED,Urgent Care,MAYDAY HEALTHCARE PLC,0000274321,768.50
Department of Health,East Sussex Hospitals NHS Trust,12/10/2011,AGENCY NURSE - QUALIFIED,Urgent Care,MAYDAY HEALTHCARE PLC,0000274325,574.78
Department of Health,East Sussex Hospitals NHS Trust,12/10/2011,AGENCY NURSE - QUALIFIED,Urgent Care,MAYDAY HEALTHCARE PLC,0000274326,574.78
Department of Health,East Sussex Hospitals NHS Trust,12/10/2011,AGENCY NURSE - QUALIFIED,Urgent Care,MAYDAY HEALTHCARE PLC,0000274327,1862.38
Department of Health,East Sussex Hospitals NHS Trust,12/10/2011,AGENCY NURSE - QUALIFIED,Urgent Care,MAYDAY HEALTHCARE PLC,0000274328,574.78
Department of Health,East Sussex Hospitals NHS Trust,12/10/2011,AGENCY NURSE - QUALIFIED,Urgent Care,MAYDAY HEALTHCARE PLC,0000274329,633.94
Department of Health,East Sussex Hospitals NHS Trust,12/10/2011,AGENCY NURSE - QUALIFIED,Urgent Care,MAYDAY HEALTHCARE PLC,0000274336,665.18
Department of Health,East Sussex Hospitals NHS Trust,12/10/2011,AGENCY NURSE - QUALIFIED,Urgent Care,MAYDAY HEALTHCARE PLC,0000274340,702.96
Department of Health,East Sussex Hospitals NHS Trust,12/10/2011,AGENCY NURSE - QUALIFIED,Urgent Care,MAYDAY HEALTHCARE PLC,0000274341,550.42
Department of Health,East Sussex Hospitals NHS Trust,12/10/2011,AGENCY NURSE - QUALIFIED,Urgent Care,MAYDAY HEALTHCARE PLC,0000274342,1175.37
Department of Health,East Sussex Hospitals NHS Trust,12/10/2011,AGENCY NURSE - QUALIFIED,Urgent Care,MAYDAY HEALTHCARE PLC,0000274346,633.94
Department of Health,East Sussex Hospitals NHS Trust,12/10/2011,AGENCY NURSE - QUALIFIED,Urgent Care,MAYDAY HEALTHCARE PLC,0000274347,609.00
Department of Health,East Sussex Hospitals NHS Trust,12/10/2011,AGENCY NURSE - QUALIFIED,Urgent Care,MAYDAY HEALTHCARE PLC,0000274349,1428.54
Department of Health,East Sussex Hospitals NHS Trust,12/10/2011,AGENCY NURSE - QUALIFIED,Urgent Care,MAYDAY HEALTHCARE PLC,0000274350,505.29
Department of Health,East Sussex Hospitals NHS Trust,12/10/2011,AGENCY NURSE - QUALIFIED,Planned Care,MAYDAY HEALTHCARE PLC,0000274351,530.31
Department of Health,East Sussex Hospitals NHS Trust,12/10/2011,AGENCY NURSE - QUALIFIED,Planned Care,MAYDAY HEALTHCARE PLC,0000274352,534.71
Department of Health,East Sussex Hospitals NHS Trust,12/10/2011,AGENCY NURSE - QUALIFIED,Urgent Care,MAYDAY HEALTHCARE PLC,0000274354,572.01
Department of Health,East Sussex Hospitals NHS Trust,12/10/2011,AGENCY NURSE - QUALIFIED,Urgent Care,MAYDAY HEALTHCARE PLC,0000274355,768.50
Department of Health,East Sussex Hospitals NHS Trust,12/10/2011,AGENCY NURSE - QUALIFIED,Urgent Care,MAYDAY HEALTHCARE PLC,0000274356,928.00
Department of Health,East Sussex Hospitals NHS Trust,12/10/2011,HARDWARE & CROCKERY,Commercial,BUNZL CATERING SUPPLIES,0000274388,418.12
Department of Health,East Sussex Hospitals NHS Trust,12/10/2011,PROVISIONS,Commercial,DANISH BACON COMPANY PLC,0000274408,557.04
Department of Health,East Sussex Hospitals NHS Trust,12/10/2011,PROVISIONS,Commercial,DANISH BACON COMPANY PLC,0000274416,730.85
Department of Health,East Sussex Hospitals NHS Trust,12/10/2011,HARDWARE & CROCKERY,Commercial,MPD (UK SALES) LTD,0000274448,2540.16
Department of Health,East Sussex Hospitals NHS Trust,12/10/2011,HARDWARE & CROCKERY,Commercial,TRI-STAR PACKAGING SUPPLIES LTD,0000274488,1068.54
Department of Health,East Sussex Hospitals NHS Trust,12/10/2011,AGENCY MLSO,Integrated Care,LABMED,0000274498,1305.00
Department of Health,East Sussex Hospitals NHS Trust,12/10/2011,AGENCY MLSO,Integrated Care,LABMED,0000274499,1553.40
Department of Health,East Sussex Hospitals NHS Trust,12/10/2011,AGENCY MLSO,Integrated Care,LABMED,0000274500,1311.82
Department of Health,East Sussex Hospitals NHS Trust,12/10/2011,AGENCY RADIOGRAPHY STAFF,Integrated Care,LABMED,0000274501,2185.19
Department of Health,East Sussex Hospitals NHS Trust,12/10/2011,AGENCY RADIOGRAPHY STAFF,Integrated Care,LABMED,0000274502,2230.08
Department of Health,East Sussex Hospitals NHS Trust,12/10/2011,AGENCY RADIOGRAPHY STAFF,Integrated Care,RIG MEDICAL RECRUIT LTD,0000274511,1178.94
Department of Health,East Sussex Hospitals NHS Trust,12/10/2011,AGENCY RADIOGRAPHY STAFF,Integrated Care,RIG MEDICAL RECRUIT LTD,0000274512,1033.62
Department of Health,East Sussex Hospitals NHS Trust,12/10/2011,AGENCY RADIOGRAPHY STAFF,Integrated Care,RIG MEDICAL RECRUIT LTD,0000274513,1118.30
Department of Health,East Sussex Hospitals NHS Trust,12/10/2011,AGENCY OCC THERAPY STAFF,Integrated Care,RIG MEDICAL RECRUIT LTD,0000274514,1444.20
Department of Health,East Sussex Hospitals NHS Trust,12/10/2011,AGENCY OCC THERAPY STAFF,Integrated Care,RIG MEDICAL RECRUIT LTD,0000274515,1188.36
Department of Health,East Sussex Hospitals NHS Trust,12/10/2011,AGENCY RADIOGRAPHY STAFF,Integrated Care,RIG MEDICAL RECRUIT LTD,0000274516,789.60
Department of Health,East Sussex Hospitals NHS Trust,12/10/2011,AGENCY OCC THERAPY STAFF,Integrated Care,RANDSTAD CARE LTD,0000274517,1632.16
Department of Health,East Sussex Hospitals NHS Trust,12/10/2011,AGENCY OCC THERAPY STAFF,Integrated Care,RANDSTAD CARE LTD,0000274518,1632.16
Department of Health,East Sussex Hospitals NHS Trust,12/10/2011,AGENCY OCC THERAPY STAFF,Integrated Care,RANDSTAD CARE LTD,0000274519,1610.39
Department of Health,East Sussex Hospitals NHS Trust,12/10/2011,AGENCY STAFF GRADE,Urgent Care,TLC - THE LOCUM CONSULTANCY,0000274520,2940.00
Department of Health,East Sussex Hospitals NHS Trust,12/10/2011,AGENCY STAFF GRADE,Urgent Care,TLC - THE LOCUM CONSULTANCY,0000274521,798.00
Department of Health,East Sussex Hospitals NHS Trust,12/10/2011,RECRUITMENT AGENCY FEES,Corporate Services,KATE COWHIG INTERNATIONAL,0000274526,2600.00
Department of Health,East Sussex Hospitals NHS Trust,12/10/2011,AGENCY STAFF GRADE,Planned Care,PURE MEDICAL HEALTHCARE SOLUTIONS LTD,0000274535,2896.80
Department of Health,East Sussex Hospitals NHS Trust,12/10/2011,AGENCY SPECIALIST REG,Integrated Care,MEDACS HEALTHCARE SERVICES LTD,0000274536,4282.66
Department of Health,East Sussex Hospitals NHS Trust,12/10/2011,AGENCY SPECIALIST REG,Integrated Care,MEDACS HEALTHCARE SERVICES LTD,0000274537,3585.84
Department of Health,East Sussex Hospitals NHS Trust,12/10/2011,AGENCY SPECIALIST REG,Integrated Care,MEDACS HEALTHCARE SERVICES LTD,0000274538,2374.63
Department of Health,East Sussex Hospitals NHS Trust,12/10/2011,AGENCY SPECIALIST REG,Planned Care,MEDACS HEALTHCARE SERVICES LTD,0000274539,3697.30
Department of Health,East Sussex Hospitals NHS Trust,12/10/2011,AGENCY SPECIALIST REG,Planned Care,MEDACS HEALTHCARE SERVICES LTD,0000274540,2702.59
Department of Health,East Sussex Hospitals NHS Trust,12/10/2011,AGENCY SPECIALIST REG,Integrated Care,MEDACS HEALTHCARE SERVICES LTD,0000274541,2943.68
Department of Health,East Sussex Hospitals NHS Trust,12/10/2011,AGENCY SPECIALIST REG,Integrated Care,T.A.MEDICAL,0000274544,2554.20
Department of Health,East Sussex Hospitals NHS Trust,12/10/2011,AGENCY STAFF GRADE,Integrated Care,MEDPRO,0000274545,3144.00
Department of Health,East Sussex Hospitals NHS Trust,12/10/2011,AGENCY SPECIALIST REG,Integrated Care,MEDACS HEALTHCARE SERVICES LTD,0000274547,2924.10
Department of Health,East Sussex Hospitals NHS Trust,12/10/2011,AGENCY SPECIALIST REG,Urgent Care,TLC - THE LOCUM CONSULTANCY,0000274552,3486.00
Department of Health,East Sussex Hospitals NHS Trust,12/10/2011,AGENCY NURSE - QUALIFIED,Urgent Care,PREMIERCARE NETWORK LTD,0000274566,551.09
Department of Health,East Sussex Hospitals NHS Trust,12/10/2011,PROVISIONS,Commercial,ANCHOR CATERING LTD,0000274628,1209.30
Department of Health,East Sussex Hospitals NHS Trust,12/10/2011,PROVISIONS,Commercial,ANCHOR CATERING LTD,0000274629,544.93
Department of Health,East Sussex Hospitals NHS Trust,12/10/2011,PROVISIONS,Commercial,ANCHOR CATERING LTD,0000274631,1209.30
Department of Health,East Sussex Hospitals NHS Trust,12/10/2011,PROVISIONS,Commercial,ANCHOR CATERING LTD,0000274632,544.93
Department of Health,East Sussex Hospitals NHS Trust,12/10/2011,AGENCY NURSE - QUALIFIED,Urgent Care,PREMIERCARE NETWORK LTD,0000274766,723.33
Department of Health,East Sussex Hospitals NHS Trust,12/10/2011,AGENCY PHYSIOTHERAPY STAFF,Integrated Care,REAL STAFFING LTD,0000274768,675.00
Department of Health,East Sussex Hospitals NHS Trust,12/10/2011,AGENCY ADMIN & CLERICAL,Urgent Care,BLUE ARROW PERSONNEL SERVICES,0000274791,429.75
Department of Health,East Sussex Hospitals NHS Trust,12/10/2011,AGENCY STAFF GRADE,Integrated Care,MEDPRO,0000274809,12576.00
Department of Health,East Sussex Hospitals NHS Trust,12/10/2011,AGENCY STAFF GRADE,Urgent Care,REED PERSONNEL SERVICES LTD,0000274827,3003.00
Department of Health,East Sussex Hospitals NHS Trust,12/10/2011,AGENCY STAFF GRADE,Urgent Care,REED PERSONNEL SERVICES LTD,0000274828,2340.00
Department of Health,East Sussex Hospitals NHS Trust,12/10/2011,AGENCY SPEECH THERAPIST,Urgent Care,REAL STAFFING LTD,0000274858,1642.50
Department of Health,East Sussex Hospitals NHS Trust,12/10/2011,AGENCY SPEECH THERAPIST,Integrated Care,REAL STAFFING LTD,0000274859,1507.50
Department of Health,East Sussex Hospitals NHS Trust,12/10/2011,AGENCY STAFF GRADE,Urgent Care,REED PERSONNEL SERVICES LTD,0000274878,2340.00
Department of Health,East Sussex Hospitals NHS Trust,12/10/2011,PROVISIONS,Commercial,ANCHOR CATERING LTD,0000274928,544.93
Department of Health,East Sussex Hospitals NHS Trust,12/10/2011,PROVISIONS,Commercial,ANCHOR CATERING LTD,0000274929,1209.30
Department of Health,East Sussex Hospitals NHS Trust,12/10/2011,PROVISIONS,Commercial,ANCHOR CATERING LTD,0000274931,544.93
Department of Health,East Sussex Hospitals NHS Trust,12/10/2011,PROVISIONS,Commercial,ANCHOR CATERING LTD,0000274932,1209.30
Department of Health,East Sussex Hospitals NHS Trust,12/10/2011,CONT.MAIN-MED & SURG EQUIP,Planned Care,PURICORE ENDOSCOPY,0000356904,3450.00
Department of Health,East Sussex Hospitals NHS Trust,12/10/2011,CONTRACT ENGINEERING MAINT,Commercial,PROECONOMY LTD,0000357031,1272.00
Department of Health,East Sussex Hospitals NHS Trust,12/10/2011,ENGINEER CONTRACT - REPAIR,Commercial,AXIS ELEVATORS LTD,0000357090,434.00
Department of Health,East Sussex Hospitals NHS Trust,12/10/2011,CONQ ENG - QUIREPACE,Commercial,QUIREPACE LTD,0000357108,455.93
Department of Health,East Sussex Hospitals NHS Trust,12/10/2011,POSTAGE - MAINTENANCE STOCK,Commercial,PALL MEDICAL LTD,0000357194,23.40
Department of Health,East Sussex Hospitals NHS Trust,12/10/2011,SC-CONQUEST UNIT WORKS,Commercial,PALL MEDICAL LTD,0000357194,792.00
Department of Health,East Sussex Hospitals NHS Trust,12/10/2011,CLEANING MATERIALS,Commercial,HOSPITAL & GENERAL SUPPLIER,0000492558,562.50
Department of Health,East Sussex Hospitals NHS Trust,12/10/2011,OTHER STATIONERY,Corporate Services,SPECSAVERS OPTICAL SUPERSTORES LTD,0000493098,850.00
Department of Health,East Sussex Hospitals NHS Trust,12/10/2011,PROCEDURE PACKS,Planned Care,SD HEALTHCARE LTD,0000493518,500.40
Department of Health,East Sussex Hospitals NHS Trust,12/10/2011,M & S EQUIP REPAIR MATERIALS,Integrated Care,MED IMAGING LTD,0000493570,1278.00
Department of Health,East Sussex Hospitals NHS Trust,12/10/2011,M&S GENERAL SUPPLIES-OTHER,Planned Care,BIOMET EUROPE,0000493572,51.60
Department of Health,East Sussex Hospitals NHS Trust,12/10/2011,PROSTHESES-KNEES,Planned Care,BIOMET EUROPE,0000493572,7608.00
Department of Health,East Sussex Hospitals NHS Trust,12/10/2011,NATIONAL JOINT REGISTRY LEVY,Planned Care,BIOMET EUROPE,0000493572,60.01
Department of Health,East Sussex Hospitals NHS Trust,12/10/2011,STAFF UNIFORMS,Commercial,ALEXANDRA WORKWEAR PLC (HOSPITALS),0000493582,693.54
Department of Health,East Sussex Hospitals NHS Trust,12/10/2011,CATARACT CONSUMABLES,Planned Care,ALTOMED LTD,0000493606,899.40
Department of Health,East Sussex Hospitals NHS Trust,12/10/2011,BONE BANK,Planned Care,BIOCOMPOSITES LTD,0000493610,1029.60
Department of Health,East Sussex Hospitals NHS Trust,12/10/2011,M&S GENERAL SUPPLIES-OTHER,Planned Care,INTERMARK MEDICAL INNOVATIONS LTD,0000493613,504.00
Department of Health,East Sussex Hospitals NHS Trust,12/10/2011,SECURICOR CASH TRANSIT CHARGES,Corporate Services,G4S CASH SERVICES,0000493614,641.09
Department of Health,East Sussex Hospitals NHS Trust,12/10/2011,LASER/LAPARASCOPIC EQUIPMENT,Planned Care,COVIDIEN (UK) COMMERCIAL LTD,0000493618,724.61
Department of Health,East Sussex Hospitals NHS Trust,12/10/2011,M&S GENERAL SUPPLIES-OTHER,Planned Care,COVIDIEN (UK) COMMERCIAL LTD,0000493618,335.47
Department of Health,East Sussex Hospitals NHS Trust,12/10/2011,M&S GENERAL SUPPLIES-OTHER,Planned Care,COVIDIEN (UK) COMMERCIAL LTD,0000493619,519.60
Department of Health,East Sussex Hospitals NHS Trust,12/10/2011,PROSTHESIS - LENS,Planned Care,ALCON LABORATORIES (UK) LTD,0000493622,1041.60
Department of Health,East Sussex Hospitals NHS Trust,12/10/2011,CATARACT CONSUMABLES,Planned Care,ALCON LABORATORIES (UK) LTD,0000493623,4389.00
Department of Health,East Sussex Hospitals NHS Trust,12/10/2011,M&S GENERAL SUPPLIES-OTHER,Urgent Care,ROCHE DIAGNOSTICS LTD,0000493624,549.74
Department of Health,East Sussex Hospitals NHS Trust,12/10/2011,SURGICAL INSTRUMENTS,Planned Care,MDM MEDICAL LTD,0000493634,720.00
Department of Health,East Sussex Hospitals NHS Trust,12/10/2011,M&S GENERAL SUPPLIES-OTHER,Planned Care,ARIZANT UK,0000493656,732.00
Department of Health,East Sussex Hospitals NHS Trust,12/10/2011,CLEANING MATERIALS,Commercial,HOSPITAL & GENERAL SUPPLIER,0000493662,942.00
Department of Health,East Sussex Hospitals NHS Trust,12/10/2011,CARDIOLOGY STENTS,Urgent Care,BOSTON SCIENTIFIC LTD,0000493663,1680.00
Department of Health,East Sussex Hospitals NHS Trust,12/10/2011,CARDIOLOGY CATHETERS,Urgent Care,BOSTON SCIENTIFIC LTD,0000493664,528.00
Department of Health,East Sussex Hospitals NHS Trust,12/10/2011,CARDIOLOGY STENTS,Urgent Care,BOSTON SCIENTIFIC LTD,0000493664,156.00
Department of Health,East Sussex Hospitals NHS Trust,12/10/2011,M&S GENERAL SUPPLIES-OTHER,Planned Care,BOSTON SCIENTIFIC LTD,0000493669,282.00
Department of Health,East Sussex Hospitals NHS Trust,12/10/2011,INTERVENTIONAL DISPOSABLES,Planned Care,BOSTON SCIENTIFIC LTD,0000493669,859.20
Department of Health,East Sussex Hospitals NHS Trust,12/10/2011,PROSTHESIS - LENS,Planned Care,ALCON LABORATORIES (UK) LTD,0000493677,1041.60
Department of Health,East Sussex Hospitals NHS Trust,12/10/2011,CATARACT CONSUMABLES,Planned Care,ALCON LABORATORIES (UK) LTD,0000493678,2501.52
Department of Health,East Sussex Hospitals NHS Trust,12/10/2011,INTERVENTIONAL DISPOSABLES,Urgent Care,TERUMO UK,0000493681,819.00
Department of Health,East Sussex Hospitals NHS Trust,12/10/2011,CARDIOLOGY CATHETERS,Urgent Care,KIMAL PLC (FOR ORDERS),0000493690,1900.32
Department of Health,East Sussex Hospitals NHS Trust,12/10/2011,CPAP VENTILATOR,Planned Care,RESMED (UK) LTD,0000493702,2016.00
Department of Health,East Sussex Hospitals NHS Trust,12/10/2011,M&S GENERAL SUPPLIES-OTHER,Planned Care,RESMED (UK) LTD,0000493702,462.00
Department of Health,East Sussex Hospitals NHS Trust,12/10/2011,M&S EQUIPMENT - OTHER,Planned Care,BOSTON SCIENTIFIC LTD,0000493718,1320.00
Department of Health,East Sussex Hospitals NHS Trust,12/10/2011,CARDIOLOGY CATHETERS,Urgent Care,BOSTON SCIENTIFIC LTD,0000493721,2400.00
Department of Health,East Sussex Hospitals NHS Trust,12/10/2011,INTERVENTIONAL DISPOSABLES,Urgent Care,BOSTON SCIENTIFIC LTD,0000493722,108.00
Department of Health,East Sussex Hospitals NHS Trust,12/10/2011,CARDIOLOGY CATHETERS,Urgent Care,BOSTON SCIENTIFIC LTD,0000493722,528.00
Department of Health,East Sussex Hospitals NHS Trust,12/10/2011,PROSTHESES-KNEES,Planned Care,BIOMET EUROPE,0000493724,1549.20
Department of Health,East Sussex Hospitals NHS Trust,12/10/2011,NATIONAL JOINT REGISTRY LEVY,Planned Care,BIOMET EUROPE,0000493724,20.00
Department of Health,East Sussex Hospitals NHS Trust,12/10/2011,VAGINAL/HYSTERECT REPAIR INSTR,Planned Care,LINA MEDICAL UK LTD,0000493725,540.00
Department of Health,East Sussex Hospitals NHS Trust,12/10/2011,PATS APPL - LEG SUPPORTS,Planned Care,OSSUR UK LTD,0000493733,600.00
Department of Health,East Sussex Hospitals NHS Trust,12/10/2011,IMMUNE STOCKS,Integrated Care,LEICA MICROSYSTEMS (UK) LTD,0000493756,5592.05
Department of Health,East Sussex Hospitals NHS Trust,12/10/2011,M&S GENERAL SUPPLIES-OTHER,Commercial,BARD LTD,0000493757,1548.00
Department of Health,East Sussex Hospitals NHS Trust,12/10/2011,INTERVENTIONAL DISPOSABLES,Urgent Care,MERIT MEDICAL SYSTEMS,0000493762,612.00
Department of Health,East Sussex Hospitals NHS Trust,12/10/2011,LOANER KITS - HIRE CHARGE,Planned Care,WG HEALTHCARE UK LTD,0000493766,594.00
Department of Health,East Sussex Hospitals NHS Trust,12/10/2011,INTERVENTIONAL DISPOSABLES,Urgent Care,ST JUDE MEDICAL UK LIMITED,0000493775,2892.00
Department of Health,East Sussex Hospitals NHS Trust,12/10/2011,PROSTHESES-OTHER,Planned Care,BIOMET EUROPE,0000493783,2840.40
Department of Health,East Sussex Hospitals NHS Trust,12/10/2011,DRESSINGS-OTHER,Planned Care,ANETIC AID LTD,0000493788,1968.00
Department of Health,East Sussex Hospitals NHS Trust,12/10/2011,PROSTHESES-KNEES,Planned Care,BIOMET EUROPE,0000493803,1695.60
Department of Health,East Sussex Hospitals NHS Trust,12/10/2011,NATIONAL JOINT REGISTRY LEVY,Planned Care,BIOMET EUROPE,0000493803,20.00
Department of Health,East Sussex Hospitals NHS Trust,12/10/2011,M&S GENERAL SUPPLIES-OTHER,Planned Care,BIOMET EUROPE,0000493804,3142.28
Department of Health,East Sussex Hospitals NHS Trust,12/10/2011,PROSTHESES-KNEES,Planned Care,BIOMET EUROPE,0000493804,5227.20
Department of Health,East Sussex Hospitals NHS Trust,12/10/2011,PROSTHESES-OTHER,Planned Care,BIOMET EUROPE,0000493804,1857.22
Department of Health,East Sussex Hospitals NHS Trust,12/10/2011,NATIONAL JOINT REGISTRY LEVY,Planned Care,BIOMET EUROPE,0000493804,40.01
Department of Health,East Sussex Hospitals NHS Trust,12/10/2011,DCA REAGENTS,Integrated Care,MENARINI DIAGNOSTICS,0000493811,1339.63
Department of Health,East Sussex Hospitals NHS Trust,12/10/2011,IMMUNE STOCKS,Integrated Care,DAKO UK LTD,0000493813,567.72
Department of Health,East Sussex Hospitals NHS Trust,12/10/2011,POSTAGE,Integrated Care,DAKO UK LTD,0000493813,24.00
Department of Health,East Sussex Hospitals NHS Trust,12/10/2011,M&S GENERAL SUPPLIES-OTHER,Planned Care,GAMBRO LUNDIA AB,0000493820,1008.00
Department of Health,East Sussex Hospitals NHS Trust,12/10/2011,INTERVENTIONAL DISPOSABLES,Urgent Care,ABBOTT VASCULAR,0000493828,810.00
Department of Health,East Sussex Hospitals NHS Trust,12/10/2011,CARDIOLOGY CATHETERS,Urgent Care,ABBOTT VASCULAR,0000493828,216.00
Department of Health,East Sussex Hospitals NHS Trust,12/10/2011,M&S GENERAL SUPPLIES-OTHER,Integrated Care,COOK (UK) LTD,0000493856,422.40
Department of Health,East Sussex Hospitals NHS Trust,12/10/2011,SURGICAL INSTRUMENTS,Integrated Care,COOK (UK) LTD,0000493856,361.20
Department of Health,East Sussex Hospitals NHS Trust,12/10/2011,CARDIOLOGY STENTS,Urgent Care,MEDTRONIC LTD,0000493864,540.00
Department of Health,East Sussex Hospitals NHS Trust,12/10/2011,M&S GENERAL SUPPLIES-OTHER,Urgent Care,ST JUDE MEDICAL UK LIMITED,0000493866,1998.72
Department of Health,East Sussex Hospitals NHS Trust,12/10/2011,INTERVENTIONAL DISPOSABLES,Urgent Care,ABBOTT VASCULAR,0000493877,810.00
Department of Health,East Sussex Hospitals NHS Trust,12/10/2011,CARDIOLOGY CATHETERS,Urgent Care,MEDTRONIC LTD,0000493878,576.00
Department of Health,East Sussex Hospitals NHS Trust,12/10/2011,CLEANING MATERIALS,Commercial,ECOLAB LTD,0000493879,768.00
Department of Health,East Sussex Hospitals NHS Trust,12/10/2011,CARDIOLOGY CATHETERS,Planned Care,COOK (UK) LTD,0000493889,528.00
Department of Health,East Sussex Hospitals NHS Trust,12/10/2011,M&S GENERAL SUPPLIES-OTHER,Integrated Care,COOK (UK) LTD,0000493890,1098.00
Department of Health,East Sussex Hospitals NHS Trust,12/10/2011,PROSTHESIS - LENS,Planned Care,ALCON LABORATORIES (UK) LTD,0000493900,892.80
Department of Health,East Sussex Hospitals NHS Trust,12/10/2011,INTERVENTIONAL DISPOSABLES,Urgent Care,BOSTON SCIENTIFIC LTD,0000493901,360.00
Department of Health,East Sussex Hospitals NHS Trust,12/10/2011,CARDIOLOGY CATHETERS,Urgent Care,BOSTON SCIENTIFIC LTD,0000493901,540.00
Department of Health,East Sussex Hospitals NHS Trust,12/10/2011,GENERAL LAB. CONSUMABLES,Integrated Care,BIO-PACKAGING LTD,0000493903,649.20
Department of Health,East Sussex Hospitals NHS Trust,12/10/2011,GENERAL LAB. CONSUMABLES,Integrated Care,BIO-PACKAGING LTD,0000493903,22.80
Department of Health,East Sussex Hospitals NHS Trust,12/10/2011,M&S GENERAL SUPPLIES-OTHER,Urgent Care,ABBOTT VASCULAR,0000493913,270.00
Department of Health,East Sussex Hospitals NHS Trust,12/10/2011,CARDIOLOGY CATHETERS,Urgent Care,ABBOTT VASCULAR,0000493913,342.00
Department of Health,East Sussex Hospitals NHS Trust,12/10/2011,CARDIOLOGY CATHETERS,Urgent Care,VASCULAR PERSECTIVES LTD,0000493915,1344.00
Department of Health,East Sussex Hospitals NHS Trust,12/10/2011,DRUGS-HAEMAPHILIA PRODUCTS,Integrated Care,CSL BEHRING,0000493924,1600.00
Department of Health,East Sussex Hospitals NHS Trust,12/10/2011,CATARACT CONSUMABLES,Planned Care,ALCON LABORATORIES (UK) LTD,0000493939,636.72
Department of Health,East Sussex Hospitals NHS Trust,12/10/2011,LAB.REAGENTS-MISCELLANEOUS,Integrated Care,VITECH SCIENTIFIC LTD,0000493948,638.40
Department of Health,East Sussex Hospitals NHS Trust,12/10/2011,GENERAL LAB. CONSUMABLES,Integrated Care,PRO-LAB DIAGNOSTICS,0000493965,613.68
Department of Health,East Sussex Hospitals NHS Trust,12/10/2011,GENERAL CHEMICALS,Integrated Care,PRO-LAB DIAGNOSTICS,0000493965,29.52
Department of Health,East Sussex Hospitals NHS Trust,12/10/2011,GENERAL LAB. CONSUMABLES,Integrated Care,BECTON DICKINSON U.K. LTD,0000493985,1676.68
Department of Health,East Sussex Hospitals NHS Trust,12/10/2011,LAPARASCOPIC EQUIP-UROLOGICAL,Planned Care,CORY BROS,0000493987,2592.00
Department of Health,East Sussex Hospitals NHS Trust,12/10/2011,M&S GENERAL SUPPLIES-OTHER,Planned Care,INTERMARK MEDICAL INNOVATIONS LTD,0000493988,768.00
Department of Health,East Sussex Hospitals NHS Trust,12/10/2011,M&S GENERAL SUPPLIES-OTHER,Urgent Care,MEDTRONIC LTD,0000493989,600.00
Department of Health,East Sussex Hospitals NHS Trust,12/10/2011,CARDIOLOGY STENTS,Urgent Care,MEDTRONIC LTD,0000493990,1080.00
Department of Health,East Sussex Hospitals NHS Trust,12/10/2011,PROSTHESES-HIP,Planned Care,DEPUY INTERNATIONAL LTD (ORTHOPAEDIC),0000493992,1211.88
Department of Health,East Sussex Hospitals NHS Trust,12/10/2011,PROSTHESES-HIP,Planned Care,DEPUY INTERNATIONAL LTD (ORTHOPAEDIC),0000493993,854.88
Department of Health,East Sussex Hospitals NHS Trust,12/10/2011,M&S EQUIPMENT - OTHER,Planned Care,FANNIN (UK) LIMITED,0000493994,610.46
Department of Health,East Sussex Hospitals NHS Trust,12/10/2011,GENERAL LAB. CONSUMABLES,Integrated Care,ELGA PROCESS WATER,0000493999,726.72
Department of Health,East Sussex Hospitals NHS Trust,12/10/2011,MONOVETTE CONSUMABLES,Integrated Care,GREINER BIO-ONE LTD,0000494013,4767.65
Department of Health,East Sussex Hospitals NHS Trust,12/10/2011,GENERAL LAB. CONSUMABLES,Integrated Care,GREINER BIO-ONE LTD,0000494014,1830.98
Department of Health,East Sussex Hospitals NHS Trust,12/10/2011,M&S GENERAL SUPPLIES-OTHER,Planned Care,COOK (UK) LTD,0000494023,270.00
Department of Health,East Sussex Hospitals NHS Trust,12/10/2011,INTERVENTIONAL DISPOSABLES,Planned Care,COOK (UK) LTD,0000494023,528.00
Department of Health,East Sussex Hospitals NHS Trust,12/10/2011,PROCEDURE PACKS,Planned Care,VYGON (UK) LTD,0000494050,765.48
Department of Health,East Sussex Hospitals NHS Trust,12/10/2011,GENERAL LAB. CONSUMABLES,Integrated Care,OXFORD IMMUNOTEC LTD,0000494055,919.92
Department of Health,East Sussex Hospitals NHS Trust,12/10/2011,M&S GENERAL SUPPLIES-OTHER,Planned Care,REPTON MEDICAL LTD (RMSP),0000494061,558.00
Department of Health,East Sussex Hospitals NHS Trust,12/10/2011,PROSTHESIS - UROLOGICAL,Planned Care,AMERICAN MEDICAL SYSTEMS UK LTD,0000494062,10488.00
Department of Health,East Sussex Hospitals NHS Trust,12/10/2011,GENERAL LAB. CONSUMABLES,Integrated Care,R-BIOPHARM RHONE LTD,0000494063,634.80
Department of Health,East Sussex Hospitals NHS Trust,12/10/2011,LOANER KITS - HIRE CHARGE,Planned Care,BIOMET EUROPE,0000494068,420.00
Department of Health,East Sussex Hospitals NHS Trust,12/10/2011,PROSTHESES-OTHER,Planned Care,BIOMET EUROPE,0000494068,3914.40
Department of Health,East Sussex Hospitals NHS Trust,12/10/2011,PROSTHESES-OTHER,Planned Care,BIOMET EUROPE,0000494069,6814.67
Department of Health,East Sussex Hospitals NHS Trust,12/10/2011,NATIONAL JOINT REGISTRY LEVY,Planned Care,BIOMET EUROPE,0000494069,40.01
Department of Health,East Sussex Hospitals NHS Trust,12/10/2011,PROSTHESES-HIP,Planned Care,BIOMET EUROPE,0000494070,1185.54
Department of Health,East Sussex Hospitals NHS Trust,12/10/2011,PROSTHESES-KNEES,Planned Care,BIOMET EUROPE,0000494071,4086.00
Department of Health,East Sussex Hospitals NHS Trust,12/10/2011,NATIONAL JOINT REGISTRY LEVY,Planned Care,BIOMET EUROPE,0000494071,60.01
Department of Health,East Sussex Hospitals NHS Trust,12/10/2011,PROSTHESES-OTHER,Planned Care,BIOMET EUROPE,0000494072,6721.07
Department of Health,East Sussex Hospitals NHS Trust,12/10/2011,NATIONAL JOINT REGISTRY LEVY,Planned Care,BIOMET EUROPE,0000494072,40.01
Department of Health,East Sussex Hospitals NHS Trust,12/10/2011,CONQ A & E,Urgent Care,RICOH UK LTD,0000494077,908.00
Department of Health,East Sussex Hospitals NHS Trust,12/10/2011,LAB MATS - SYSMEX HAEM CONS,Integrated Care,SYSMEX UK LTD,0000494135,6312.36
Department of Health,East Sussex Hospitals NHS Trust,12/10/2011,PROSTHESES-HIP,Planned Care,LIMA ORTHOPAEDICS UK LIMITED,0000494163,550.80
Department of Health,East Sussex Hospitals NHS Trust,12/10/2011,SURGICAL INSTRUMENTS,Planned Care,BIOMET EUROPE,0000494185,-633.60
Department of Health,East Sussex Hospitals NHS Trust,12/10/2011,M&S GENERAL SUPPLIES-OTHER,Integrated Care,FANNIN (UK) LIMITED,0000494195,-509.95
Department of Health,East Sussex Hospitals NHS Trust,12/10/2011,M&S GENERAL SUPPLIES-OTHER,Integrated Care,FANNIN (UK) LIMITED,0000494196,-521.70
Department of Health,East Sussex Hospitals NHS Trust,12/10/2011,SURGICAL INSTRUMENTS,Planned Care,STRYKER UK,0000494215,650.16
Department of Health,East Sussex Hospitals NHS Trust,12/10/2011,M&S EQUIPMENT - OTHER,Planned Care,COVIDIEN (UK) COMMERCIAL LTD,0000494241,215.95
Department of Health,East Sussex Hospitals NHS Trust,12/10/2011,ELECTRO MEDICAL EQUIPMENT,Planned Care,COVIDIEN (UK) COMMERCIAL LTD,0000494241,888.00
Department of Health,East Sussex Hospitals NHS Trust,12/10/2011,M&S GENERAL SUPPLIES-OTHER,Planned Care,COOK (UK) LTD,0000494270,708.00
Department of Health,East Sussex Hospitals NHS Trust,12/10/2011,M&S GENERAL SUPPLIES-OTHER,Planned Care,COOK (UK) LTD,0000494271,708.00
Department of Health,East Sussex Hospitals NHS Trust,12/10/2011,ENDOSCOPY CONSUMABLES,Planned Care,OLYMPUS KEYMED,0000494294,455.24
Department of Health,East Sussex Hospitals NHS Trust,12/10/2011,M&S GENERAL SUPPLIES-OTHER,Planned Care,OLYMPUS KEYMED,0000494294,1447.18
Department of Health,East Sussex Hospitals NHS Trust,12/10/2011,SUTURES,Planned Care,COVIDIEN (UK) COMMERCIAL LTD,0000494359,994.80
Department of Health,East Sussex Hospitals NHS Trust,12/10/2011,PACEMAKERS,Urgent Care,SORIN GROUP UK LTD,0000494381,8100.00
Department of Health,East Sussex Hospitals NHS Trust,12/10/2011,CARDIOLOGY STENTS,Urgent Care,MEDTRONIC LTD,0000494385,1080.00
Department of Health,East Sussex Hospitals NHS Trust,12/10/2011,CARDIOLOGY STENTS,Urgent Care,MEDTRONIC LTD,0000494387,2868.00
Department of Health,East Sussex Hospitals NHS Trust,12/10/2011,ENDOSCOPY CONSUMABLES,Planned Care,OLYMPUS KEYMED,0000494411,455.24
Department of Health,East Sussex Hospitals NHS Trust,12/10/2011,SURGICAL INSTRUMENTS,Planned Care,OLYMPUS KEYMED,0000494411,1054.24
Department of Health,East Sussex Hospitals NHS Trust,12/10/2011,GENERAL LAB. CONSUMABLES,Integrated Care,GREINER BIO-ONE LTD,0000494417,1680.84
Department of Health,East Sussex Hospitals NHS Trust,12/10/2011,LOANER KITS - HIRE CHARGE,Planned Care,MACROMED,0000494469,3062.40
Department of Health,East Sussex Hospitals NHS Trust,12/10/2011,TOOLS & TEST EQUIPMENT,Commercial,ULTRAMEDIC LTD,0000494478,3000.00
Department of Health,East Sussex Hospitals NHS Trust,12/10/2011,TOOLS & TEST EQUIPMENT,Commercial,ULTRAMEDIC LTD,0000494478,3000.00
Department of Health,East Sussex Hospitals NHS Trust,12/10/2011,PRE-STERILE COMMERCIAL PACKS,Commercial,FULL SUPPORT HEALTHCARE LTD,0000494487,2603.56
Department of Health,East Sussex Hospitals NHS Trust,12/10/2011,CONT.MAIN-MED & SURG EQUIP,Commercial,OLYMPUS KEYMED,0000494516,3030.94
Department of Health,East Sussex Hospitals NHS Trust,12/10/2011,PRE-STERILE COMMERCIAL PACKS,Commercial,FULL SUPPORT HEALTHCARE LTD,0000494517,2510.64
Department of Health,East Sussex Hospitals NHS Trust,12/10/2011,PRE-STERILE COMMERCIAL PACKS,Commercial,FULL SUPPORT HEALTHCARE LTD,0000494518,950.88
Department of Health,East Sussex Hospitals NHS Trust,12/10/2011,SUTURES,Planned Care,COVIDIEN (UK) COMMERCIAL LTD,0000494520,604.80
Department of Health,East Sussex Hospitals NHS Trust,12/10/2011,M&S GENERAL SUPPLIES-OTHER,Planned Care,MEDTRONIC LTD,0000494532,591.60
Department of Health,East Sussex Hospitals NHS Trust,12/10/2011,CARDIOLOGY CATHETERS,Urgent Care,MEDTRONIC LTD,0000494535,4800.00
Department of Health,East Sussex Hospitals NHS Trust,12/10/2011,LAUNDRY MACHINES,Commercial,JLA TOTAL CARE LTD,0000494547,1177.20
Department of Health,East Sussex Hospitals NHS Trust,12/10/2011,GENERAL CHEMICALS,Integrated Care,BECTON DICKINSON U.K. LTD,0000494564,3255.26
Department of Health,East Sussex Hospitals NHS Trust,12/10/2011,INTERVASCULAR STENTS,Integrated Care,COOK (UK) LTD,0000494574,1188.00
Department of Health,East Sussex Hospitals NHS Trust,12/10/2011,PROSTHESES-HIP,Planned Care,BIOMET EUROPE,0000494610,2550.72
Department of Health,East Sussex Hospitals NHS Trust,12/10/2011,DRUGS-HAEMAPHILIA PRODUCTS,Integrated Care,ALLIANCE HEALTHCARE (DISTRIBUTION) LTD,0000494634,3600.00
Department of Health,East Sussex Hospitals NHS Trust,12/10/2011,DRUGS-HAEMAPHILIA PRODUCTS,Integrated Care,ALLIANCE HEALTHCARE (DISTRIBUTION) LTD,0000494635,3600.00
Department of Health,East Sussex Hospitals NHS Trust,12/10/2011,DRUGS-HAEMAPHILIA PRODUCTS,Integrated Care,ALLIANCE HEALTHCARE (DISTRIBUTION) LTD,0000494636,3600.00
Department of Health,East Sussex Hospitals NHS Trust,12/10/2011,M&S GENERAL SUPPLIES-OTHER,Integrated Care,COOK (UK) LTD,0000494673,52.80
Department of Health,East Sussex Hospitals NHS Trust,12/10/2011,BILIARY STENTS,Integrated Care,COOK (UK) LTD,0000494673,484.80
Department of Health,East Sussex Hospitals NHS Trust,12/10/2011,M&S GENERAL SUPPLIES-OTHER,Integrated Care,COOK (UK) LTD,0000494674,756.00
Department of Health,East Sussex Hospitals NHS Trust,12/10/2011,M&S GENERAL SUPPLIES-OTHER,Planned Care,OLYMPUS KEYMED,0000494826,1360.93
Department of Health,East Sussex Hospitals NHS Trust,12/10/2011,SURGICAL INSTRUMENTS,Planned Care,OLYMPUS KEYMED,0000494827,1566.98
Department of Health,East Sussex Hospitals NHS Trust,12/10/2011,PRE-STERILE COMMERCIAL PACKS,Planned Care,SYNERGY HEALTH,0000494861,863.45
Department of Health,East Sussex Hospitals NHS Trust,12/10/2011,LOANER KITS - HIRE CHARGE,Planned Care,SYNTHES LTD,0000494898,62.40
Department of Health,East Sussex Hospitals NHS Trust,12/10/2011,PROSTHESES-OTHER,Planned Care,SYNTHES LTD,0000494898,1228.62
Department of Health,East Sussex Hospitals NHS Trust,12/10/2011,M&S GENERAL SUPPLIES-OTHER,Planned Care,3M UNITEK,0000494902,527.82
Department of Health,East Sussex Hospitals NHS Trust,12/10/2011,M&S GENERAL SUPPLIES-OTHER,Planned Care,ARIZANT UK,0000494943,510.00
Department of Health,East Sussex Hospitals NHS Trust,12/10/2011,LOANER KITS - HIRE CHARGE,Planned Care,SURGICRAFT LIMITED,0000495100,258.00
Department of Health,East Sussex Hospitals NHS Trust,12/10/2011,PROSTHESES-OTHER,Planned Care,SURGICRAFT LIMITED,0000495100,1109.40
Department of Health,East Sussex Hospitals NHS Trust,12/10/2011,M&S GENERAL SUPPLIES-OTHER,Planned Care,OLYMPUS KEYMED,0000495214,704.42
Department of Health,East Sussex Hospitals NHS Trust,12/10/2011,INTERVENTIONAL DISPOSABLES,Planned Care,OLYMPUS KEYMED,0000495214,413.31
Department of Health,East Sussex Hospitals NHS Trust,12/10/2011,M&S GENERAL SUPPLIES-OTHER,Integrated Care,CITY OF STOKE ON TRENT,0000495237,1128.00
Department of Health,East Sussex Hospitals NHS Trust,12/10/2011,M&S GENERAL SUPPLIES-OTHER,Commercial,UNISURGE INTERNATIONAL LTD,0000593570,1074.85
Department of Health,East Sussex Hospitals NHS Trust,12/10/2011,PRE-STERILE COMMERCIAL PACKS,Commercial,UNISURGE INTERNATIONAL LTD,0000593570,673.20
Department of Health,East Sussex Hospitals NHS Trust,12/10/2011,SENSITIVITY DISKS,Integrated Care,BIOMERIEUX UK LTD,0000593714,1235.70
Department of Health,East Sussex Hospitals NHS Trust,12/10/2011,GENERAL LAB. CONSUMABLES,Integrated Care,BIOMERIEUX UK LTD,0000593714,48.46
Department of Health,East Sussex Hospitals NHS Trust,12/10/2011,GENERAL CHEMICALS,Integrated Care,BIOMERIEUX UK LTD,0000593714,199.74
Department of Health,East Sussex Hospitals NHS Trust,12/10/2011,LAB.REAGENTS-MISCELLANEOUS,Integrated Care,BIOMERIEUX UK LTD,0000593714,87.70
Department of Health,East Sussex Hospitals NHS Trust,12/10/2011,COMPUTER HARDWARE,Urgent Care,HEWLETT-PACKARD LTD,0000593826,573.63
Department of Health,East Sussex Hospitals NHS Trust,12/10/2011,BILIARY STENTS,Integrated Care,PYRAMED LIMITED,0000593911,984.00
Department of Health,East Sussex Hospitals NHS Trust,12/10/2011,PROSTHESES-OTHER,Planned Care,BIOMET EUROPE,0000593914,930.00
Department of Health,East Sussex Hospitals NHS Trust,12/10/2011,M&S EQUIPMENT - OTHER,Planned Care,ANETIC AID LTD,0000593918,690.00
Department of Health,East Sussex Hospitals NHS Trust,12/10/2011,CONT.MAIN-MED & SURG EQUIP,Commercial,B BRAUN MEDICAL LTD,0000593949,602.78
Department of Health,East Sussex Hospitals NHS Trust,12/10/2011,CARDIOLOGY STENTS,Urgent Care,ABBOTT VASCULAR,0000593955,1945.00
Department of Health,East Sussex Hospitals NHS Trust,12/10/2011,CARDIOLOGY CATHETERS,Urgent Care,BARD LTD,0000593970,2220.00
Department of Health,East Sussex Hospitals NHS Trust,12/10/2011,ENGINEERING MATERIALS,Commercial,AXIS ELEVATORS LTD,0000593973,1269.00
Department of Health,East Sussex Hospitals NHS Trust,12/10/2011,CARDIOLOGY CATHETERS,Urgent Care,ACROSTAK-UK,0000593977,1776.00
Department of Health,East Sussex Hospitals NHS Trust,12/10/2011,CARDIOLOGY CATHETERS,Urgent Care,ACROSTAK-UK,0000593978,6120.00
Department of Health,East Sussex Hospitals NHS Trust,12/10/2011,CARDIOLOGY STENTS,Urgent Care,ACROSTAK-UK,0000593978,1140.00
Department of Health,East Sussex Hospitals NHS Trust,12/10/2011,CARDIOLOGY CATHETERS,Urgent Care,ST JUDE MEDICAL UK LIMITED,0000593980,3240.00
Department of Health,East Sussex Hospitals NHS Trust,12/10/2011,VIDAS REAGENTS,Integrated Care,ABBOTT LABORATORIES LTD,0000594011,2552.30
Department of Health,East Sussex Hospitals NHS Trust,12/10/2011,CARDIOLOGY CATHETERS,Urgent Care,BOSTON SCIENTIFIC LTD,0000594040,168.00
Department of Health,East Sussex Hospitals NHS Trust,12/10/2011,CARDIOLOGY STENTS,Urgent Care,BOSTON SCIENTIFIC LTD,0000594040,1524.00
Department of Health,East Sussex Hospitals NHS Trust,12/10/2011,COLONIC STENTS,Integrated Care,BOSTON SCIENTIFIC LTD,0000594041,948.00
Department of Health,East Sussex Hospitals NHS Trust,12/10/2011,M&S GENERAL SUPPLIES-OTHER,Integrated Care,BOSTON SCIENTIFIC LTD,0000594045,180.00
Department of Health,East Sussex Hospitals NHS Trust,12/10/2011,INTERVENTIONAL DISPOSABLES,Integrated Care,BOSTON SCIENTIFIC LTD,0000594045,360.00
Department of Health,East Sussex Hospitals NHS Trust,12/10/2011,M&S GENERAL SUPPLIES-OTHER,Planned Care,BOSTON SCIENTIFIC LTD,0000594047,30.00
Department of Health,East Sussex Hospitals NHS Trust,12/10/2011,INTERVENTIONAL DISPOSABLES,Planned Care,BOSTON SCIENTIFIC LTD,0000594047,1836.00
Department of Health,East Sussex Hospitals NHS Trust,12/10/2011,SURGICAL INSTRUMENTS,Planned Care,BOSTON SCIENTIFIC LTD,0000594047,249.60
Department of Health,East Sussex Hospitals NHS Trust,12/10/2011,M&S GENERAL SUPPLIES-OTHER,Urgent Care,BARD LTD,0000594051,2913.38
Department of Health,East Sussex Hospitals NHS Trust,12/10/2011,CLEANING MATERIALS,Commercial,FASTNET TAPES LTD,0000594053,421.20
Department of Health,East Sussex Hospitals NHS Trust,12/10/2011,GENERAL LAB. CONSUMABLES,Integrated Care,VITECH SCIENTIFIC LTD,0000594072,168.00
Department of Health,East Sussex Hospitals NHS Trust,12/10/2011,LAB.REAGENTS-MISCELLANEOUS,Integrated Care,VITECH SCIENTIFIC LTD,0000594072,624.00
Department of Health,East Sussex Hospitals NHS Trust,12/10/2011,QUALITY CONTROL MATERIAL,Integrated Care,VITECH SCIENTIFIC LTD,0000594072,68.40
Department of Health,East Sussex Hospitals NHS Trust,12/10/2011,POSTAGE,Integrated Care,VITECH SCIENTIFIC LTD,0000594072,14.40
Department of Health,East Sussex Hospitals NHS Trust,12/10/2011,PRE-STERILE COMMERCIAL PACKS,Commercial,UNIFIED MEDICAL PRODUCTS,0000594107,783.52
Department of Health,East Sussex Hospitals NHS Trust,12/10/2011,HAS & ROTHER PODIATRY REPAIR,Commercial,TIMESCO OF LONDON LTD,0000594117,34.64
Department of Health,East Sussex Hospitals NHS Trust,12/10/2011,EAST DOWNS INSTRUMENTS REPAIR,Commercial,TIMESCO OF LONDON LTD,0000594117,645.81
Department of Health,East Sussex Hospitals NHS Trust,12/10/2011,CONT.MAIN-MED & SURG EQUIP,Commercial,TIMESCO OF LONDON LTD,0000594117,2.22
Department of Health,East Sussex Hospitals NHS Trust,12/10/2011,LOANER KITS - HIRE CHARGE,Planned Care,ACUMED LTD,0000594131,210.00
Department of Health,East Sussex Hospitals NHS Trust,12/10/2011,PROSTHESES-OTHER,Planned Care,ACUMED LTD,0000594131,410.40
Department of Health,East Sussex Hospitals NHS Trust,12/10/2011,CARDIOLOGY CATHETERS,Urgent Care,MEDTRONIC LTD,0000594140,12000.00
Department of Health,East Sussex Hospitals NHS Trust,12/10/2011,M&S GENERAL SUPPLIES-OTHER,Urgent Care,ST JUDE MEDICAL UK LIMITED,0000594146,1998.72
Department of Health,East Sussex Hospitals NHS Trust,12/10/2011,INTERVASCULAR STENTS,Integrated Care,COOK (UK) LTD,0000594147,594.00
Department of Health,East Sussex Hospitals NHS Trust,12/10/2011,BLOOD PRODUCTS - BPL,Integrated Care,BIO PRODUCTS LABORATORY,0000594148,526.50
Department of Health,East Sussex Hospitals NHS Trust,12/10/2011,CONT.MAIN-MED & SURG EQUIP,Commercial,B BRAUN MEDICAL LTD,0000594154,609.38
Department of Health,East Sussex Hospitals NHS Trust,12/10/2011,PRE-STERILE COMMERCIAL PACKS,Commercial,RICHARDSON HEALTHCARE,0000594160,983.04
Department of Health,East Sussex Hospitals NHS Trust,12/10/2011,RENAL STENTS,Planned Care,PORGES,0000594161,955.00
Department of Health,East Sussex Hospitals NHS Trust,12/10/2011,LOANER KITS - HIRE CHARGE,Planned Care,NORTHSTAR ORTHOPAEDICS LIMITED,0000594165,400.00
Department of Health,East Sussex Hospitals NHS Trust,12/10/2011,PROSTHESES-OTHER,Planned Care,NORTHSTAR ORTHOPAEDICS LIMITED,0000594165,757.00
Department of Health,East Sussex Hospitals NHS Trust,12/10/2011,INTERVENTIONAL DISPOSABLES,Urgent Care,ABBOTT VASCULAR,0000594166,550.00
Department of Health,East Sussex Hospitals NHS Trust,12/10/2011,CARDIOLOGY CATHETERS,Urgent Care,ABBOTT VASCULAR,0000594167,300.00
Department of Health,East Sussex Hospitals NHS Trust,12/10/2011,CARDIOLOGY STENTS,Urgent Care,ABBOTT VASCULAR,0000594167,2025.00
Department of Health,East Sussex Hospitals NHS Trust,12/10/2011,CARDIOLOGY CATHETERS,Urgent Care,ABBOTT VASCULAR,0000594168,180.00
Department of Health,East Sussex Hospitals NHS Trust,12/10/2011,CARDIOLOGY STENTS,Urgent Care,ABBOTT VASCULAR,0000594168,2025.00
Department of Health,East Sussex Hospitals NHS Trust,12/10/2011,M&S GENERAL SUPPLIES-OTHER,Planned Care,MEDICAL INNOVATIONS LTD,0000594169,720.00
Department of Health,East Sussex Hospitals NHS Trust,12/10/2011,PRE-STERILE COMMERCIAL PACKS,Commercial,FULL SUPPORT HEALTHCARE LTD,0000594174,3471.34
Department of Health,East Sussex Hospitals NHS Trust,12/10/2011,BEDDING & LINEN - OTHER,Commercial,JAMES WALKER TEXTILES LTD,0000594194,5082.00
Department of Health,East Sussex Hospitals NHS Trust,12/10/2011,M&S GENERAL SUPPLIES-OTHER,Commercial,CLINIPAK LTD,0000594195,674.69
Department of Health,East Sussex Hospitals NHS Trust,12/10/2011,SURGICAL INSTRUMENTS,Planned Care,STRYKER UK,0000594197,4108.20
Department of Health,East Sussex Hospitals NHS Trust,12/10/2011,OESOPHAGEAL (UPPER GI) STENTS,Integrated Care,BOSTON SCIENTIFIC LTD,0000594199,834.00
Department of Health,East Sussex Hospitals NHS Trust,12/10/2011,SURGICAL INSTRUMENTS,Planned Care,BOSTON SCIENTIFIC LTD,0000594202,3000.00
Department of Health,East Sussex Hospitals NHS Trust,12/10/2011,SUTURES,Planned Care,BOSTON SCIENTIFIC LTD,0000594203,592.80
Department of Health,East Sussex Hospitals NHS Trust,12/10/2011,GENERAL LAB. CONSUMABLES,Integrated Care,INSTRUMENTATION LABORATORIES UK LTD,0000594215,3813.06
Department of Health,East Sussex Hospitals NHS Trust,12/10/2011,CARDIOLOGY CATHETERS,Urgent Care,BARD LTD,0000594216,1440.00
Department of Health,East Sussex Hospitals NHS Trust,12/10/2011,M&S GENERAL SUPPLIES-OTHER,Planned Care,UNISURGE INTERNATIONAL LTD,0000594227,532.22
Department of Health,East Sussex Hospitals NHS Trust,12/10/2011,M&S GENERAL SUPPLIES-OTHER,Planned Care,MEDTRONIC LTD,0000594231,982.80
Department of Health,East Sussex Hospitals NHS Trust,12/10/2011,X-RAY FILM,Integrated Care,AGFA HEALTHCARE UK LTD,0000594233,2856.40
Department of Health,East Sussex Hospitals NHS Trust,12/10/2011,M&S GENERAL SUPPLIES-OTHER,Planned Care,JOHNSON & JOHNSON MEDICAL LTD,0000594235,673.45
Department of Health,East Sussex Hospitals NHS Trust,12/10/2011,M&S GENERAL SUPPLIES-OTHER,Integrated Care,JOHNSON & JOHNSON MEDICAL LTD,0000594236,840.00
Department of Health,East Sussex Hospitals NHS Trust,12/10/2011,CARDIOLOGY CATHETERS,Urgent Care,JOHNSON & JOHNSON MEDICAL LTD,0000594237,3894.00
Department of Health,East Sussex Hospitals NHS Trust,12/10/2011,INTERVENTIONAL DISPOSABLES,Urgent Care,JOHNSON & JOHNSON MEDICAL LTD,0000594241,684.00
Department of Health,East Sussex Hospitals NHS Trust,12/10/2011,INTERVASCULAR STENTS,Integrated Care,JOHNSON & JOHNSON MEDICAL LTD,0000594243,1260.00
Department of Health,East Sussex Hospitals NHS Trust,12/10/2011,LAB.REAGENTS-MISCELLANEOUS,Integrated Care,BECTON DICKINSON U.K. LTD,0000594247,2657.95
Department of Health,East Sussex Hospitals NHS Trust,12/10/2011,LAB-CONTAINERS/BOTTLES & CAPS,Integrated Care,BECTON DICKINSON U.K. LTD,0000594247,240.00
Department of Health,East Sussex Hospitals NHS Trust,12/10/2011,LABORATORY MEDIA,Integrated Care,BECTON DICKINSON U.K. LTD,0000594247,192.00
Department of Health,East Sussex Hospitals NHS Trust,12/10/2011,M&S GENERAL SUPPLIES-OTHER,Commercial,3M HEALTHCARE LTD,0000594258,1200.00
Department of Health,East Sussex Hospitals NHS Trust,12/10/2011,IMMUNONOLOGY REAGENTS,Integrated Care,PHADIA LTD,0000594261,1607.40
Department of Health,East Sussex Hospitals NHS Trust,12/10/2011,IMMUNONOLOGY REAGENTS,Integrated Care,PHADIA LTD,0000594262,1224.00
Department of Health,East Sussex Hospitals NHS Trust,12/10/2011,LOANER KITS - HIRE CHARGE,Planned Care,SURGI C LTD,0000594264,462.00
Department of Health,East Sussex Hospitals NHS Trust,12/10/2011,PROSTHESES-OTHER,Planned Care,SURGI C LTD,0000594264,1591.20
Department of Health,East Sussex Hospitals NHS Trust,12/10/2011,ELECTRO MEDICAL EQUIPMENT,Integrated Care,COVIDIEN (UK) COMMERCIAL LTD,0000594266,501.60
Department of Health,East Sussex Hospitals NHS Trust,12/10/2011,PROSTHESES-OTHER,Planned Care,ARTHROCARE UK LIMITED,0000594269,990.00
Department of Health,East Sussex Hospitals NHS Trust,12/10/2011,CONT.MAIN-MED & SURG EQUIP,Commercial,LINDSAY SURGICAL SUPPLIES LTD,0000594284,740.00
Department of Health,East Sussex Hospitals NHS Trust,12/10/2011,M&S GENERAL SUPPLIES-OTHER,Integrated Care,TERUMO UK,0000594285,1026.00
Department of Health,East Sussex Hospitals NHS Trust,12/10/2011,M&S GENERAL SUPPLIES-OTHER,Commercial,HEALTH EDGE SOLUTIONS LTD,0000594289,706.68
Department of Health,East Sussex Hospitals NHS Trust,12/10/2011,BEDDING & LINEN - OTHER,Commercial,A.W. BENT,0000594292,9388.80
Department of Health,East Sussex Hospitals NHS Trust,12/10/2011,M&S GENERAL SUPPLIES-OTHER,Integrated Care,MEDICAL INNOVATIONS LTD,0000594331,576.00
Department of Health,East Sussex Hospitals NHS Trust,12/10/2011,M&S GENERAL SUPPLIES-OTHER,Commercial,UNISURGE INTERNATIONAL LTD,0000594339,452.18
Department of Health,East Sussex Hospitals NHS Trust,12/10/2011,PRE-STERILE COMMERCIAL PACKS,Commercial,UNISURGE INTERNATIONAL LTD,0000594339,1483.89
Department of Health,East Sussex Hospitals NHS Trust,12/10/2011,WHEELCHAIR,Integrated Care,GERALD SIMONDS HEALTHCARE LTD,0000594347,510.00
Department of Health,East Sussex Hospitals NHS Trust,12/10/2011,CARDIOLOGY CATHETERS,Urgent Care,PYRAMED LIMITED,0000594353,1104.00
Department of Health,East Sussex Hospitals NHS Trust,12/10/2011,ENGINEERING MATERIALS,Commercial,KANNEGIESSER UK,0000594356,1645.87
Department of Health,East Sussex Hospitals NHS Trust,12/10/2011,FURNITURE & FITTINGS,Planned Care,WOODSTOCK LEABANK,0000594360,643.00
Department of Health,East Sussex Hospitals NHS Trust,12/10/2011,LAB MATERIALS - MAIN ANALYSER,Integrated Care,ORTHO-CLINICAL DIAGNOSTICS,0000594373,10719.22
Department of Health,East Sussex Hospitals NHS Trust,12/10/2011,PRE-STERILE COMMERCIAL PACKS,Commercial,FULL SUPPORT HEALTHCARE LTD,0000594380,5554.04
Department of Health,East Sussex Hospitals NHS Trust,12/10/2011,PACEMAKERS,Urgent Care,MEDTRONIC LTD,0000594388,3960.00
Department of Health,East Sussex Hospitals NHS Trust,12/10/2011,CLEANING MATERIALS,Commercial,DEKOMED LTD,0000594389,1174.44
Department of Health,East Sussex Hospitals NHS Trust,12/10/2011,INTERVENTIONAL DISPOSABLES,Urgent Care,TERUMO UK,0000594390,526.80
Department of Health,East Sussex Hospitals NHS Trust,12/10/2011,GENERAL LAB. CONSUMABLES,Integrated Care,LAUNCH DIAGNOSTICS LTD,0000594393,984.00
Department of Health,East Sussex Hospitals NHS Trust,12/10/2011,INTERVASCULAR STENTS,Integrated Care,W L  GORE & ASSOCIATES,0000594397,2206.80
Department of Health,East Sussex Hospitals NHS Trust,12/10/2011,INTERVENTIONAL DISPOSABLES,Integrated Care,BOSTON SCIENTIFIC LTD,0000594404,66.00
Department of Health,East Sussex Hospitals NHS Trust,12/10/2011,COLONIC STENTS,Integrated Care,BOSTON SCIENTIFIC LTD,0000594404,948.00
Department of Health,East Sussex Hospitals NHS Trust,12/10/2011,PROCEDURE PACKS,Planned Care,MALOSA MEDICAL,0000594407,2228.40
Department of Health,East Sussex Hospitals NHS Trust,12/10/2011,STAPLING DEVICES,Planned Care,COVIDIEN (UK) COMMERCIAL LTD,0000594409,534.24
Department of Health,East Sussex Hospitals NHS Trust,12/10/2011,M&S GENERAL SUPPLIES-OTHER,Planned Care,COVIDIEN (UK) COMMERCIAL LTD,0000594410,1198.80
Department of Health,East Sussex Hospitals NHS Trust,12/10/2011,M&S GENERAL SUPPLIES-OTHER,Integrated Care,MANA-TECH LTD,0000594425,1800.00
Department of Health,East Sussex Hospitals NHS Trust,12/10/2011,CAPITAL EXPENDITURE,Other Central,P C WERTH LTD,0000594438,6369.90
Department of Health,East Sussex Hospitals NHS Trust,12/10/2011,OFFICE EQUIPMENT,Corporate Services,POSTURITE UK LTD,0000594440,2170.80
Department of Health,East Sussex Hospitals NHS Trust,12/10/2011,PRE-STERILE COMMERCIAL PACKS,Commercial,UNIFIED MEDICAL PRODUCTS,0000594443,538.69
Department of Health,East Sussex Hospitals NHS Trust,12/10/2011,M&S GENERAL SUPPLIES-OTHER,Planned Care,TP ORTHODONTICS EUROPE,0000594446,511.21
Department of Health,East Sussex Hospitals NHS Trust,12/10/2011,FURNITURE & FITTINGS,Planned Care,ANETIC AID LTD,0000594448,1533.60
Department of Health,East Sussex Hospitals NHS Trust,12/10/2011,CALANDER CONSUMABLES,Commercial,SEVERNSIDE FABRICS LTD,0000594452,2395.00
Department of Health,East Sussex Hospitals NHS Trust,12/10/2011,GENERAL CHEMICALS,Integrated Care,ALERE LTD,0000594455,515.75
Department of Health,East Sussex Hospitals NHS Trust,12/10/2011,INTERVASCULAR STENTS,Integrated Care,COOK (UK) LTD,0000594488,594.00
Department of Health,East Sussex Hospitals NHS Trust,12/10/2011,INTERVASCULAR STENTS,Integrated Care,COOK (UK) LTD,0000594489,594.00
Department of Health,East Sussex Hospitals NHS Trust,12/10/2011,DRESSINGS-OTHER,Commercial,SYNERGY HEALTH,0000594511,301.92
Department of Health,East Sussex Hospitals NHS Trust,12/10/2011,M&S GENERAL SUPPLIES-OTHER,Commercial,SYNERGY HEALTH,0000594511,463.72
Department of Health,East Sussex Hospitals NHS Trust,12/10/2011,PRE-STERILE COMMERCIAL PACKS,Commercial,SYNERGY HEALTH,0000594511,416.67
Department of Health,East Sussex Hospitals NHS Trust,12/10/2011,INTERVASCULAR STENTS,Integrated Care,COOK (UK) LTD,0000594562,1188.00
Department of Health,East Sussex Hospitals NHS Trust,12/10/2011,ELECTRO MEDICAL EQUIPMENT,Planned Care,WELCH ALLYN UK LTD,0000594627,2052.00
Department of Health,East Sussex Hospitals NHS Trust,12/10/2011,M&S GENERAL SUPPLIES-OTHER,Planned Care,3M UNITEK,0000594643,540.94
Department of Health,East Sussex Hospitals NHS Trust,12/10/2011,GENERAL CHEMICALS,Integrated Care,BECTON DICKINSON U.K. LTD,0000594685,1296.28
Department of Health,East Sussex Hospitals NHS Trust,12/10/2011,THEATRE LINEN,Commercial,BDF LTD.,0000594737,661.47
Department of Health,East Sussex Hospitals NHS Trust,12/10/2011,M&S EQUIPMENT - OTHER,Planned Care,OLYMPUS KEYMED,0000594739,263.56
Department of Health,East Sussex Hospitals NHS Trust,12/10/2011,SURGICAL INSTRUMENTS,Planned Care,OLYMPUS KEYMED,0000594739,261.16
Department of Health,East Sussex Hospitals NHS Trust,12/10/2011,CONT.MAIN-MED & SURG EQUIP,Commercial,OLYMPUS KEYMED,0000594755,451.55
Department of Health,East Sussex Hospitals NHS Trust,12/10/2011,CONT.MAIN-MED & SURG EQUIP,Commercial,OLYMPUS KEYMED,0000594756,833.75
Department of Health,East Sussex Hospitals NHS Trust,12/10/2011,M&S GENERAL SUPPLIES-OTHER,Planned Care,OLYMPUS KEYMED,0000594758,670.88
Department of Health,East Sussex Hospitals NHS Trust,12/10/2011,M&S GENERAL SUPPLIES-OTHER,Planned Care,OLYMPUS KEYMED,0000594889,1138.10
Department of Health,East Sussex Hospitals NHS Trust,12/10/2011,M&S GENERAL SUPPLIES-OTHER,Planned Care,OLYMPUS KEYMED,0000594890,608.58
Department of Health,East Sussex Hospitals NHS Trust,12/10/2011,INTERVENTIONAL DISPOSABLES,Integrated Care,SYNERGY HEALTH,0000594907,-12.61
Department of Health,East Sussex Hospitals NHS Trust,12/10/2011,M&S GENERAL SUPPLIES-OTHER,Commercial,SYNERGY HEALTH,0000594907,556.91
Department of Health,East Sussex Hospitals NHS Trust,12/10/2011,PRE-STERILE COMMERCIAL PACKS,Commercial,SYNERGY HEALTH,0000594907,1177.40
Department of Health,East Sussex Hospitals NHS Trust,12/10/2011,M&S EQUIPMENT - OTHER,Planned Care,OLYMPUS KEYMED,0000594929,2401.99
Department of Health,East Sussex Hospitals NHS Trust,12/10/2011,LAPARASCOPIC EQUIP-UROLOGICAL,Planned Care,OLYMPUS KEYMED,0000595078,1135.70
Department of Health,East Sussex Hospitals NHS Trust,12/10/2011,PRE-STERILE COMMERCIAL PACKS,Commercial,FULL SUPPORT HEALTHCARE LTD,0000595118,2075.78
Department of Health,East Sussex Hospitals NHS Trust,12/10/2011,LOANER KITS - HIRE CHARGE,Planned Care,ORTHODYNAMICS,0000595239,468.00
Department of Health,East Sussex Hospitals NHS Trust,12/10/2011,PROSTHESES-OTHER,Planned Care,ORTHODYNAMICS,0000595239,1196.40
Department of Health,East Sussex Hospitals NHS Trust,12/10/2011,INTERVASCULAR STENTS,Integrated Care,ATRIUM EUROPE BV,0000595307,1758.00
Department of Health,East Sussex Hospitals NHS Trust,12/10/2011,CAPITAL EXPENDITURE,Other Central,MAINTEL EUROPE LIMITED,0000617831,1525.00
Department of Health,East Sussex Hospitals NHS Trust,12/10/2011,ENGIN. PLANT/TOOL/CONSUMABLES,Commercial,BEACON WATER TREATMENT LTD,0000617833,1831.68
Department of Health,East Sussex Hospitals NHS Trust,12/10/2011,M & S EQUIP REPAIR MATERIALS,Planned Care,MAQUET LIMITED,0000617837,602.48
Department of Health,East Sussex Hospitals NHS Trust,12/10/2011,POSTAGE - MAINTENANCE STOCK,Commercial,DOUGLAS DELABIE LTD,0000617840,24.00
Department of Health,East Sussex Hospitals NHS Trust,12/10/2011,EDGH BLDING & ENGINEERING MATS,Commercial,DOUGLAS DELABIE LTD,0000617840,487.87
Department of Health,East Sussex Hospitals NHS Trust,12/10/2011,M & S EQUIP REPAIR MATERIALS,Planned Care,MAQUET LIMITED,0000617844,648.06
Department of Health,East Sussex Hospitals NHS Trust,12/10/2011,CONTRACT ENGINEERING MAINT,Commercial,PROECONOMY LTD,0000617847,700.00
Department of Health,East Sussex Hospitals NHS Trust,12/10/2011,ENGINEER CONT-ELECT BED REPAIR,Commercial,EURO ENERGY RESOURCES LTD,0000617849,234.00
Department of Health,East Sussex Hospitals NHS Trust,12/10/2011,CAPITAL EXPENDITURE,Other Central,EURO ENERGY RESOURCES LTD,0000617849,889.44
Department of Health,East Sussex Hospitals NHS Trust,12/10/2011,CONT.MAIN-MED & SURG EQUIP,Planned Care,CARLETON LTD,0000617873,418.00
Department of Health,East Sussex Hospitals NHS Trust,12/10/2011,EDGH BLDING & ENGINEERING MATS,Commercial,TRAVIS PERKINS TRADING COMPANY LTD,0000617878,738.86
Department of Health,East Sussex Hospitals NHS Trust,12/10/2011,ENGIN. PLANT/TOOL/CONSUMABLES,Commercial,UNIVAR LTD,0000617893,762.89
Department of Health,East Sussex Hospitals NHS Trust,12/10/2011,CAPITAL EXPENDITURE,Other Central,PICK EVERARD,0000617907,10497.78
Department of Health,East Sussex Hospitals NHS Trust,12/10/2011,M & S EQUIP REPAIR MATERIALS,Commercial,BAXTER HEALTHCARE (BERKSHIRE)LTD,0000617973,977.81
Department of Health,East Sussex Hospitals NHS Trust,12/10/2011,M & S EQUIP REPAIR MATERIALS,Urgent Care,PHILIPS MEDICAL SYSTEMS UK LTD,0000617989,923.04
Department of Health,East Sussex Hospitals NHS Trust,12/10/2011,CAPITAL EXPENDITURE,Other Central,PICK EVERARD,0000618029,8043.71
Department of Health,East Sussex Hospitals NHS Trust,12/10/2011,PATS APPL - FOOTWARE,Integrated Care,OSSUR UK LTD,0000749898,1253.89
Department of Health,East Sussex Hospitals NHS Trust,12/10/2011,PATS APPL - LEG SUPPORTS,Integrated Care,ESSEX ORTHOPAEDICS,0000749954,459.31
Department of Health,East Sussex Hospitals NHS Trust,12/10/2011,M&S GENERAL SUPPLIES-OTHER,Planned Care,SMITHS MEDICAL INTERNATIONAL,0000881022,1127.62
Department of Health,East Sussex Hospitals NHS Trust,12/10/2011,M&S GENERAL SUPPLIES-OTHER,Planned Care,GAMBRO LUNDIA AB,0000882144,1477.20
Department of Health,East Sussex Hospitals NHS Trust,12/10/2011,PROSTHESES-HIP,Planned Care,BIOMET EUROPE,0000883304,2546.26
Department of Health,East Sussex Hospitals NHS Trust,12/10/2011,PROSTHESES-KNEES,Planned Care,BIOMET EUROPE,0000883304,2640.00
Department of Health,East Sussex Hospitals NHS Trust,12/10/2011,PROSTHESES-OTHER,Planned Care,BIOMET EUROPE,0000883304,1228.80
Department of Health,East Sussex Hospitals NHS Trust,12/10/2011,NATIONAL JOINT REGISTRY LEVY,Planned Care,BIOMET EUROPE,0000883304,100.02
Department of Health,East Sussex Hospitals NHS Trust,12/10/2011,PROSTHESES-KNEES,Planned Care,BIOMET EUROPE,0000883528,6588.00
Department of Health,East Sussex Hospitals NHS Trust,12/10/2011,NATIONAL JOINT REGISTRY LEVY,Planned Care,BIOMET EUROPE,0000883528,40.01
Department of Health,East Sussex Hospitals NHS Trust,12/10/2011,PROSTHESES-KNEES,Planned Care,BIOMET EUROPE,0000883585,5778.00
Department of Health,East Sussex Hospitals NHS Trust,12/10/2011,NATIONAL JOINT REGISTRY LEVY,Planned Care,BIOMET EUROPE,0000883585,80.02
Department of Health,East Sussex Hospitals NHS Trust,12/10/2011,LASER/LAPARASCOPIC EQUIPMENT,Planned Care,PROMED LTD,0000883588,2058.00
Department of Health,East Sussex Hospitals NHS Trust,12/10/2011,M&S GENERAL SUPPLIES-OTHER,Planned Care,ARIZANT UK,0000883589,629.40
Department of Health,East Sussex Hospitals NHS Trust,12/10/2011,M&S GENERAL SUPPLIES-OTHER,Planned Care,GAMBRO LUNDIA AB,0000883593,578.40
Department of Health,East Sussex Hospitals NHS Trust,12/10/2011,SURGICAL INSTRUMENTS,Planned Care,RB MEDICAL,0000883598,584.88
Department of Health,East Sussex Hospitals NHS Trust,12/10/2011,SURGICAL INSTRUMENTS,Planned Care,RB MEDICAL,0000883599,584.88
Department of Health,East Sussex Hospitals NHS Trust,12/10/2011,PROSTHESIS - LENS,Planned Care,ALCON LABORATORIES (UK) LTD,0000883608,595.20
Department of Health,East Sussex Hospitals NHS Trust,12/10/2011,PROSTHESES-KNEES,Planned Care,BIOMET EUROPE,0000883612,1463.40
Department of Health,East Sussex Hospitals NHS Trust,12/10/2011,NATIONAL JOINT REGISTRY LEVY,Planned Care,BIOMET EUROPE,0000883612,20.00
Department of Health,East Sussex Hospitals NHS Trust,12/10/2011,PROSTHESES-KNEES,Planned Care,BIOMET EUROPE,0000883613,2376.00
Department of Health,East Sussex Hospitals NHS Trust,12/10/2011,NATIONAL JOINT REGISTRY LEVY,Planned Care,BIOMET EUROPE,0000883613,40.01
Department of Health,East Sussex Hospitals NHS Trust,12/10/2011,DRESSINGS-OTHER,Planned Care,ANETIC AID LTD,0000883614,607.20
Department of Health,East Sussex Hospitals NHS Trust,12/10/2011,M&S GENERAL SUPPLIES-OTHER,Planned Care,ALCON LABORATORIES (UK) LTD,0000883630,4646.40
Department of Health,East Sussex Hospitals NHS Trust,12/10/2011,PRE-STERILE COMMERCIAL PACKS,Planned Care,ALCON LABORATORIES (UK) LTD,0000883630,1497.60
Department of Health,East Sussex Hospitals NHS Trust,12/10/2011,BONE BANK,Planned Care,SYNTHES LTD,0000883690,1600.00
Department of Health,East Sussex Hospitals NHS Trust,12/10/2011,M&S GENERAL SUPPLIES-OTHER,Planned Care,TELEFLEX MEDICAL,0000883711,1710.00
Department of Health,East Sussex Hospitals NHS Trust,12/10/2011,PROSTHESES-OTHER,Planned Care,BIOMET EUROPE,0000883738,5776.80
Department of Health,East Sussex Hospitals NHS Trust,12/10/2011,PROSTHESES-KNEES,Planned Care,BIOMET EUROPE,0000883739,588.00
Department of Health,East Sussex Hospitals NHS Trust,12/10/2011,PROSTHESES-KNEES,Planned Care,BIOMET EUROPE,0000883740,588.00
Department of Health,East Sussex Hospitals NHS Trust,12/10/2011,M&S GENERAL SUPPLIES-OTHER,Integrated Care,BRACCO UK LTD,0000883742,936.00
Department of Health,East Sussex Hospitals NHS Trust,12/10/2011,UTETEROSCOPY CONSUMABLES,Planned Care,BOSTON SCIENTIFIC LTD,0000883748,720.00
Department of Health,East Sussex Hospitals NHS Trust,12/10/2011,M&S GENERAL SUPPLIES-OTHER,Planned Care,BOSTON SCIENTIFIC LTD,0000883748,984.00
Department of Health,East Sussex Hospitals NHS Trust,12/10/2011,INTERVENTIONAL DISPOSABLES,Planned Care,BOSTON SCIENTIFIC LTD,0000883748,378.00
Department of Health,East Sussex Hospitals NHS Trust,12/10/2011,RENAL STENTS,Planned Care,BOSTON SCIENTIFIC LTD,0000883748,312.00
Department of Health,East Sussex Hospitals NHS Trust,12/10/2011,SUTURES,Planned Care,BOSTON SCIENTIFIC LTD,0000883754,840.00
Department of Health,East Sussex Hospitals NHS Trust,12/10/2011,PROSTHESIS - LENS,Planned Care,ALCON LABORATORIES (UK) LTD,0000883760,595.20
Department of Health,East Sussex Hospitals NHS Trust,12/10/2011,M&S GENERAL SUPPLIES-OTHER,Planned Care,ARIZANT UK,0000883794,1030.50
Department of Health,East Sussex Hospitals NHS Trust,12/10/2011,PROSTHESIS - LENS,Planned Care,ALCON LABORATORIES (UK) LTD,0000883796,1116.00
Department of Health,East Sussex Hospitals NHS Trust,12/10/2011,PROSTHESES-KNEES,Planned Care,BIOMET EUROPE,0000883817,1501.20
Department of Health,East Sussex Hospitals NHS Trust,12/10/2011,NATIONAL JOINT REGISTRY LEVY,Planned Care,BIOMET EUROPE,0000883817,40.01
Department of Health,East Sussex Hospitals NHS Trust,12/10/2011,PROSTHESES-KNEES,Planned Care,BIOMET EUROPE,0000883818,3564.00
Department of Health,East Sussex Hospitals NHS Trust,12/10/2011,PROSTHESES-OTHER,Planned Care,BIOMET EUROPE,0000883818,163.20
Department of Health,East Sussex Hospitals NHS Trust,12/10/2011,NATIONAL JOINT REGISTRY LEVY,Planned Care,BIOMET EUROPE,0000883818,60.01
Department of Health,East Sussex Hospitals NHS Trust,12/10/2011,M&S GENERAL SUPPLIES-OTHER,Planned Care,GAMBRO LUNDIA AB,0000883828,1008.00
Department of Health,East Sussex Hospitals NHS Trust,12/10/2011,CATARACT CONSUMABLES,Planned Care,ALCON LABORATORIES (UK) LTD,0000883850,2501.52
Department of Health,East Sussex Hospitals NHS Trust,12/10/2011,SURGICAL INSTRUMENTS,Planned Care,MDM MEDICAL LTD,0000883855,814.80
Department of Health,East Sussex Hospitals NHS Trust,12/10/2011,PROSTHESIS - LENS,Planned Care,ALCON LABORATORIES (UK) LTD,0000883858,595.20
Department of Health,East Sussex Hospitals NHS Trust,12/10/2011,ELECTRO MEDICAL EQUIPMENT,Planned Care,COVIDIEN (UK) COMMERCIAL LTD,0000883859,1500.00
Department of Health,East Sussex Hospitals NHS Trust,12/10/2011,BONE BANK,Planned Care,SYNTHES LTD,0000883864,1600.00
Department of Health,East Sussex Hospitals NHS Trust,12/10/2011,LASER/LAPARASCOPIC EQUIPMENT,Planned Care,JOHNSON & JOHNSON MEDICAL LTD,0000883871,1397.34
Department of Health,East Sussex Hospitals NHS Trust,12/10/2011,INCONTINENCE M&S,Planned Care,JOHNSON & JOHNSON MEDICAL LTD,0000883871,1782.00
Department of Health,East Sussex Hospitals NHS Trust,12/10/2011,M&S GENERAL SUPPLIES-OTHER,Planned Care,JOHNSON & JOHNSON MEDICAL LTD,0000883871,1917.90
Department of Health,East Sussex Hospitals NHS Trust,12/10/2011,SURGICAL INSTRUMENTS,Planned Care,JOHNSON & JOHNSON MEDICAL LTD,0000883871,405.00
Department of Health,East Sussex Hospitals NHS Trust,12/10/2011,M&S GENERAL SUPPLIES-OTHER,Planned Care,ALCON LABORATORIES (UK) LTD,0000883872,3148.80
Department of Health,East Sussex Hospitals NHS Trust,12/10/2011,ELECTRO MEDICAL EQUIPMENT,Planned Care,WALTERS MEDICAL,0000883879,646.80
Department of Health,East Sussex Hospitals NHS Trust,12/10/2011,M&S GENERAL SUPPLIES-OTHER,Planned Care,ARIZANT UK,0000883884,856.80
Department of Health,East Sussex Hospitals NHS Trust,12/10/2011,M&S EQUIPMENT - OTHER,Planned Care,ARTHROCARE UK LIMITED,0000883892,843.00
Department of Health,East Sussex Hospitals NHS Trust,12/10/2011,PRE-STERILE COMMERCIAL PACKS,Planned Care,KIMAL PLC (FOR ORDERS),0000883894,544.75
Department of Health,East Sussex Hospitals NHS Trust,12/10/2011,M&S GENERAL SUPPLIES-OTHER,Integrated Care,BRACCO UK LTD,0000883896,936.00
Department of Health,East Sussex Hospitals NHS Trust,12/10/2011,"PATS APPL - NECK, ARM, HAND",Planned Care,DACEY LIMITED (ORTHOTIX),0000883904,152.04
Department of Health,East Sussex Hospitals NHS Trust,12/10/2011,PATS APPL - LEG SUPPORTS,Planned Care,DACEY LIMITED (ORTHOTIX),0000883904,595.44
Department of Health,East Sussex Hospitals NHS Trust,12/10/2011,PATS APPL - FOOTWARE,Planned Care,DACEY LIMITED (ORTHOTIX),0000883904,173.04
Department of Health,East Sussex Hospitals NHS Trust,12/10/2011,M&S GENERAL SUPPLIES-OTHER,Planned Care,SMITHS MEDICAL INTERNATIONAL,0000883906,1127.62
Department of Health,East Sussex Hospitals NHS Trust,12/10/2011,PROSTHESES-KNEES,Planned Care,BIOMET EUROPE,0000883910,658.80
Department of Health,East Sussex Hospitals NHS Trust,12/10/2011,PROSTHESES-OTHER,Planned Care,BIOMET EUROPE,0000883910,229.20
Department of Health,East Sussex Hospitals NHS Trust,12/10/2011,NATIONAL JOINT REGISTRY LEVY,Planned Care,BIOMET EUROPE,0000883910,20.00
Department of Health,East Sussex Hospitals NHS Trust,12/10/2011,M&S GENERAL SUPPLIES-OTHER,Planned Care,COOK (UK) LTD,0000883912,916.80
Department of Health,East Sussex Hospitals NHS Trust,12/10/2011,PROSTHESES-KNEES,Planned Care,BIOMET EUROPE,0000883920,4540.20
Department of Health,East Sussex Hospitals NHS Trust,12/10/2011,NATIONAL JOINT REGISTRY LEVY,Planned Care,BIOMET EUROPE,0000883920,60.01
Department of Health,East Sussex Hospitals NHS Trust,12/10/2011,CARDIOLOGY CATHETERS,Planned Care,BARD LTD,0000883933,570.13
Department of Health,East Sussex Hospitals NHS Trust,12/10/2011,DRESSINGS-OTHER,Planned Care,ORTHOPTIC SUPPLIES,0000883934,509.40
Department of Health,East Sussex Hospitals NHS Trust,12/10/2011,STAPLING DEVICES,Planned Care,COVIDIEN (UK) COMMERCIAL LTD,0000883936,802.80
Department of Health,East Sussex Hospitals NHS Trust,12/10/2011,ENDOSCOPY CONSUMABLES,Planned Care,DELTEX MEDICAL,0000883939,494.40
Department of Health,East Sussex Hospitals NHS Trust,12/10/2011,M&S GENERAL SUPPLIES-OTHER,Planned Care,DELTEX MEDICAL,0000883939,450.00
Department of Health,East Sussex Hospitals NHS Trust,12/10/2011,UTETEROSCOPY CONSUMABLES,Planned Care,BOSTON SCIENTIFIC LTD,0000883940,720.00
Department of Health,East Sussex Hospitals NHS Trust,12/10/2011,M&S GENERAL SUPPLIES-OTHER,Planned Care,BOSTON SCIENTIFIC LTD,0000883940,283.20
Department of Health,East Sussex Hospitals NHS Trust,12/10/2011,INTERVENTIONAL DISPOSABLES,Planned Care,BOSTON SCIENTIFIC LTD,0000883940,543.60
Department of Health,East Sussex Hospitals NHS Trust,12/10/2011,RENAL STENTS,Planned Care,BOSTON SCIENTIFIC LTD,0000883940,468.00
Department of Health,East Sussex Hospitals NHS Trust,12/10/2011,PROSTHESES-HIP,Planned Care,STRYKER UK,0000883944,5277.36
Department of Health,East Sussex Hospitals NHS Trust,12/10/2011,PROSTHESES-OTHER,Planned Care,STRYKER UK,0000883944,214.80
Department of Health,East Sussex Hospitals NHS Trust,12/10/2011,NATIONAL JOINT REGISTRY LEVY,Planned Care,STRYKER UK,0000883944,20.00
Department of Health,East Sussex Hospitals NHS Trust,12/10/2011,PROSTHESES-OTHER,Planned Care,STRYKER UK,0000883945,132.12
Department of Health,East Sussex Hospitals NHS Trust,12/10/2011,M&S GENERAL SUPPLIES-OTHER,Planned Care,STRYKER UK,0000883945,150.48
Department of Health,East Sussex Hospitals NHS Trust,12/10/2011,SURGICAL INSTRUMENTS,Planned Care,STRYKER UK,0000883945,119.94
Department of Health,East Sussex Hospitals NHS Trust,12/10/2011,PROSTHESES-OTHER,Planned Care,STRYKER UK,0000883945,1663.02
Department of Health,East Sussex Hospitals NHS Trust,12/10/2011,PROSTHESIS - LENS,Planned Care,ALCON LABORATORIES (UK) LTD,0000883950,520.80
Department of Health,East Sussex Hospitals NHS Trust,12/10/2011,SURGICAL INSTRUMENTS,Planned Care,MEDTRONIC LTD,0000883951,648.00
Department of Health,East Sussex Hospitals NHS Trust,12/10/2011,STAPLING DEVICES,Planned Care,JOHNSON & JOHNSON MEDICAL LTD,0000883977,83.14
Department of Health,East Sussex Hospitals NHS Trust,12/10/2011,M&S GENERAL SUPPLIES-OTHER,Planned Care,JOHNSON & JOHNSON MEDICAL LTD,0000883977,474.01
Department of Health,East Sussex Hospitals NHS Trust,12/10/2011,M&S GENERAL SUPPLIES-OTHER,Planned Care,STRYKER UK,0000883980,976.68
Department of Health,East Sussex Hospitals NHS Trust,12/10/2011,SURGICAL INSTRUMENTS,Planned Care,STRYKER UK,0000883980,606.48
Department of Health,East Sussex Hospitals NHS Trust,12/10/2011,SURGICAL INSTRUMENTS,Planned Care,STRYKER UK,0000883981,-48.34
Department of Health,East Sussex Hospitals NHS Trust,12/10/2011,PROSTHESES-HIP,Planned Care,STRYKER UK,0000883981,7733.02
Department of Health,East Sussex Hospitals NHS Trust,12/10/2011,NATIONAL JOINT REGISTRY LEVY,Planned Care,STRYKER UK,0000883981,20.00
Department of Health,East Sussex Hospitals NHS Trust,12/10/2011,SURGICAL INSTRUMENTS,Planned Care,STRYKER UK,0000883982,-208.68
Department of Health,East Sussex Hospitals NHS Trust,12/10/2011,PROSTHESES-OTHER,Planned Care,STRYKER UK,0000883982,3235.44
Department of Health,East Sussex Hospitals NHS Trust,12/10/2011,LASER/LAPARASCOPIC EQUIPMENT,Planned Care,PROMED LTD,0000883983,1422.00
Department of Health,East Sussex Hospitals NHS Trust,12/10/2011,M&S GENERAL SUPPLIES-OTHER,Planned Care,ARIZANT UK,0000883991,960.00
Department of Health,East Sussex Hospitals NHS Trust,12/10/2011,M&S GENERAL SUPPLIES-OTHER,Planned Care,ARIZANT UK,0000883992,960.00
Department of Health,East Sussex Hospitals NHS Trust,12/10/2011,BONE BANK,Planned Care,BIOCOMPOSITES LTD,0000883994,655.20
Department of Health,East Sussex Hospitals NHS Trust,12/10/2011,M&S GENERAL SUPPLIES-OTHER,Planned Care,BIOCOMPOSITES LTD,0000883994,939.60
Department of Health,East Sussex Hospitals NHS Trust,12/10/2011,PROSTHESES-OTHER,Planned Care,SYNTHES LTD,0000883996,681.12
Department of Health,East Sussex Hospitals NHS Trust,12/10/2011,SUTURES,Planned Care,ARTHREX LTD,0000884060,1572.00
Department of Health,East Sussex Hospitals NHS Trust,12/10/2011,M&S GENERAL SUPPLIES-OTHER,Planned Care,ARTHREX LTD,0000884060,372.00
Department of Health,East Sussex Hospitals NHS Trust,12/10/2011,M&S GENERAL SUPPLIES-OTHER,Planned Care,COVIDIEN (UK) COMMERCIAL LTD,0000884122,1198.80
Department of Health,East Sussex Hospitals NHS Trust,12/10/2011,PROSTHESES-HIP,Planned Care,BIOMET EUROPE,0000884153,-3806.00
Department of Health,East Sussex Hospitals NHS Trust,12/10/2011,M&S GENERAL SUPPLIES-OTHER,Planned Care,MEDTRONIC LTD,0000884191,1626.00
Department of Health,East Sussex Hospitals NHS Trust,12/10/2011,TURP/TURBT EQUIPMENT,Planned Care,OLYMPUS KEYMED,0000884317,1365.72
Department of Health,East Sussex Hospitals NHS Trust,12/10/2011,M&S GENERAL SUPPLIES-OTHER,Planned Care,OLYMPUS KEYMED,0000884317,6109.80
Department of Health,East Sussex Hospitals NHS Trust,12/10/2011,BONE BANK,Planned Care,LINDARE MEDICAL LTD,0000884635,1293.24
Department of Health,East Sussex Hospitals NHS Trust,12/10/2011,PROVISIONS,Commercial,3663,0000913376,874.13
Department of Health,East Sussex Hospitals NHS Trust,12/10/2011,PROVISIONS,Commercial,3663,0000913378,676.42
Department of Health,East Sussex Hospitals NHS Trust,12/10/2011,PROVISIONS,Commercial,3663,0000913379,518.01
Department of Health,East Sussex Hospitals NHS Trust,12/10/2011,PROVISIONS,Commercial,3663,0000913380,765.16
Department of Health,East Sussex Hospitals NHS Trust,12/10/2011,PROVISIONS,Commercial,3663,0000913382,903.37
Department of Health,East Sussex Hospitals NHS Trust,12/10/2011,PROVISIONS,Commercial,3663,0000913383,545.35
Department of Health,East Sussex Hospitals NHS Trust,12/10/2011,PROVISIONS,Commercial,3663,0000913384,645.06
Department of Health,East Sussex Hospitals NHS Trust,12/10/2011,STOCK-ASCRIBE CONQUEST,Pharmacy Stock,ABBOTT LABORATORIES LTD,0001181755,3380.54
Department of Health,East Sussex Hospitals NHS Trust,12/10/2011,STOCK-ASCRIBE CONQUEST,Pharmacy Stock,BAXTER HEALTHCARE (BERKSHIRE)LTD,0001181757,650.00
Department of Health,East Sussex Hospitals NHS Trust,12/10/2011,STOCK-ASCRIBE CONQUEST,Pharmacy Stock,BAXTER HEALTHCARE (BERKSHIRE)LTD,0001181798,2146.34
Department of Health,East Sussex Hospitals NHS Trust,12/10/2011,STOCK-ASCRIBE CONQUEST,Pharmacy Stock,BAXTER HEALTHCARE (BERKSHIRE)LTD,0001181799,1260.00
Department of Health,East Sussex Hospitals NHS Trust,12/10/2011,STOCK-ASCRIBE CONQUEST,Pharmacy Stock,PIERRE FABRE ONCOLOGY,0001181838,3602.44
Department of Health,East Sussex Hospitals NHS Trust,12/10/2011,STOCK-ASCRIBE CONQUEST,Pharmacy Stock,HOSPIRA UK LIMITED,0001181840,660.00
Department of Health,East Sussex Hospitals NHS Trust,12/10/2011,STOCK-ASCRIBE CONQUEST,Pharmacy Stock,HEALTHCARE PRODUCT SERVICES,0001181846,1714.26
Department of Health,East Sussex Hospitals NHS Trust,12/10/2011,STOCK-ASCRIBE CONQUEST,Pharmacy Stock,GRIFOLS UK LTD,0001181847,1360.00
Department of Health,East Sussex Hospitals NHS Trust,12/10/2011,STOCK-ASCRIBE CONQUEST,Pharmacy Stock,PHARMACOSMOS UK LTD,0001181848,956.40
Department of Health,East Sussex Hospitals NHS Trust,12/10/2011,STOCK-ASCRIBE CONQUEST,Pharmacy Stock,FOCUS PHARMACEUTICALS LTD,0001181853,522.48
Department of Health,East Sussex Hospitals NHS Trust,12/10/2011,STOCK-ASCRIBE CONQUEST,Pharmacy Stock,GE HEALTHCARE LTD,0001181854,679.68
Department of Health,East Sussex Hospitals NHS Trust,12/10/2011,STOCK-ASCRIBE CONQUEST,Pharmacy Stock,GE HEALTHCARE LTD,0001181856,1425.50
Department of Health,East Sussex Hospitals NHS Trust,12/10/2011,STOCK-ASCRIBE CONQUEST,Pharmacy Stock,CENTRAL HOMECARE LTD,0001181878,715.00
Department of Health,East Sussex Hospitals NHS Trust,12/10/2011,STOCK-ASCRIBE CONQUEST,Pharmacy Stock,CLINIMED LTD,0001181879,820.95
Department of Health,East Sussex Hospitals NHS Trust,12/10/2011,STOCK-ASCRIBE CONQUEST,Pharmacy Stock,CENTRAL HOMECARE LTD,0001181880,704.28
Department of Health,East Sussex Hospitals NHS Trust,12/10/2011,STOCK-ASCRIBE CONQUEST,Pharmacy Stock,CENTRAL HOMECARE LTD,0001181881,704.28
Department of Health,East Sussex Hospitals NHS Trust,12/10/2011,STOCK-ASCRIBE CONQUEST,Pharmacy Stock,CENTRAL HOMECARE LTD,0001181895,704.28
Department of Health,East Sussex Hospitals NHS Trust,12/10/2011,STOCK-ASCRIBE CONQUEST,Pharmacy Stock,CENTRAL HOMECARE LTD,0001182027,704.28
Department of Health,East Sussex Hospitals NHS Trust,12/10/2011,STOCK-ASCRIBE CONQUEST,Pharmacy Stock,CENTRAL HOMECARE LTD,0001182029,715.00
Department of Health,East Sussex Hospitals NHS Trust,12/10/2011,STOCK-ASCRIBE CONQUEST,Pharmacy Stock,ALLERGAN LTD,0001182036,1232.04
Department of Health,East Sussex Hospitals NHS Trust,12/10/2011,STOCK-ASCRIBE CONQUEST,Pharmacy Stock,CENTRAL HOMECARE LTD,0001182039,715.00
Department of Health,East Sussex Hospitals NHS Trust,12/10/2011,STOCK-ASCRIBE CONQUEST,Pharmacy Stock,CENTRAL HOMECARE LTD,0001182041,704.28
Department of Health,East Sussex Hospitals NHS Trust,12/10/2011,STOCK-ASCRIBE CONQUEST,Pharmacy Stock,CENTRAL HOMECARE LTD,0001182043,704.28
Department of Health,East Sussex Hospitals NHS Trust,12/10/2011,STOCK-ASCRIBE CONQUEST,Pharmacy Stock,CENTRAL HOMECARE LTD,0001182044,704.28
Department of Health,East Sussex Hospitals NHS Trust,12/10/2011,STOCK-ASCRIBE CONQUEST,Pharmacy Stock,CENTRAL HOMECARE LTD,0001182045,704.28
Department of Health,East Sussex Hospitals NHS Trust,12/10/2011,STOCK-ASCRIBE CONQUEST,Pharmacy Stock,CENTRAL HOMECARE LTD,0001182046,704.28
Department of Health,East Sussex Hospitals NHS Trust,12/10/2011,STOCK-ASCRIBE CONQUEST,Pharmacy Stock,CENTRAL HOMECARE LTD,0001182049,715.00
Department of Health,East Sussex Hospitals NHS Trust,12/10/2011,STOCK-ASCRIBE CONQUEST,Pharmacy Stock,CENTRAL HOMECARE LTD,0001182051,715.00
Department of Health,East Sussex Hospitals NHS Trust,12/10/2011,STOCK-ASCRIBE CONQUEST,Pharmacy Stock,CENTRAL HOMECARE LTD,0001182052,704.28
Department of Health,East Sussex Hospitals NHS Trust,12/10/2011,STOCK-ASCRIBE CONQUEST,Pharmacy Stock,CENTRAL HOMECARE LTD,0001182055,715.00
Department of Health,East Sussex Hospitals NHS Trust,12/10/2011,STOCK-ASCRIBE CONQUEST,Pharmacy Stock,CENTRAL HOMECARE LTD,0001182056,715.00
Department of Health,East Sussex Hospitals NHS Trust,12/10/2011,STOCK-ASCRIBE CONQUEST,Pharmacy Stock,CENTRAL HOMECARE LTD,0001182057,704.28
Department of Health,East Sussex Hospitals NHS Trust,12/10/2011,STOCK-ASCRIBE CONQUEST,Pharmacy Stock,CENTRAL HOMECARE LTD,0001182058,704.28
Department of Health,East Sussex Hospitals NHS Trust,12/10/2011,STOCK-ASCRIBE CONQUEST,Pharmacy Stock,CENTRAL HOMECARE LTD,0001182059,704.28
Department of Health,East Sussex Hospitals NHS Trust,12/10/2011,STOCK-ASCRIBE CONQUEST,Pharmacy Stock,CENTRAL HOMECARE LTD,0001182060,715.00
Department of Health,East Sussex Hospitals NHS Trust,12/10/2011,STOCK-ASCRIBE CONQUEST,Pharmacy Stock,CENTRAL HOMECARE LTD,0001182061,715.00
Department of Health,East Sussex Hospitals NHS Trust,12/10/2011,STOCK-ASCRIBE CONQUEST,Pharmacy Stock,HEALTHCARE AT HOME LTD,0001182062,704.28
Department of Health,East Sussex Hospitals NHS Trust,12/10/2011,STOCK-ASCRIBE CONQUEST,Pharmacy Stock,HEALTHCARE AT HOME LTD,0001182063,715.00
Department of Health,East Sussex Hospitals NHS Trust,12/10/2011,STOCK-ASCRIBE CONQUEST,Pharmacy Stock,HEALTHCARE AT HOME LTD,0001182064,715.00
Department of Health,East Sussex Hospitals NHS Trust,12/10/2011,STOCK-ASCRIBE CONQUEST,Pharmacy Stock,HEALTHCARE AT HOME LTD,0001182065,715.00
Department of Health,East Sussex Hospitals NHS Trust,12/10/2011,STOCK-ASCRIBE CONQUEST,Pharmacy Stock,HEALTHCARE AT HOME LTD,0001182066,715.00
Department of Health,East Sussex Hospitals NHS Trust,12/10/2011,STOCK-ASCRIBE CONQUEST,Pharmacy Stock,HEALTHCARE AT HOME LTD,0001182067,715.00
Department of Health,East Sussex Hospitals NHS Trust,12/10/2011,STOCK-ASCRIBE CONQUEST,Pharmacy Stock,HEALTHCARE AT HOME LTD,0001182068,715.00
Department of Health,East Sussex Hospitals NHS Trust,12/10/2011,STOCK-ASCRIBE CONQUEST,Pharmacy Stock,HEALTHCARE AT HOME LTD,0001182069,715.00
Department of Health,East Sussex Hospitals NHS Trust,12/10/2011,STOCK-ASCRIBE CONQUEST,Pharmacy Stock,HEALTHCARE AT HOME LTD,0001182070,815.64
Department of Health,East Sussex Hospitals NHS Trust,12/10/2011,STOCK-ASCRIBE CONQUEST,Pharmacy Stock,HEALTHCARE AT HOME LTD,0001182071,715.00
Department of Health,East Sussex Hospitals NHS Trust,12/10/2011,STOCK-ASCRIBE CONQUEST,Pharmacy Stock,M & A PHARMACHEM LTD,0001182072,698.26
Department of Health,East Sussex Hospitals NHS Trust,12/10/2011,STOCK-ASCRIBE CONQUEST,Pharmacy Stock,ELI LILLY & CO LTD,0001182074,9600.00
Department of Health,East Sussex Hospitals NHS Trust,12/10/2011,STOCK-ASCRIBE CONQUEST,Pharmacy Stock,HOSPIRA ASEPTIC SERVICES LIMITED,0001182142,884.40
Department of Health,East Sussex Hospitals NHS Trust,12/10/2011,STOCK-ASCRIBE CONQUEST,Pharmacy Stock,ALCON LABORATORIES (UK) LTD,0001182143,1332.00
Department of Health,East Sussex Hospitals NHS Trust,12/10/2011,STOCK-ASCRIBE CONQUEST,Pharmacy Stock,ROCHE DIAGNOSTICS LTD,0001182157,1777.92
Department of Health,East Sussex Hospitals NHS Trust,12/10/2011,STOCK-ASCRIBE CONQUEST,Pharmacy Stock,FOCUS PHARMACEUTICALS LTD,0001182167,548.66
Department of Health,East Sussex Hospitals NHS Trust,12/10/2011,STOCK-ASCRIBE CONQUEST,Pharmacy Stock,BAXTER HEALTHCARE (BERKSHIRE)LTD,0001182215,840.00
Department of Health,East Sussex Hospitals NHS Trust,12/10/2011,STOCK-ASCRIBE CONQUEST,Pharmacy Stock,BAXTER HEALTHCARE (BERKSHIRE)LTD,0001182221,2180.35
Department of Health,East Sussex Hospitals NHS Trust,12/10/2011,STOCK-ASCRIBE CONQUEST,Pharmacy Stock,ABBOTT LABORATORIES LTD,0001182232,1130.40
Department of Health,East Sussex Hospitals NHS Trust,12/10/2011,STOCK-ASCRIBE CONQUEST,Pharmacy Stock,BAXTER HEALTHCARE (BERKSHIRE)LTD,0001182264,630.00
Department of Health,East Sussex Hospitals NHS Trust,12/10/2011,STOCK-ASCRIBE CONQUEST,Pharmacy Stock,BAXTER HEALTHCARE (BERKSHIRE)LTD,0001182299,840.00
Department of Health,East Sussex Hospitals NHS Trust,12/10/2011,STOCK-ASCRIBE CONQUEST,Pharmacy Stock,BAXTER HEALTHCARE (BERKSHIRE)LTD,0001182300,5197.03
Department of Health,East Sussex Hospitals NHS Trust,12/10/2011,STOCK-ASCRIBE CONQUEST,Pharmacy Stock,BAXTER HEALTHCARE (BERKSHIRE)LTD,0001182301,840.00
Department of Health,East Sussex Hospitals NHS Trust,12/10/2011,STOCK-ASCRIBE CONQUEST,Pharmacy Stock,ELI LILLY & CO LTD,0001182478,7968.24
Department of Health,East Sussex Hospitals NHS Trust,12/10/2011,STOCK-ASCRIBE CONQUEST,Pharmacy Stock,CLINIMED LTD,0001182493,785.45
Department of Health,East Sussex Hospitals NHS Trust,12/10/2011,STOCK-ASCRIBE CONQUEST,Pharmacy Stock,ADVANCED MEDICAL SOLUTION (PLYMOUTH) LTD,0001182496,611.40
Department of Health,East Sussex Hospitals NHS Trust,12/10/2011,STOCK-ASCRIBE CONQUEST,Pharmacy Stock,BAXTER HEALTHCARE (BERKSHIRE)LTD,0001182656,2100.00
Department of Health,East Sussex Hospitals NHS Trust,12/10/2011,STOCK-ASCRIBE CONQUEST,Pharmacy Stock,MERCK SERONO,0001182673,1638.00
Department of Health,East Sussex Hospitals NHS Trust,12/10/2011,STOCK-ASCRIBE CONQUEST,Pharmacy Stock,GAMBRO LUNDIA AB,0001182683,1368.00
Department of Health,East Sussex Hospitals NHS Trust,12/10/2011,STOCK-ASCRIBE CONQUEST,Pharmacy Stock,GENZYME THERAPEUTICS,0001182684,2104.20
Department of Health,East Sussex Hospitals NHS Trust,12/10/2011,STOCK-ASCRIBE CONQUEST,Pharmacy Stock,HEALTHCARE AT HOME LTD,0001182854,715.00
Department of Health,East Sussex Hospitals NHS Trust,12/10/2011,STOCK-ASCRIBE CONQUEST,Pharmacy Stock,HEALTHCARE AT HOME LTD,0001182855,704.28
Department of Health,East Sussex Hospitals NHS Trust,12/10/2011,STOCK-ASCRIBE CONQUEST,Pharmacy Stock,HEALTHCARE AT HOME LTD,0001182856,1408.56
Department of Health,East Sussex Hospitals NHS Trust,12/10/2011,STOCK-ASCRIBE CONQUEST,Pharmacy Stock,HEALTHCARE AT HOME LTD,0001182857,704.28
Department of Health,East Sussex Hospitals NHS Trust,12/10/2011,STOCK-ASCRIBE CONQUEST,Pharmacy Stock,HEALTHCARE AT HOME LTD,0001182858,715.00
Department of Health,East Sussex Hospitals NHS Trust,12/10/2011,STOCK-ASCRIBE CONQUEST,Pharmacy Stock,HEALTHCARE AT HOME LTD,0001182859,704.28
Department of Health,East Sussex Hospitals NHS Trust,12/10/2011,STOCK-ASCRIBE CONQUEST,Pharmacy Stock,HEALTHCARE AT HOME LTD,0001182860,715.00
Department of Health,East Sussex Hospitals NHS Trust,12/10/2011,STOCK-ASCRIBE CONQUEST,Pharmacy Stock,HEALTHCARE AT HOME LTD,0001182863,1408.56
Department of Health,East Sussex Hospitals NHS Trust,12/10/2011,STOCK-ASCRIBE CONQUEST,Pharmacy Stock,HEALTHCARE AT HOME LTD,0001182864,715.00
Department of Health,East Sussex Hospitals NHS Trust,12/10/2011,STOCK-ASCRIBE CONQUEST,Pharmacy Stock,HEALTHCARE AT HOME LTD,0001182865,715.00
Department of Health,East Sussex Hospitals NHS Trust,12/10/2011,STOCK-ASCRIBE CONQUEST,Pharmacy Stock,HEALTHCARE AT HOME LTD,0001182866,715.00
Department of Health,East Sussex Hospitals NHS Trust,12/10/2011,STOCK-ASCRIBE CONQUEST,Pharmacy Stock,HEALTHCARE AT HOME LTD,0001182867,715.00
Department of Health,East Sussex Hospitals NHS Trust,12/10/2011,STOCK-ASCRIBE CONQUEST,Pharmacy Stock,HEALTHCARE AT HOME LTD,0001182868,715.00
Department of Health,East Sussex Hospitals NHS Trust,12/10/2011,STOCK-ASCRIBE CONQUEST,Pharmacy Stock,HEALTHCARE AT HOME LTD,0001182869,715.00
Department of Health,East Sussex Hospitals NHS Trust,12/10/2011,STOCK-ASCRIBE CONQUEST,Pharmacy Stock,HEALTHCARE AT HOME LTD,0001182897,704.28
Department of Health,East Sussex Hospitals NHS Trust,12/10/2011,STOCK-ASCRIBE CONQUEST,Pharmacy Stock,HEALTHCARE AT HOME LTD,0001182901,704.28
Department of Health,East Sussex Hospitals NHS Trust,12/10/2011,STOCK-ASCRIBE CONQUEST,Pharmacy Stock,HEALTHCARE AT HOME LTD,0001182902,1408.56
Department of Health,East Sussex Hospitals NHS Trust,12/10/2011,STOCK-ASCRIBE CONQUEST,Pharmacy Stock,HEALTHCARE AT HOME LTD,0001182906,815.64
Department of Health,East Sussex Hospitals NHS Trust,12/10/2011,STOCK-ASCRIBE CONQUEST,Pharmacy Stock,HEALTHCARE AT HOME LTD,0001182907,715.00
Department of Health,East Sussex Hospitals NHS Trust,12/10/2011,STOCK-ASCRIBE CONQUEST,Pharmacy Stock,HEALTHCARE AT HOME LTD,0001182908,704.28
Department of Health,East Sussex Hospitals NHS Trust,12/10/2011,STOCK-ASCRIBE CONQUEST,Pharmacy Stock,HEALTHCARE AT HOME LTD,0001182909,704.28
Department of Health,East Sussex Hospitals NHS Trust,12/10/2011,STOCK-ASCRIBE CONQUEST,Pharmacy Stock,HEALTHCARE AT HOME LTD,0001182910,704.28
Department of Health,East Sussex Hospitals NHS Trust,12/10/2011,STOCK-ASCRIBE CONQUEST,Pharmacy Stock,AAH PHARMACEUTICALS LTD,0001182930,28588.03
Department of Health,East Sussex Hospitals NHS Trust,12/10/2011,STOCK-ASCRIBE CONQUEST,Pharmacy Stock,AAH PHARMACEUTICALS LTD,0001182934,814.22
Department of Health,East Sussex Hospitals NHS Trust,12/10/2011,STOCK-ASCRIBE CONQUEST,Pharmacy Stock,AAH PHARMACEUTICALS LTD,0001182938,516.96
Department of Health,East Sussex Hospitals NHS Trust,12/10/2011,STOCK-ASCRIBE CONQUEST,Pharmacy Stock,AAH PHARMACEUTICALS LTD,0001182949,661.25
Department of Health,East Sussex Hospitals NHS Trust,12/10/2011,STOCK-ASCRIBE CONQUEST,Pharmacy Stock,AAH PHARMACEUTICALS LTD,0001182953,1039.02
Department of Health,East Sussex Hospitals NHS Trust,12/10/2011,STOCK-ASCRIBE CONQUEST,Pharmacy Stock,AAH PHARMACEUTICALS LTD,0001182955,1581.21
Department of Health,East Sussex Hospitals NHS Trust,12/10/2011,STOCK-ASCRIBE CONQUEST,Pharmacy Stock,AAH PHARMACEUTICALS LTD,0001182956,948.40
Department of Health,East Sussex Hospitals NHS Trust,12/10/2011,STOCK-ASCRIBE CONQUEST,Pharmacy Stock,AAH PHARMACEUTICALS LTD,0001182958,1848.00
Department of Health,East Sussex Hospitals NHS Trust,12/10/2011,STOCK-ASCRIBE CONQUEST,Pharmacy Stock,AAH PHARMACEUTICALS LTD,0001182959,653.73
Department of Health,East Sussex Hospitals NHS Trust,12/10/2011,STOCK-ASCRIBE CONQUEST,Pharmacy Stock,AAH PHARMACEUTICALS LTD,0001182968,1848.00
Department of Health,East Sussex Hospitals NHS Trust,12/10/2011,STOCK-ASCRIBE CONQUEST,Pharmacy Stock,AAH PHARMACEUTICALS LTD,0001182971,3287.83
Department of Health,East Sussex Hospitals NHS Trust,12/10/2011,STOCK-ASCRIBE CONQUEST,Pharmacy Stock,AAH PHARMACEUTICALS LTD,0001182987,982.80
Department of Health,East Sussex Hospitals NHS Trust,12/10/2011,STOCK-ASCRIBE CONQUEST,Pharmacy Stock,NOVARTIS PHARMACEUTICALS UK LTD,0001183026,1788.44
Department of Health,East Sussex Hospitals NHS Trust,12/10/2011,STOCK-ASCRIBE EDGH,Pharmacy Stock,GAMBRO LUNDIA AB,0001385997,1953.60
Department of Health,East Sussex Hospitals NHS Trust,12/10/2011,STOCK-ASCRIBE EDGH,Pharmacy Stock,ROCHE PRODUCTS LTD,0001386000,33243.60
Department of Health,East Sussex Hospitals NHS Trust,12/10/2011,STOCK-ASCRIBE EDGH,Pharmacy Stock,CENTRAL HOMECARE LTD,0001386115,704.28
Department of Health,East Sussex Hospitals NHS Trust,12/10/2011,STOCK-ASCRIBE EDGH,Pharmacy Stock,ROCHE PRODUCTS LTD,0001386121,6196.32
Department of Health,East Sussex Hospitals NHS Trust,12/10/2011,STOCK-ASCRIBE EDGH,Pharmacy Stock,ROCHE PRODUCTS LTD,0001386122,23048.40
Department of Health,East Sussex Hospitals NHS Trust,12/10/2011,STOCK-ASCRIBE EDGH,Pharmacy Stock,MERCK SERONO,0001386123,8190.00
Department of Health,East Sussex Hospitals NHS Trust,12/10/2011,STOCK-ASCRIBE EDGH,Pharmacy Stock,BAXTER HEALTHCARE (BERKSHIRE)LTD,0001386136,1096.95
Department of Health,East Sussex Hospitals NHS Trust,12/10/2011,STOCK-ASCRIBE EDGH,Pharmacy Stock,CSL BEHRING,0001386260,6080.00
Department of Health,East Sussex Hospitals NHS Trust,12/10/2011,STOCK-ASCRIBE EDGH,Pharmacy Stock,HOSPIRA UK LIMITED,0001386262,528.00
Department of Health,East Sussex Hospitals NHS Trust,12/10/2011,STOCK-ASCRIBE EDGH,Pharmacy Stock,JOHNSON & JOHNSON MEDICAL LTD,0001386346,1726.60
Department of Health,East Sussex Hospitals NHS Trust,12/10/2011,STOCK-ASCRIBE EDGH,Pharmacy Stock,CSL BEHRING,0001386347,3040.00
Department of Health,East Sussex Hospitals NHS Trust,12/10/2011,STOCK-ASCRIBE EDGH,Pharmacy Stock,ROCHE PRODUCTS LTD,0001386348,42526.20
Department of Health,East Sussex Hospitals NHS Trust,12/10/2011,STOCK-ASCRIBE EDGH,Pharmacy Stock,CENTRAL HOMECARE LTD,0001386363,846.52
Department of Health,East Sussex Hospitals NHS Trust,12/10/2011,STOCK-ASCRIBE EDGH,Pharmacy Stock,CENTRAL HOMECARE LTD,0001386365,785.88
Department of Health,East Sussex Hospitals NHS Trust,12/10/2011,STOCK-ASCRIBE EDGH,Pharmacy Stock,HEALTHCARE AT HOME LTD,0001386411,715.00
Department of Health,East Sussex Hospitals NHS Trust,12/10/2011,STOCK-ASCRIBE EDGH,Pharmacy Stock,HEALTHCARE AT HOME LTD,0001386412,715.00
Department of Health,East Sussex Hospitals NHS Trust,12/10/2011,STOCK-ASCRIBE EDGH,Pharmacy Stock,HEALTHCARE AT HOME LTD,0001386413,715.00
Department of Health,East Sussex Hospitals NHS Trust,12/10/2011,STOCK-ASCRIBE EDGH,Pharmacy Stock,HEALTHCARE AT HOME LTD,0001386414,715.00
Department of Health,East Sussex Hospitals NHS Trust,12/10/2011,STOCK-ASCRIBE EDGH,Pharmacy Stock,HEALTHCARE AT HOME LTD,0001386415,715.00
Department of Health,East Sussex Hospitals NHS Trust,12/10/2011,STOCK-ASCRIBE EDGH,Pharmacy Stock,HOSPIRA UK LIMITED,0001386441,1531.20
Department of Health,East Sussex Hospitals NHS Trust,12/10/2011,STOCK-ASCRIBE EDGH,Pharmacy Stock,BAXTER HEALTHCARE (BERKSHIRE)LTD,0001386489,660.00
Department of Health,East Sussex Hospitals NHS Trust,12/10/2011,STOCK-ASCRIBE EDGH,Pharmacy Stock,BAXTER HEALTHCARE (BERKSHIRE)LTD,0001386491,630.00
Department of Health,East Sussex Hospitals NHS Trust,12/10/2011,STOCK-ASCRIBE EDGH,Pharmacy Stock,BAXTER HEALTHCARE (BERKSHIRE)LTD,0001386492,1383.14
Department of Health,East Sussex Hospitals NHS Trust,12/10/2011,STOCK-ASCRIBE EDGH,Pharmacy Stock,BAXTER HEALTHCARE (BERKSHIRE)LTD,0001386493,3711.75
Department of Health,East Sussex Hospitals NHS Trust,12/10/2011,STOCK-ASCRIBE EDGH,Pharmacy Stock,BAXTER HEALTHCARE (BERKSHIRE)LTD,0001386494,990.00
Department of Health,East Sussex Hospitals NHS Trust,12/10/2011,STOCK-ASCRIBE EDGH,Pharmacy Stock,BAXTER HEALTHCARE (BERKSHIRE)LTD,0001386496,660.00
Department of Health,East Sussex Hospitals NHS Trust,12/10/2011,STOCK-ASCRIBE EDGH,Pharmacy Stock,BAXTER HEALTHCARE (BERKSHIRE)LTD,0001386536,2436.89
Department of Health,East Sussex Hospitals NHS Trust,12/10/2011,STOCK-ASCRIBE EDGH,Pharmacy Stock,BAXTER HEALTHCARE (BERKSHIRE)LTD,0001386538,2979.79
Department of Health,East Sussex Hospitals NHS Trust,12/10/2011,STOCK-ASCRIBE EDGH,Pharmacy Stock,ELI LILLY & CO LTD,0001386655,5312.16
Department of Health,East Sussex Hospitals NHS Trust,12/10/2011,STOCK-ASCRIBE EDGH,Pharmacy Stock,GENZYME THERAPEUTICS,0001386836,2104.20
Department of Health,East Sussex Hospitals NHS Trust,12/10/2011,STOCK-ASCRIBE EDGH,Pharmacy Stock,TRISTEL SOLUTIONS LTD,0001386868,1122.90
Department of Health,East Sussex Hospitals NHS Trust,12/10/2011,STOCK-ASCRIBE EDGH,Pharmacy Stock,BAXTER HEALTHCARE (BERKSHIRE)LTD,0001386888,2478.72
Department of Health,East Sussex Hospitals NHS Trust,12/10/2011,STOCK-ASCRIBE EDGH,Pharmacy Stock,BAXTER HEALTHCARE (BERKSHIRE)LTD,0001386895,1176.00
Department of Health,East Sussex Hospitals NHS Trust,12/10/2011,STOCK-ASCRIBE CONQUEST,Pharmacy Stock,PHARMA NORD (UK) LTD,0001386971,933.54
Department of Health,East Sussex Hospitals NHS Trust,12/10/2011,STOCK-ASCRIBE EDGH,Pharmacy Stock,TRISTEL SOLUTIONS LTD,0001386999,681.30
Department of Health,East Sussex Hospitals NHS Trust,12/10/2011,STOCK-ASCRIBE EDGH,Pharmacy Stock,BAXTER HEALTHCARE (BERKSHIRE)LTD,0001387011,2553.26
Department of Health,East Sussex Hospitals NHS Trust,12/10/2011,STOCK-ASCRIBE EDGH,Pharmacy Stock,BAXTER HEALTHCARE (BERKSHIRE)LTD,0001387012,1260.00
Department of Health,East Sussex Hospitals NHS Trust,12/10/2011,STOCK-ASCRIBE EDGH,Pharmacy Stock,BAXTER HEALTHCARE (BERKSHIRE)LTD,0001387013,2676.86
Department of Health,East Sussex Hospitals NHS Trust,12/10/2011,STOCK-ASCRIBE EDGH,Pharmacy Stock,AAH PHARMACEUTICALS LTD,0001387015,9827.14
Department of Health,East Sussex Hospitals NHS Trust,12/10/2011,STOCK-ASCRIBE EDGH,Pharmacy Stock,AAH PHARMACEUTICALS LTD,0001387016,1335.66
Department of Health,East Sussex Hospitals NHS Trust,12/10/2011,STOCK-ASCRIBE EDGH,Pharmacy Stock,AAH PHARMACEUTICALS LTD,0001387020,972.74
Department of Health,East Sussex Hospitals NHS Trust,12/10/2011,STOCK-ASCRIBE EDGH,Pharmacy Stock,AAH PHARMACEUTICALS LTD,0001387068,1543.08
Department of Health,East Sussex Hospitals NHS Trust,12/10/2011,STOCK-ASCRIBE EDGH,Pharmacy Stock,AAH PHARMACEUTICALS LTD,0001387071,1980.18
Department of Health,East Sussex Hospitals NHS Trust,12/10/2011,STOCK-ASCRIBE EDGH,Pharmacy Stock,AAH PHARMACEUTICALS LTD,0001387099,13400.64
Department of Health,East Sussex Hospitals NHS Trust,12/10/2011,STOCK-ASCRIBE EDGH,Pharmacy Stock,AAH PHARMACEUTICALS LTD,0001387110,513.00
Department of Health,East Sussex Hospitals NHS Trust,12/10/2011,STOCK-ASCRIBE EDGH,Pharmacy Stock,AAH PHARMACEUTICALS LTD,0001387113,13400.64
Department of Health,East Sussex Hospitals NHS Trust,12/10/2011,STOCK-ASCRIBE EDGH,Pharmacy Stock,AAH PHARMACEUTICALS LTD,0001387119,1259.10
Department of Health,East Sussex Hospitals NHS Trust,12/10/2011,STOCK-ASCRIBE EDGH,Pharmacy Stock,AAH PHARMACEUTICALS LTD,0001387120,675.61
Department of Health,East Sussex Hospitals NHS Trust,12/10/2011,STOCK-ASCRIBE EDGH,Pharmacy Stock,AAH PHARMACEUTICALS LTD,0001387124,1875.96
Department of Health,East Sussex Hospitals NHS Trust,12/10/2011,STOCK-ASCRIBE EDGH,Pharmacy Stock,AAH PHARMACEUTICALS LTD,0001387141,1875.96
Department of Health,East Sussex Hospitals NHS Trust,12/10/2011,STOCK-ASCRIBE EDGH,Pharmacy Stock,AAH PHARMACEUTICALS LTD,0001387143,3914.97
Department of Health,East Sussex Hospitals NHS Trust,12/10/2011,STOCK-ASCRIBE EDGH,Pharmacy Stock,AAH PHARMACEUTICALS LTD,0001387144,513.00
Department of Health,East Sussex Hospitals NHS Trust,12/10/2011,STOCK-ASCRIBE EDGH,Pharmacy Stock,AAH PHARMACEUTICALS LTD,0001387146,513.24
Department of Health,East Sussex Hospitals NHS Trust,12/10/2011,STOCK-ASCRIBE EDGH,Pharmacy Stock,HEALTHCARE AT HOME LTD,0001387150,543.76
Department of Health,East Sussex Hospitals NHS Trust,12/10/2011,STOCK-ASCRIBE EDGH,Pharmacy Stock,HEALTHCARE AT HOME LTD,0001387151,715.00
Department of Health,East Sussex Hospitals NHS Trust,12/10/2011,STOCK-ASCRIBE EDGH,Pharmacy Stock,HEALTHCARE AT HOME LTD,0001387152,715.00
Department of Health,East Sussex Hospitals NHS Trust,12/10/2011,STOCK-ASCRIBE EDGH,Pharmacy Stock,HEALTHCARE AT HOME LTD,0001387153,715.00
Department of Health,East Sussex Hospitals NHS Trust,12/10/2011,STOCK-ASCRIBE EDGH,Pharmacy Stock,HEALTHCARE AT HOME LTD,0001387154,715.00
Department of Health,East Sussex Hospitals NHS Trust,12/10/2011,STOCK-ASCRIBE EDGH,Pharmacy Stock,HEALTHCARE AT HOME LTD,0001387156,715.00
Department of Health,East Sussex Hospitals NHS Trust,12/10/2011,STOCK-ASCRIBE EDGH,Pharmacy Stock,HEALTHCARE AT HOME LTD,0001387157,715.00
Department of Health,East Sussex Hospitals NHS Trust,12/10/2011,STOCK-ASCRIBE EDGH,Pharmacy Stock,HEALTHCARE AT HOME LTD,0001387158,715.00
